Workbook

Sheet REMISE (hidden)
B3: Remise feuille PRO C250 | F3: 0
B6: Remise feuille POWER | F6: 0
B9: Remise feuille Accessoires et options | F9: 0

Sheet SUN C250
K1: Version 01/2017
E3: Chiffrage des capteurs SUN C250
K5: =TODAY() -> 2017-01-31
C11: Référence
C15: Montage | E15: Horizontal
C17: Attention ! Lorsque vous modifiez une des sélections, il faut toujours revalider les suivantes !
E20: DESIGNATION | F20: COLIS | G20: Prix unitaire HT en € | H20: Nbre capt. par rangée | I20: Nbre rangée | J20: Qté | K20: Prix total HT en €
E22: ► CAPTEURS PLANS EMBALLES
E24: =IF(E15='feuille PRO c250'!P10,'feuille PRO c250'!B18,'feuille PRO c250'!H18) -> CAPTEUR PLAN MONTAGE HORIZONTAL PRO C250 H | F24: =IF(E15='feuille PRO c250'!P10,'feuille PRO c250'!C18,'feuille PRO c250'!I18) -> ER241 | G24: =IF(E15='feuille PRO c250'!P10,'feuille PRO c250'!D18,'feuille PRO c250'!J18) -> 820 | J24: =H24*I24 -> 0 | K24: =J24*(1-REMISE!$F$3)*G24 -> 0
E25: =IF(E15='feuille PRO c250'!P10,'feuille PRO c250'!B18,'feuille PRO c250'!H18) -> CAPTEUR PLAN MONTAGE HORIZONTAL PRO C250 H | F25: =IF(E15='feuille PRO c250'!P10,'feuille PRO c250'!C18,'feuille PRO c250'!I18) -> ER241 | G25: =IF(E15='feuille PRO c250'!P10,'feuille PRO c250'!D18,'feuille PRO c250'!J18) -> 820 | J25: =H25*I25 -> 0 | K25: =J25*(1-REMISE!$F$3)*G25 -> 0
E26: =IF(E15='feuille PRO c250'!P10,'feuille PRO c250'!B18,'feuille PRO c250'!H18) -> CAPTEUR PLAN MONTAGE HORIZONTAL PRO C250 H | F26: =IF(E15='feuille PRO c250'!P10,'feuille PRO c250'!C18,'feuille PRO c250'!I18) -> ER241 | G26: =IF(E15='feuille PRO c250'!P10,'feuille PRO c250'!D18,'feuille PRO c250'!J18) -> 820 | J26: =H26*I26 -> 0 | K26: =J26*(1-REMISE!$F$3)*G26 -> 0
I27: Soit une surface totale de : | J27: =(J24+J25+J26)*2.38 -> 0 | K27: m²
E29: Désignation | G29: Colis | H29: Colis | I29: Quantité | J29: prix total HT
E31: ► ACCESSOIRES POUR RACCORDEMENT HYDRAULIQUE
E33: ='feuille PRO c250'!H23 -> KIT DE RACCORDEMENT CHAMP DE CAPTEURS | G33: ='feuille PRO c250'!J23 -> 120 | H33: ='feuille PRO c250'!I23 -> ER245 | I33: ='feuille PRO c250'!E23 -> 0 | J33: =G33*I33*(1-REMISE!$F$3) -> 0
E34: ='feuille PRO c250'!H24 -> KIT DE LIAISON HYDRAULIQUE ENTRE CAPTEURS | G34: ='feuille PRO c250'!J24 -> 41 | H34: ='feuille PRO c250'!I24 -> ER246 | I34: ='feuille PRO c250'!E24 -> 0 | J34: =G34*I34*(1-REMISE!$F$3) -> 0
C35: Option : | D35: NON | E35: ='feuille PRO c250'!H25 -> KIT FLEXIBLES CIRCUIT SOLAIRE CHAMP CAPTEURS | G35: ='feuille PRO c250'!J25 -> 77 | H35: ='feuille PRO c250'!I25 -> ER247 | I35: =IF(D35="NON",0,'feuille PRO c250'!E25) -> 0 | J35: =G35*I35*(1-REMISE!$F$3) -> 0
E37: ► POSE
E39: sur toiture | H39: =IF(choix="en intégration de toiture"," Obligation de poser un film écran sous toiture!","") -> 
E40: =IF(AND(E15="horizontal",choix="en intégration de toiture")," Attention le nombre de capteur par rangée est limité à 4 en intégration horizontale","") -> 
E41: tuile canal 17°
E44: =IF($E$15='feuille PRO c250'!$P$10,'feuille PRO c250'!B82,'feuille PRO c250'!H82) -> KIT DE BASE 17° D'INTEGRATION TUILE CANAL 2 C250 H | G44: =IF($E$15='feuille PRO c250'!$P$10,'feuille PRO c250'!D82,'feuille PRO c250'!J82) -> 1325 | H44: =IF($E$15='feuille PRO c250'!$P$10,'feuille PRO c250'!C82,'feuille PRO c250'!I82) -> ER644 | I44: =IF($E$15='feuille PRO c250'!$P$10,'feuille PRO c250'!E82,'feuille PRO c250'!K82) -> 0 | J44: =G44*I44*(1-REMISE!$F$3) -> 0
E45: =IF($E$15='feuille PRO c250'!$P$10,'feuille PRO c250'!B83,'feuille PRO c250'!H83) -> KIT EXTENSION 17° INTEGRATION TUILE CANAL C 250 H | G45: =IF($E$15='feuille PRO c250'!$P$10,'feuille PRO c250'!D83,'feuille PRO c250'!J83) -> 478 | H45: =IF($E$15='feuille PRO c250'!$P$10,'feuille PRO c250'!C83,'feuille PRO c250'!I83) -> ER645 | I45: =IF($E$15='feuille PRO c250'!$P$10,'feuille PRO c250'!E83,'feuille PRO c250'!K83) -> 0 | J45: =IF(E45="",0,G45*I45*(1-REMISE!$F$3)) -> 0
E46: =IF($E$15='feuille PRO c250'!$P$10,'feuille PRO c250'!B84,'feuille PRO c250'!H84) ->  | G46: =IF($E$15='feuille PRO c250'!$P$10,'feuille PRO c250'!D84,'feuille PRO c250'!J84) ->  | H46: =IF($E$15='feuille PRO c250'!$P$10,'feuille PRO c250'!C84,'feuille PRO c250'!I84) ->  | I46: =IF($E$15='feuille PRO c250'!$P$10,'feuille PRO c250'!E84,'feuille PRO c250'!K84) ->  | J46: =IF(E46="",0,G46*I46*(1-REMISE!$F$3)) -> 0
E48: ► FERRURES D'ANCRAGE
E50: Tuiles mécaniques (alu)
E52: =IF(choix="sur toiture",'feuille PRO c250'!B87,"") -> 4 FERRURES D'ANCRAGE ALU POUR MONTAGE SUR TUILES MÉCANIQUES | G52: =IF(choix="sur toiture",'feuille PRO c250'!D87,"") -> 98 | H52: =IF(choix="sur toiture",'feuille PRO c250'!C87,"") -> EG311 | I52: =IF(choix="sur toiture",'feuille PRO c250'!E87,"") -> 0 | J52: =IF(E52="",0,G52*I52*(1-REMISE!$F$3)) -> 0
E53: =IF(choix="sur toiture",'feuille PRO c250'!B88,"") -> 6 FERRURES D'ANCRAGE ALU POUR MONTAGE SUR TUILES MÉCANIQUES | G53: =IF(choix="sur toiture",'feuille PRO c250'!D88,"") -> 141 | H53: =IF(choix="sur toiture",'feuille PRO c250'!C88,"") -> EG312 | I53: =IF(choix="sur toiture",'feuille PRO c250'!E88,"") -> 0 | J53: =IF(E53="",0,G53*I53*(1-REMISE!$F$3)) -> 0
D55: Attention ! Lorsque vous modifiez une des sélections, il faut toujours revalider les suivantes !
E57: Désignation | G57: Colis | H57: Colis | I57: Quantité | J57: prix total HT
E63: Système PRO C250 complet | G63: Prix total HT
E64: Ensemble capteurs, fixations, raccords hydrauliques | G64: =SUM(J53+J52+J46+J45+J44+J35+J34+J33+K26+K25+K24+J59+J60+J61) -> 0

Sheet Sun 3000
K1: ='SUN C250'!K1 -> Version 01/2017
D3: Chiffrage des capteurs tubulaires SUN 3000
K5: =TODAY() -> 2017-01-31
B8: Référence
K9: =REMISE!F6 -> 0
D13: DESIGNATION | E13: Référence | F13: COLIS | G13: PRIX | H13: Nbre capteur par rangée | I13: Nbre rangée | J13: Qté | K13: Prix total HT en €
D15: ►MONTAGE
D16: Sur toiture
D18: ►CAPTEURS TUBULAIRES
D19: Sun 3010 | E19: 100012353 | F19: =VLOOKUP(E19,'Liste de prix'!$1:$1048576,3,FALSE) -> ER40 | G19: =VLOOKUP(E19,'Liste de prix'!$1:$1048576,4,FALSE) -> 1656 | J19: =H19*I19 -> 0 | K19: =L19*(1-K9) -> 0 | L19: =J19*G19 -> 0
D20: Sun 3015 | E20: 100012354 | F20: =VLOOKUP(E20,'Liste de prix'!$1:$1048576,3,FALSE) -> ER41 | G20: =VLOOKUP(E20,'Liste de prix'!$1:$1048576,4,FALSE) -> 1974 | J20: =H20*I20 -> 0 | K20: =L20*(1-K9) -> 0 | L20: =J20*G20 -> 0
H21: Soit une surface totale de: | J21: =J19*1.14+J20*1.72 -> 0 | K21: m²
D22: ►ACCESSOIRES POUR RACCORDEMENT HYDRAULIQUE
D25: • Raccordement des capteurs en montage vertical juxtaposés ou horizontal superposés
D27: Kit de raccordement hydraulique (extémité+bouchon) Tichelmann | E27: 100011397 | F27: =VLOOKUP(E27,'Liste de prix'!$1:$1048576,3,FALSE) -> EG394 | G27: =VLOOKUP(E27,'Liste de prix'!$1:$1048576,4,FALSE) -> 112 | J27: ='Feuille Power OPC'!F17 -> 0 | K27: =L27*(1-K9) -> 0 | L27: =G27*J27 -> 0
D28: Kit de liaison entre 2 capteurs | E28: 100011396 | F28: =VLOOKUP(E28,'Liste de prix'!$1:$1048576,3,FALSE) -> EG393 | G28: =VLOOKUP(E28,'Liste de prix'!$1:$1048576,4,FALSE) -> 150 | J28: ='Feuille Power OPC'!F23 -> 0 | K28: =L28*(1-K$9) -> 0 | L28: =G28*J28 -> 0
D29: Kit raccordement flexibles capteur tubulaire + sonde capteur | E29: 89807355 | F29: =VLOOKUP(E29,'Liste de prix'!$1:$1048576,3,FALSE) -> EG355 | G29: =VLOOKUP(E29,'Liste de prix'!$1:$1048576,4,FALSE) -> 197 | J29: ='Feuille Power OPC'!F29 -> 0 | K29: =L29*(1-K9) -> 0 | L29: =G29*J29 -> 0
D30: Kit fixation 1 capteur tubulaire | E30: 100011395 | F30: =VLOOKUP(E30,'Liste de prix'!$1:$1048576,3,FALSE) -> EG392 | G30: =VLOOKUP(E30,'Liste de prix'!$1:$1048576,4,FALSE) -> 78 | J30: ='Feuille Power OPC'!F35 -> 0 | K30: =L30*(1-K9) -> 0 | L30: =G30*J30 -> 0
D33: ►ELEMENTS DE POSE SUR TOIT OU EN TERRASSE
D35: A choisir parmi les types de montage suivants :
D36: SUR TOIT OU EN TERRASSE
D38: Montage vertical sur profilés de ER
D39: Kit de montage 1 capteur POWER 10 | E39: 100012019 | F39: =VLOOKUP(E39,'Liste de prix'!$1:$1048576,3,FALSE) -> ER31 | G39: =VLOOKUP(E39,'Liste de prix'!$1:$1048576,4,FALSE) -> 158 | J39: ='Feuille Power OPC'!F47 -> 0 | K39: =L39*(1-K$9) -> 0 | L39: =IF(J39<>0,G39*J39,0) -> 0
D40: Kit de montage 1 capteur POWER 15 | E40: 100012020 | F40: =VLOOKUP(E40,'Liste de prix'!$1:$1048576,3,FALSE) -> ER32 | G40: =VLOOKUP(E40,'Liste de prix'!$1:$1048576,4,FALSE) -> 166 | J40: ='Feuille Power OPC'!F48 -> 0 | K40: =L40*(1-K$9) -> 0 | L40: =IF(J40<>0,G40*J40,0) -> 0
D44: • Supports inclinables pour TERRASSE (ou au sol) pour les capteurs Power 10 et 15 uniquement
D45: selon la disposition des capteurs en + des profilés
D46: 3 supports avec croix stabilisatrices pour 2 capt. Montage vertical | E46: 89807358 | F46: =VLOOKUP(E46,'Liste de prix'!$1:$1048576,3,FALSE) -> EG358 | G46: =VLOOKUP(E46,'Liste de prix'!$1:$1048576,4,FALSE) -> 287 | J46: ='Feuille Power OPC'!F58 -> 0 | K46: =L46*(1-K$9) -> 0 | L46: =G46*J46 -> 0
D47: 3 supports (sans croix stabilisatrices) pour 2 capt. Montage vertical | E47: 89807359 | F47: =VLOOKUP(E47,'Liste de prix'!$1:$1048576,3,FALSE) -> EG359 | G47: =VLOOKUP(E47,'Liste de prix'!$1:$1048576,4,FALSE) -> 245 | J47: ='Feuille Power OPC'!F65 -> 0 | K47: =L47*(1-K$9) -> 0 | L47: =G47*J47 -> 0
D50: • Ferrures d’ancrage pour montage SUR TOITURE
D51: à choisir selon le type de couverture en + des profilés
D52: montage indépendant des chevrons en alu pour tuiles mécaniques | E52: ='Feuille Power OPC'!H78 -> 89807311 | F52: =VLOOKUP(E52,'Liste de prix'!$1:$1048576,3,FALSE) -> EG311 | G52: =VLOOKUP(E52,'Liste de prix'!$1:$1048576,4,FALSE) -> 98 | J52: ='Feuille Power OPC'!E70 -> 0 | K52: =L52*(1-K$9) -> 0 | L52: =IF(J52<>0,G52*J52,0) -> 0
E53: ='Feuille Power OPC'!H79 -> 89807312 | F53: =VLOOKUP(E53,'Liste de prix'!$1:$1048576,3,FALSE) -> EG312 | G53: =VLOOKUP(E53,'Liste de prix'!$1:$1048576,4,FALSE) -> 141 | J53: ='Feuille Power OPC'!E71 -> 0 | K53: =L53*(1-K$9) -> 0 | L53: =G53*J53 -> 0
D56: • Montage sur tuiles canal
B57: chiffrage | D57: Ferrure d'ancrage pour montage sur tuiles canal | E57: 89807358 | F57: =VLOOKUP(E57,'Liste de prix'!$1:$1048576,3,FALSE) -> EG358 | G57: =VLOOKUP(E57,'Liste de prix'!$1:$1048576,4,FALSE) -> 287 | J57: ='Feuille Power OPC'!F93 -> 0 | K57: =L57*(1-K$9) -> 0 | L57: =G57*J57 -> 0
E58: 89807359 | F58: =VLOOKUP(E58,'Liste de prix'!$1:$1048576,3,FALSE) -> EG359 | G58: =VLOOKUP(E58,'Liste de prix'!$1:$1048576,4,FALSE) -> 245 | J58: ='Feuille Power OPC'!F94 -> 0 | K58: =L58*(1-K$9) -> 0 | L58: =G58*J58 -> 0
D64: Système | E64: Prix total HT en €
B65: "Capteurs, fixations et raccords hydrauliques "
D66: =D16 -> Sur toiture | E66: =IF(D16='Outils accessoires'!A74,K19+K20+K27+K28+K29+K30+K39+K40+K52+K53,IF(D16='Outils accessoires'!A75,K19+K20+K27+K28+K29+K30+K39+K40+K46+K47,IF(D16='Outils accessoires'!A76,K19+K20+K27+K28+K29+K30+K39+K40+K57+K58,""))) -> 0

Sheet Pro C (hidden)
D2: Chiffrage colis installation solaire COLLECTIVE capteurs PRO C250
I4: Version 09/2010
B5: Identification de l'étude | J5: =TODAY() -> 2017-01-31
B8: Référence
J9: =REMISE!F3 -> 0
B12: Montage | D12: vertical | E12: =IF(D12="horizontal"," Attention le nombre de capteur par rangée est limité à 4","") -> 
B14: Attention ! Lorsque vous modifiez une des sélections, il faut toujours revalider les suivantes !
D17: DESIGNATION | E17: COLIS | F17: Prix untaire HT en € | G17: Nbre capt. par rangée | H17: Nbre rangée | I17: Qté | J17: Prix total HT en €
D18: ►CAPTEURS PLANS EMBALLES
D20: =FeuilleproC!$C$129 ->  | E20: =FeuilleproC!$D$129 ->  | F20: =FeuilleproC!$E$129 ->  | G20: 0 | H20: 0 | I20: =G20*H20 -> 0 | J20: =K20*(1-J$9) ->  | K20: =F20*I20 -> 
D21: =FeuilleproC!$C$129 ->  | E21: =FeuilleproC!$D$129 ->  | F21: =FeuilleproC!$E$129 ->  | G21: 0 | H21: 0 | I21: =G21*H21 -> 0 | J21: =K21*(1-J$9) ->  | K21: =F21*I21 -> 
D22: =FeuilleproC!$C$129 ->  | E22: =FeuilleproC!$D$129 ->  | F22: =FeuilleproC!$E$129 ->  | I22: =G22*H22 -> 0 | J22: =K22*(1-J$9) ->  | K22: =F22*I22 -> 
D23: ►ACCESSOIRES POUR RACCORDEMENT HYDRAULIQUE | G23: Soit une surface totale de : | I23: =(I20+I21+I22)*2.5 -> 0 | J23: m²
D26: =FeuilleproC!B27 ->  | E26: =FeuilleproC!C27 ->  | F26: =FeuilleproC!D27 ->  | I26: =FeuilleproC!AV27 ->  | J26: =K26*(1-J$9) ->  | K26: =F26*I26 -> 
D27: =FeuilleproC!B28 ->  | E27: =FeuilleproC!C28 ->  | F27: =FeuilleproC!D28 ->  | I27: =FeuilleproC!AV28 ->  | J27: =K27*(1-J$9) ->  | K27: =F27*I27 -> 
D28: =FeuilleproC!B29 ->  | E28: =FeuilleproC!C29 ->  | F28: =FeuilleproC!D29 ->  | I28: =FeuilleproC!AV29 ->  | J28: =K28*(1-J$9) ->  | K28: =F28*I28 -> 
D29: =FeuilleproC!B30 ->  | E29: =FeuilleproC!C30 ->  | F29: =FeuilleproC!D30 ->  | I29: =FeuilleproC!AV30 ->  | J29: =K29*(1-J$9) ->  | K29: =IF(I29=0,0,F29*I29) -> 
B32: Attention ! Lorsque vous modifiez une des sélections, il faut toujours revalider les suivantes !
D34: ►ELEMENTS DE POSE SUR TOIT OU TERRASSE
C36: Montage | D36: sur toiture
D40: • Profilés à choisir en fonction du montage capteurs souhaité
D41: Montage vertical juxt. ou horizontal superposés sur profilés de 5,2 m | E41: =IF(AND(G20>4,D41="Montage vertical juxt. ou horizontal superposés sur profilés de 1,3 m "),"Type de profilé incompatible avec le nombre de capteur !","") -> 
D43: =FeuilleproC!B77 ->  | E43: =FeuilleproC!C77 ->  | F43: =FeuilleproC!D77 ->  | I43: =FeuilleproC!AV77 -> 0 | J43: =K43*(1-J$9) ->  | K43: =IF(I43<>"IMPOSSIBLE",F43*I43,"") -> 
D44: =FeuilleproC!B78 -> KIT COUPLEURS (2 PCES) POUR PROFILES (FIXATION PROFILES JUXTAPOSÉS) | E44: =FeuilleproC!C78 -> EG307 | F44: =FeuilleproC!D78 -> 31 | I44: =FeuilleproC!AV78 -> 0 | J44: =K44*(1-J$9) -> 0 | K44: =F44*I44 -> 0
D45: =FeuilleproC!B79 ->  | E45: =FeuilleproC!C79 ->  | F45: =FeuilleproC!D79 ->  | I45: =FeuilleproC!AV79 -> 0 | J45: =K45*(1-J$9) ->  | K45: =F45*I45 -> 
D46: =FeuilleproC!B80 ->  | E46: =FeuilleproC!C80 ->  | F46: =FeuilleproC!D80 ->  | I46: =FeuilleproC!AV80 -> 0 | J46: =K46*(1-J$9) -> 0 | K46: =IF(I46=0,0,F46*I46) -> 0
D47: =FeuilleproC!B81 -> - | E47: =FeuilleproC!C81 -> - | F47: =FeuilleproC!D81 -> - | I47: =FeuilleproC!AV81 -> 0 | J47: =K47*(1-J$9) -> 0 | K47: =IF(I47<>0,F47*I47,0) -> 0
D50: • Supports inclinables pour montage sur TERRASSE (ou au sol)
D51: à choisir selon la disposition des capteurs en + des profilés
D53: =IF(D36="sur toiture","",FeuilleproC!B104) ->  | E53: =IF(D36="sur toiture","",FeuilleproC!C104) ->  | F53: =IF(D36="sur toiture","",FeuilleproC!D104) ->  | I53: =IF(E53="","",FeuilleproC!AV104) ->  | J53: =K53*(1-J$9) -> 0 | K53: =IF(I53="",0,F53*I53) -> 0
D54: =IF(D36="sur toiture","",FeuilleproC!B105) ->  | E54: =IF(D36="sur toiture","",FeuilleproC!C105) ->  | F54: =IF(D36="sur toiture","",FeuilleproC!D105) ->  | I54: =IF(E54="","",FeuilleproC!AV105) ->  | J54: =K54*(1-J$9) -> 0 | K54: =IF(OR(I54="",I54=" - "),0,F54*I54) -> 0
B56: Attention ! Lorsque vous modifiez une des sélections, il faut toujours revalider les suivantes !
D58: • Ferrures d’ancrage pour montage sur TOITURE
D59: à choisir selon le type de couverture en + des profilés
D60: montage sur chevrons en inox sur toit éternit | E60: =FeuilleproC!D122 -> 4 pces EG 317 | G60: =IF(D60<>"",76.5,"") -> 76.5 | I60: =IF(E60="","",FeuilleproC!AV122) -> 0 | J60: =K60*(1-J$9) -> 0 | K60: =IF(I60="",0,G60*I60) -> 0
E61: =FeuilleproC!D123 -> 6 pces EG 318 | G61: =IF(D60<>"",110.2,"") -> 110.2 | I61: =IF(E61="","",FeuilleproC!AV123) -> 0 | J61: =K61*(1-J$9) -> 0 | K61: =IF(I61="",0,G61*I61) -> 0
B62: Chiffrage
D65: Système PRO C complet | F65: Prix total HT
D66: Ensemble capteurs, fixations, raccords hydrauliques | F66: =J20+J21+J22+J26+J27+J28+J29+J43+J44+J45+J46+J47+J53+J54+J60+J61 -> 

Sheet FeuilleproC (hidden)
A1: 1ere ligne | D1: nbr capteur par rangée | E1: nbre rangée | F1: nbre colis | G1: nbre colis final | H1: nbre colis arrondi | P1: 2eme ligne | T1: nbr capteur par rangée | U1: nbre rangée | V1: nbre colis | W1: nbre colis final | X1: nbre colis arrondi | AF1: 3eme ligne | AJ1: nbr capteur par rangée | AK1: nbre rangée | AL1: nbre colis | AM1: nbre colis final | AN1: nbre colis arrondi
D2: ='Pro C '!G20 -> 0 | E2: ='Pro C '!H20 -> 0 | F2: ='Pro C '!I20 -> 0 | H2: =ROUND(F2,0) -> 0 | L2: liste vertical | M2: 0 | T2: ='Pro C '!G21 -> 0 | U2: ='Pro C '!H21 -> 0 | V2: ='Pro C '!I21 -> 0 | X2: =ROUND(V2,0) -> 0 | AB2: liste vertical | AC2: 1 | AJ2: ='Pro C '!G22 -> 0 | AK2: ='Pro C '!H22 -> 0 | AL2: ='Pro C '!I22 -> 0 | AR2: liste vertical | AS2: 1
B3: montage | C3: ='Pro C '!D12 -> vertical | M3: 1 | R3: montage | S3: ='Pro C '!T12 -> 0 | AC3: 2 | AH3: montage | AI3: ='Pro C '!AJ12 -> 0 | AS3: 2
M4: 2 | AC4: 3 | AS4: 3
B5: ►ACCESSOIRES POUR RACCORDEMENT HYDRAULIQUE | M5: 3 | R5: ►ACCESSOIRES POUR RACCORDEMENT HYDRAULIQUE | AC5: 4 | AH5: ►ACCESSOIRES POUR RACCORDEMENT HYDRAULIQUE | AS5: 4
M6: 4 | AC6: 5 | AS6: 5
A7: liste validation | B7: Raccordement des capteurs en montage vertical juxtaposés ou horizontal superposés | M7: 5 | Q7: liste validation | R7: Raccordement des capteurs en montage vertical juxtaposés ou horizontal superposés | AC7: 6 | AG7: liste validation | AH7: Raccordement des capteurs en montage vertical juxtaposés ou horizontal superposés | AS7: 6
A8: "accessoireshydrau" | B8: Raccordement des capteurs en montage horizontal juxtaposés | M8: 6 | Q8: "accessoireshydrau" | R8: Raccordement des capteurs en montage horizontal juxtaposés | AC8: 7 | AG8: "accessoireshydrau" | AH8: Raccordement des capteurs en montage horizontal juxtaposés | AS8: 7
M9: 7 | AC9: 8 | AS9: 8
H10: nbre colis arrondi | J10: REF | M10: 8 | X10: nbre colis arrondi | Z10: REF | AN10: nbre colis arrondi | AP10: REF
A11: 1ere ligne | B11: Raccordement des capteurs en montage vertical juxtaposés ou horizontal superposés | C11: =VLOOKUP(J11,'Liste de prix'!$1:$1048576,2,FALSE) ->  | D11: =VLOOKUP(J11,'Liste de prix'!$1:$1048576,3,FALSE) ->  | E11: =VLOOKUP(J11,'Liste de prix'!$1:$1048576,4,FALSE) ->  | F11: 1 | G11: =F11*E2 -> 0 | H11: =ROUNDUP(G11,0) -> 0 | J11: 89807345 | Q11: 1ere ligne | R11: Raccordement des capteurs en montage vertical juxtaposés ou horizontal superposés | S11: =VLOOKUP(Z11,'Liste de prix'!$1:$1048576,2,FALSE) ->  | T11: =VLOOKUP(Z11,'Liste de prix'!$1:$1048576,3,FALSE) ->  | U11: =VLOOKUP(Z11,'Liste de prix'!$1:$1048576,4,FALSE) ->  | V11: 1 | W11: =V11*U2 -> 0 | X11: =ROUNDUP(W11,0) -> 0 | Z11: 89807345 | AG11: 1ere ligne | AH11: Raccordement des capteurs en montage vertical juxtaposés ou horizontal superposés | AI11: =VLOOKUP(AP11,'Liste de prix'!$1:$1048576,2,FALSE) ->  | AJ11: =VLOOKUP(AP11,'Liste de prix'!$1:$1048576,3,FALSE) ->  | AK11: =VLOOKUP(AP11,'Liste de prix'!$1:$1048576,4,FALSE) ->  | AL11: 1 | AM11: =AL11*AK2 -> 0 | AN11: =ROUNDUP(AM11,0) -> 0 | AP11: 89807345
B12: Raccordement des capteurs en montage horizontal juxtaposés | C12: =VLOOKUP(J12,'Liste de prix'!$1:$1048576,2,FALSE) ->  | D12: =VLOOKUP(J12,'Liste de prix'!$1:$1048576,3,FALSE) ->  | E12: =VLOOKUP(J12,'Liste de prix'!$1:$1048576,4,FALSE) ->  | F12: 1 | G12: =F12*E2 -> 0 | H12: =ROUNDUP(G12,0) -> 0 | J12: 89807345 | L12: liste horizontal | M12: 0 | R12: Raccordement des capteurs en montage horizontal juxtaposés | S12: =VLOOKUP(Z12,'Liste de prix'!$1:$1048576,2,FALSE) ->  | T12: =VLOOKUP(Z12,'Liste de prix'!$1:$1048576,3,FALSE) ->  | U12: =VLOOKUP(Z12,'Liste de prix'!$1:$1048576,4,FALSE) ->  | V12: 1 | W12: =V12*U2 -> 0 | X12: =ROUNDUP(W12,0) -> 0 | Z12: 89807345 | AB12: liste horizontal | AC12: 1 | AH12: Raccordement des capteurs en montage horizontal juxtaposés | AI12: =VLOOKUP(AP12,'Liste de prix'!$1:$1048576,2,FALSE) ->  | AJ12: =VLOOKUP(AP12,'Liste de prix'!$1:$1048576,3,FALSE) ->  | AK12: =VLOOKUP(AP12,'Liste de prix'!$1:$1048576,4,FALSE) ->  | AL12: 1 | AM12: =AL12*AK2 -> 0 | AN12: =ROUNDUP(AM12,0) -> 0 | AP12: 89807345 | AR12: liste horizontal | AS12: 1
M13: 1 | AC13: 2 | AS13: 2
A14: 2em ligne | B14: Raccordement des capteurs en montage vertical juxtaposés ou horizontal superposés | C14: =VLOOKUP(J14,'Liste de prix'!$1:$1048576,2,FALSE) ->  | D14: =VLOOKUP(J14,'Liste de prix'!$1:$1048576,3,FALSE) ->  | E14: =VLOOKUP(J14,'Liste de prix'!$1:$1048576,4,FALSE) ->  | F14: 0.2 | G14: =F14*E2 -> 0 | H14: 0 | J14: 89807347 | M14: 2 | Q14: 2em ligne | R14: Raccordement des capteurs en montage vertical juxtaposés ou horizontal superposés | S14: =VLOOKUP(Z14,'Liste de prix'!$1:$1048576,2,FALSE) ->  | T14: =VLOOKUP(Z14,'Liste de prix'!$1:$1048576,3,FALSE) ->  | U14: =VLOOKUP(Z14,'Liste de prix'!$1:$1048576,4,FALSE) ->  | V14: 0.2 | W14: =V14*U2 -> 0 | X14: 0 | Z14: 89807347 | AC14: 3 | AG14: 2em ligne | AH14: Raccordement des capteurs en montage vertical juxtaposés ou horizontal superposés | AI14: =VLOOKUP(AP14,'Liste de prix'!$1:$1048576,2,FALSE) ->  | AJ14: =VLOOKUP(AP14,'Liste de prix'!$1:$1048576,3,FALSE) ->  | AK14: =VLOOKUP(AP14,'Liste de prix'!$1:$1048576,4,FALSE) ->  | AL14: 0.2 | AM14: =AL14*AK2 -> 0 | AN14: 0 | AP14: 89807347 | AS14: 3
B15: Raccordement des capteurs en montage horizontal juxtaposés | C15: =VLOOKUP(J15,'Liste de prix'!$1:$1048576,2,FALSE) ->  | D15: =VLOOKUP(J15,'Liste de prix'!$1:$1048576,3,FALSE) ->  | E15: =VLOOKUP(J15,'Liste de prix'!$1:$1048576,4,FALSE) ->  | F15: =D2-1 -> -1 | G15: =F15*E2 -> 0 | H15: 0 | J15: 89807366 | M15: 3 | R15: Raccordement des capteurs en montage horizontal juxtaposés | S15: =VLOOKUP(Z15,'Liste de prix'!$1:$1048576,2,FALSE) ->  | T15: =VLOOKUP(Z15,'Liste de prix'!$1:$1048576,3,FALSE) ->  | U15: =VLOOKUP(Z15,'Liste de prix'!$1:$1048576,4,FALSE) ->  | V15: =T2-1 -> -1 | W15: =V15*U2 -> 0 | X15: 0 | Z15: 89807366 | AC15: 4 | AH15: Raccordement des capteurs en montage horizontal juxtaposés | AI15: =VLOOKUP(AP15,'Liste de prix'!$1:$1048576,2,FALSE) ->  | AJ15: =VLOOKUP(AP15,'Liste de prix'!$1:$1048576,3,FALSE) ->  | AK15: =VLOOKUP(AP15,'Liste de prix'!$1:$1048576,4,FALSE) ->  | AL15: =AJ2-1 -> -1 | AM15: =AL15*AK2 -> 0 | AN15: 0 | AP15: 89807366 | AS15: 4
M16: 4 | AC16: 5 | AS16: 5
A17: 3eme ligne | B17: Raccordement des capteurs en montage vertical juxtaposés ou horizontal superposés | C17: =VLOOKUP(J17,'Liste de prix'!$1:$1048576,2,FALSE) ->  | D17: =VLOOKUP(J17,'Liste de prix'!$1:$1048576,3,FALSE) ->  | E17: =VLOOKUP(J17,'Liste de prix'!$1:$1048576,4,FALSE) ->  | F17: =IF(D2=1,0,IF(D2=2,0.2,IF(D2=3,0.4,IF(D2=4,0.6,IF(D2=5,0.6,IF(D2=6,0.8,IF(D2=7,1,IF(D2=8,1.2)))))))) -> FALSE | G17: =F17*E2 -> 0 | H17: 0 | J17: 89807346 | Q17: 3eme ligne | R17: Raccordement des capteurs en montage vertical juxtaposés ou horizontal superposés | S17: =VLOOKUP(Z17,'Liste de prix'!$1:$1048576,2,FALSE) ->  | T17: =VLOOKUP(Z17,'Liste de prix'!$1:$1048576,3,FALSE) ->  | U17: =VLOOKUP(Z17,'Liste de prix'!$1:$1048576,4,FALSE) ->  | V17: =IF(T2=1,0,IF(T2=2,0.2,IF(T2=3,0.4,IF(T2=4,0.6,IF(T2=5,0.6,IF(T2=6,0.8,IF(T2=7,1,IF(T2=8,1.2)))))))) -> FALSE | W17: =V17*U2 -> 0 | X17: 0 | Z17: 89807346 | AC17: 6 | AG17: 3eme ligne | AH17: Raccordement des capteurs en montage vertical juxtaposés ou horizontal superposés | AI17: =VLOOKUP(AP17,'Liste de prix'!$1:$1048576,2,FALSE) ->  | AJ17: =VLOOKUP(AP17,'Liste de prix'!$1:$1048576,3,FALSE) ->  | AK17: =VLOOKUP(AP17,'Liste de prix'!$1:$1048576,4,FALSE) ->  | AL17: =IF(AJ2=1,0,IF(AJ2=2,0.2,IF(AJ2=3,0.4,IF(AJ2=4,0.6,IF(AJ2=5,0.6,IF(AJ2=6,0.8,IF(AJ2=7,1,IF(AJ2=8,1.2)))))))) -> FALSE | AM17: =AL17*AK2 -> 0 | AN17: 0 | AP17: 89807346 | AS17: 6
B18: Raccordement des capteurs en montage horizontal juxtaposés | C18: =VLOOKUP(J18,'Liste de prix'!$1:$1048576,2,FALSE) ->  | D18: =VLOOKUP(J18,'Liste de prix'!$1:$1048576,3,FALSE) ->  | E18: =VLOOKUP(J18,'Liste de prix'!$1:$1048576,4,FALSE) ->  | F18: =D2*0.2 -> 0 | G18: =F18*E2 -> 0 | H18: 0 | J18: 89807347 | R18: Raccordement des capteurs en montage horizontal juxtaposés | S18: =VLOOKUP(Z18,'Liste de prix'!$1:$1048576,2,FALSE) ->  | T18: =VLOOKUP(Z18,'Liste de prix'!$1:$1048576,3,FALSE) ->  | U18: =VLOOKUP(Z18,'Liste de prix'!$1:$1048576,4,FALSE) ->  | V18: =T2*0.2 -> 0 | W18: =V18*U2 -> 0 | X18: 0 | Z18: 89807347 | AH18: Raccordement des capteurs en montage horizontal juxtaposés | AI18: =VLOOKUP(AP18,'Liste de prix'!$1:$1048576,2,FALSE) ->  | AJ18: =VLOOKUP(AP18,'Liste de prix'!$1:$1048576,3,FALSE) ->  | AK18: =VLOOKUP(AP18,'Liste de prix'!$1:$1048576,4,FALSE) ->  | AL18: =AJ2*0.2 -> 0 | AM18: =AL18*AK2 -> 0 | AN18: 0 | AP18: 89807347
A20: 4 eme ligne | B20: Raccordement des capteurs en montage vertical juxtaposés ou horizontal superposés | C20: =VLOOKUP(J20,'Liste de prix'!$1:$1048576,2,FALSE) ->  | D20: =VLOOKUP(J20,'Liste de prix'!$1:$1048576,3,FALSE) ->  | E20: =VLOOKUP(J20,'Liste de prix'!$1:$1048576,4,FALSE) ->  | F20: =IF(D2>=5,1,0) -> 0 | G20: =F20*E2 -> 0 | H20: 0 | J20: 89807372 | Q20: 4 eme ligne | R20: Raccordement des capteurs en montage vertical juxtaposés ou horizontal superposés | S20: =VLOOKUP(Z20,'Liste de prix'!$1:$1048576,2,FALSE) ->  | T20: =VLOOKUP(Z20,'Liste de prix'!$1:$1048576,3,FALSE) ->  | U20: =VLOOKUP(Z20,'Liste de prix'!$1:$1048576,4,FALSE) ->  | V20: =IF(T2>=5,1,0) -> 0 | W20: =V20*U2 -> 0 | X20: 0 | Z20: 89807372 | AG20: 4 eme ligne | AH20: Raccordement des capteurs en montage vertical juxtaposés ou horizontal superposés | AI20: =VLOOKUP(AP20,'Liste de prix'!$1:$1048576,2,FALSE) ->  | AJ20: =VLOOKUP(AP20,'Liste de prix'!$1:$1048576,3,FALSE) ->  | AK20: =VLOOKUP(AP20,'Liste de prix'!$1:$1048576,4,FALSE) ->  | AL20: =IF(AJ2>=5,1,0) -> 0 | AM20: =AL20*AK2 -> 0 | AN20: 0 | AP20: 89807372
B21: Raccordement des capteurs en montage horizontal juxtaposés | C21: - | D21: - | E21: - | F21: - | G21: - | H21: 0 | R21: Raccordement des capteurs en montage horizontal juxtaposés | S21: - | T21: - | U21: - | V21: - | W21: - | X21: 0 | AH21: Raccordement des capteurs en montage horizontal juxtaposés | AI21: - | AJ21: - | AK21: 0 | AL21: - | AM21: - | AN21: 0
A24: RECAPITULATION | Q24: RECAPITULATION | AG24: RECAPITULATION
A25: choix | B25: ='Pro C '!#REF! ->  | Q25: choix | R25: ='Pro C '!#REF! ->  | AG25: choix | AH25: ='Pro C '!#REF! -> 
E26: nbre colis arronndi | U26: nbre colis arronndi | AK26: nbre colis arronndi
A27: 1ere ligne | B27: =VLOOKUP(B25,B11:C12,2,FALSE) ->  | C27: =VLOOKUP(B27,C11:D15,2,FALSE) ->  | D27: =VLOOKUP(C27,D11:E15,2,FALSE) ->  | E27: =VLOOKUP(B25,B11:H12,7,FALSE) ->  | Q27: 1ere ligne | R27: =VLOOKUP(R25,R11:S12,2,FALSE) ->  | S27: =VLOOKUP(R27,S11:T15,2,FALSE) ->  | T27: =VLOOKUP(S27,T11:U15,2,FALSE) ->  | U27: =VLOOKUP(R25,R11:X12,7,FALSE) ->  | AG27: 1ere ligne | AH27: =VLOOKUP(AH25,AH11:AI12,2,FALSE) ->  | AI27: =VLOOKUP(AH27,AI11:AJ15,2,FALSE) ->  | AJ27: =VLOOKUP(AI27,AJ11:AK15,2,FALSE) ->  | AK27: =VLOOKUP(AH25,AH11:AN12,7,FALSE) ->  | AV27: =AK27+U27+E27 -> 
A28: 2em ligne | B28: =VLOOKUP(B25,B14:C15,2,FALSE) ->  | C28: =VLOOKUP(B28,C14:D18,2,FALSE) ->  | D28: =VLOOKUP(C28,D14:E18,2,FALSE) ->  | E28: =VLOOKUP(B25,B14:H15,7,FALSE) ->  | Q28: 2em ligne | R28: =VLOOKUP(R25,R14:S15,2,FALSE) ->  | S28: =VLOOKUP(R28,S14:T18,2,FALSE) ->  | T28: =VLOOKUP(S28,T14:U18,2,FALSE) ->  | U28: =VLOOKUP(R25,R14:X15,7,FALSE) ->  | AG28: 2em ligne | AH28: =VLOOKUP(AH25,AH14:AI15,2,FALSE) ->  | AI28: =VLOOKUP(AH28,AI14:AJ18,2,FALSE) ->  | AJ28: =VLOOKUP(AI28,AJ14:AK18,2,FALSE) ->  | AK28: =VLOOKUP(AH25,AH14:AN15,7,FALSE) ->  | AV28: =AK28+U28+E28 -> 
A29: 3eme ligne | B29: =VLOOKUP(B25,B17:C18,2,FALSE) ->  | C29: =VLOOKUP(B29,C17:D18,2,FALSE) ->  | D29: =VLOOKUP(C29,D17:E18,2,FALSE) ->  | E29: =VLOOKUP(B25,B17:H18,7,FALSE) ->  | Q29: 3eme ligne | R29: =VLOOKUP(R25,R17:S18,2,FALSE) ->  | S29: =VLOOKUP(R29,S17:T18,2,FALSE) ->  | T29: =VLOOKUP(S29,T17:U18,2,FALSE) ->  | U29: =VLOOKUP(R25,R17:X18,7,FALSE) ->  | AG29: 3eme ligne | AH29: =VLOOKUP(AH25,AH17:AI18,2,FALSE) ->  | AI29: =VLOOKUP(AH29,AI17:AJ18,2,FALSE) ->  | AJ29: =VLOOKUP(AI29,AJ17:AK18,2,FALSE) ->  | AK29: =VLOOKUP(AH25,AH17:AN18,7,FALSE) ->  | AV29: =AK29+U29+E29 -> 
A30: 4 eme ligne | B30: =VLOOKUP(B25,B20:C21,2,FALSE) ->  | C30: =VLOOKUP(B30,C20:D21,2,FALSE) ->  | D30: =VLOOKUP(C30,D20:E21,2,FALSE) ->  | E30: =VLOOKUP(B25,B20:H21,7,FALSE) ->  | Q30: 4 eme ligne | R30: =VLOOKUP(R25,R20:S21,2,FALSE) ->  | S30: =VLOOKUP(R30,S20:T21,2,FALSE) ->  | T30: =VLOOKUP(S30,T20:U21,2,FALSE) ->  | U30: =VLOOKUP(R25,R20:X21,7,FALSE) ->  | AG30: 4 eme ligne | AH30: =VLOOKUP(AH25,AH20:AI21,2,FALSE) ->  | AI30: =VLOOKUP(AH30,AI20:AJ21,2,FALSE) ->  | AJ30: =VLOOKUP(AI30,AJ20:AK21,2,FALSE) ->  | AK30: =VLOOKUP(AH25,AH20:AN21,7,FALSE) ->  | AV30: =AK30+U30+E30 -> 
B35: ►ELEMENTS DE POSE SUR TOIT OU TERRASSE | R35: ►ELEMENTS DE POSE SUR TOIT OU TERRASSE | AH35: ►ELEMENTS DE POSE SUR TOIT OU TERRASSE
A38: liste validation | B38: Montage vertical juxt. ou horizontal superposés sur profilés de 1,3 m | Q38: liste validation | R38: Montage vertical juxt. ou horizontal superposés sur profilés de 1,3 m | AG38: liste validation | AH38: Montage vertical juxt. ou horizontal superposés sur profilés de 1,3 m
A39: "montagevertihori" | B39: Montage vertical juxt. ou horizontal superposés sur profilés de 5,2 m | Q39: "montagevertihori" | R39: Montage vertical juxt. ou horizontal superposés sur profilés de 5,2 m | AG39: "montagevertihori" | AH39: Montage vertical juxt. ou horizontal superposés sur profilés de 5,2 m
B40: Montage vertical juxt. ou horizontal superposés sur profilés de 2,6 m | R40: Montage vertical juxt. ou horizontal superposés sur profilés de 2,6 m | AH40: Montage vertical juxt. ou horizontal superposés sur profilés de 2,6 m
A44: liste validation | B44: Montage HORIZONTAL juxtaposés | Q44: liste validation | R44: Montage HORIZONTAL juxtaposés | AG44: liste validation | AH44: Montage HORIZONTAL juxtaposés
A45: "montagehori" | Q45: "montagehori" | AG45: "montagehori"
G47: nbre colis final | H47: nbre colis arrondi | J47: Ref | W47: nbre colis final | X47: nbre colis arrondi | Z47: Ref | AM47: nbre colis final | AN47: nbre colis arrondi | AP47: Ref
A48: 1ere ligne | B48: Montage vertical juxt. ou horizontal superposés sur profilés de 1,3 m | C48: =VLOOKUP(J48,'Liste de prix'!$1:$1048576,2,FALSE) ->  | D48: =VLOOKUP(J48,'Liste de prix'!$1:$1048576,3,FALSE) ->  | E48: =VLOOKUP(J48,'Liste de prix'!$1:$1048576,4,FALSE) ->  | F48: =IF(D2<=4,D2,"faux") -> 0 | G48: =IF(F48<>"faux",F48*E2,"IMPOSSIBLE") -> 0 | H48: =G48 -> 0 | J48: 100008015 | Q48: 1ere ligne | R48: Montage vertical juxt. ou horizontal superposés sur profilés de 1,3 m | S48: =VLOOKUP(Z48,'Liste de prix'!$1:$1048576,2,FALSE) ->  | T48: =VLOOKUP(Z48,'Liste de prix'!$1:$1048576,3,FALSE) ->  | U48: =VLOOKUP(Z48,'Liste de prix'!$1:$1048576,4,FALSE) ->  | V48: =IF(T2<=4,T2,"faux") -> 0 | W48: =IF(V48<>"faux",V48*U2,"IMPOSSIBLE") -> 0 | X48: =W48 -> 0 | Z48: 100008015 | AG48: 1ere ligne | AH48: Montage vertical juxt. ou horizontal superposés sur profilés de 1,3 m | AI48: =VLOOKUP(AP48,'Liste de prix'!$1:$1048576,2,FALSE) ->  | AJ48: =VLOOKUP(AP48,'Liste de prix'!$1:$1048576,3,FALSE) ->  | AK48: =VLOOKUP(AP48,'Liste de prix'!$1:$1048576,4,FALSE) ->  | AL48: =IF(AJ2<=4,AJ2,"faux") -> 0 | AM48: =IF(AL48<>"faux",AL48*AK2,"IMPOSSIBLE") -> 0 | AN48: =AM48 -> 0 | AP48: 100008015
B49: Montage vertical juxt. ou horizontal superposés sur profilés de 5,2 m | C49: =VLOOKUP(J49,'Liste de prix'!$1:$1048576,2,FALSE) ->  | D49: =VLOOKUP(J49,'Liste de prix'!$1:$1048576,3,FALSE) ->  | E49: =VLOOKUP(J49,'Liste de prix'!$1:$1048576,4,FALSE) ->  | F49: =IF(D2=2,0.2,IF(D2=3,0.4,IF(D2=4,0.5,IF(D2=5,0.6,IF(D2=6,0.8,IF(D2=7,0.9,IF(D2=8,1,"faux"))))))) -> faux | G49: =IF(F49="faux",0,F49*E2) -> 0 | H49: =ROUNDUP(G49,0) -> 0 | J49: 89807357 | R49: Montage vertical juxt. ou horizontal superposés sur profilés de 5,2 m | S49: =VLOOKUP(Z49,'Liste de prix'!$1:$1048576,2,FALSE) ->  | T49: =VLOOKUP(Z49,'Liste de prix'!$1:$1048576,3,FALSE) ->  | U49: =VLOOKUP(Z49,'Liste de prix'!$1:$1048576,4,FALSE) ->  | V49: =IF(T2=2,0.2,IF(T2=3,0.4,IF(T2=4,0.5,IF(T2=5,0.6,IF(T2=6,0.8,IF(T2=7,0.9,IF(T2=8,1,"faux"))))))) -> faux | W49: =IF(V49="faux",0,V49*U2) -> 0 | X49: =ROUNDUP(W49,0) -> 0 | Z49: 89807357 | AH49: Montage vertical juxt. ou horizontal superposés sur profilés de 5,2 m | AI49: =VLOOKUP(AP49,'Liste de prix'!$1:$1048576,2,FALSE) ->  | AJ49: =VLOOKUP(AP49,'Liste de prix'!$1:$1048576,3,FALSE) ->  | AK49: =VLOOKUP(AP49,'Liste de prix'!$1:$1048576,4,FALSE) ->  | AL49: =IF(AJ2=2,0.2,IF(AJ2=3,0.4,IF(AJ2=4,0.5,IF(AJ2=5,0.6,IF(AJ2=6,0.8,IF(AJ2=7,0.9,IF(AJ2=8,1,"faux"))))))) -> faux | AM49: =IF(AL49="faux",0,AL49*AK2) -> 0 | AN49: =ROUNDUP(AM49,0) -> 0 | AP49: 89807357
B50: Montage vertical juxt. ou horizontal superposés sur profilés de 2,6 m | C50: =VLOOKUP(J50,'Liste de prix'!$1:$1048576,2,FALSE) ->  | D50: =VLOOKUP(J50,'Liste de prix'!$1:$1048576,3,FALSE) ->  | E50: =VLOOKUP(J50,'Liste de prix'!$1:$1048576,4,FALSE) ->  | F50: =IF(D2=2,0.5,IF(D2=3,0.75,IF(D2=4,1,IF(D2=5,1.25,IF(D2=6,1.5,IF(D2=7,1.75,IF(D2=8,2))))))) -> FALSE | G50: =F50*E2 -> 0 | H50: 0 | J50: 89807356 | R50: Montage vertical juxt. ou horizontal superposés sur profilés de 2,6 m | S50: =VLOOKUP(Z50,'Liste de prix'!$1:$1048576,2,FALSE) ->  | T50: =VLOOKUP(Z50,'Liste de prix'!$1:$1048576,3,FALSE) ->  | U50: =VLOOKUP(Z50,'Liste de prix'!$1:$1048576,4,FALSE) ->  | V50: =IF(T2=2,0.5,IF(T2=3,0.75,IF(T2=4,1,IF(T2=5,1.25,IF(T2=6,1.5,IF(T2=7,1.75,IF(T2=8,2))))))) -> FALSE | W50: =V50*U2 -> 0 | X50: 0 | Z50: 89807356 | AH50: Montage vertical juxt. ou horizontal superposés sur profilés de 2,6 m | AI50: =VLOOKUP(AP50,'Liste de prix'!$1:$1048576,2,FALSE) ->  | AJ50: =VLOOKUP(AP50,'Liste de prix'!$1:$1048576,3,FALSE) ->  | AK50: =VLOOKUP(AP50,'Liste de prix'!$1:$1048576,4,FALSE) ->  | AL50: =IF(AJ2=2,0.5,IF(AJ2=3,0.75,IF(AJ2=4,1,IF(AJ2=5,1.25,IF(AJ2=6,1.5,IF(AJ2=7,1.75,IF(AJ2=8,2))))))) -> FALSE | AM50: =AL50*AK2 -> 0 | AN50: 0 | AP50: 89807356
B51: Montage HORIZONTAL juxtaposés | C51: =VLOOKUP(J51,'Liste de prix'!$1:$1048576,2,FALSE) ->  | D51: =VLOOKUP(J51,'Liste de prix'!$1:$1048576,3,FALSE) ->  | E51: =VLOOKUP(J51,'Liste de prix'!$1:$1048576,4,FALSE) ->  | F51: =IF(D2<4,1,2) -> 1 | G51: =F51*E2 -> 0 | H51: 0 | J51: 89807357 | R51: Montage HORIZONTAL juxtaposés | S51: =VLOOKUP(Z51,'Liste de prix'!$1:$1048576,2,FALSE) ->  | T51: =VLOOKUP(Z51,'Liste de prix'!$1:$1048576,3,FALSE) ->  | U51: =VLOOKUP(Z51,'Liste de prix'!$1:$1048576,4,FALSE) ->  | V51: =IF(T2<4,1,2) -> 1 | W51: =V51*U2 -> 0 | X51: 0 | Z51: 89807357 | AH51: Montage HORIZONTAL juxtaposés | AI51: =VLOOKUP(AP51,'Liste de prix'!$1:$1048576,2,FALSE) ->  | AJ51: =VLOOKUP(AP51,'Liste de prix'!$1:$1048576,3,FALSE) ->  | AK51: =VLOOKUP(AP51,'Liste de prix'!$1:$1048576,4,FALSE) ->  | AL51: =IF(AJ2<4,1,2) -> 1 | AM51: =AL51*AK2 -> 0 | AN51: 0 | AP51: 89807357
A53: 2eme ligne | B53: Montage vertical juxt. ou horizontal superposés sur profilés de 1,3 m | C53: =VLOOKUP(J53,'Liste de prix'!$1:$1048576,2,FALSE) ->  | D53: =VLOOKUP(J53,'Liste de prix'!$1:$1048576,3,FALSE) ->  | E53: =VLOOKUP(J53,'Liste de prix'!$1:$1048576,4,FALSE) ->  | F53: =D2*0.2 -> 0 | G53: =IF(F53<>"faux",F53*E2,0) -> 0 | H53: 0 | J53: 89807348 | Q53: 2eme ligne | R53: Montage vertical juxt. ou horizontal superposés sur profilés de 1,3 m | S53: =VLOOKUP(Z53,'Liste de prix'!$1:$1048576,2,FALSE) ->  | T53: =VLOOKUP(Z53,'Liste de prix'!$1:$1048576,3,FALSE) ->  | U53: =VLOOKUP(Z53,'Liste de prix'!$1:$1048576,4,FALSE) ->  | V53: =T2*0.2 -> 0 | W53: =IF(V53<>"faux",V53*U2,0) -> 0 | X53: 0 | Z53: 89807348 | AG53: 2eme ligne | AH53: Montage vertical juxt. ou horizontal superposés sur profilés de 1,3 m | AI53: =VLOOKUP(AP53,'Liste de prix'!$1:$1048576,2,FALSE) ->  | AJ53: =VLOOKUP(AP53,'Liste de prix'!$1:$1048576,3,FALSE) ->  | AK53: =VLOOKUP(AP53,'Liste de prix'!$1:$1048576,4,FALSE) ->  | AL53: =AJ2*0.2 -> 0 | AM53: =IF(AL53<>"faux",AL53*AK2,0) -> 0 | AN53: 0 | AP53: 89807348
B54: Montage vertical juxt. ou horizontal superposés sur profilés de 5,2 m | C54: =VLOOKUP(J54,'Liste de prix'!$1:$1048576,2,FALSE) -> KIT COUPLEURS (2 PCES) POUR PROFILES (FIXATION PROFILES JUXTAPOSÉS) | D54: =VLOOKUP(J54,'Liste de prix'!$1:$1048576,3,FALSE) -> EG307 | E54: =VLOOKUP(J54,'Liste de prix'!$1:$1048576,4,FALSE) -> 31 | F54: =IF(D2<5,"faux",1) -> faux | G54: =IF(F54<>"faux",F54*E2,0) -> 0 | H54: 0 | J54: 89807307 | R54: Montage vertical juxt. ou horizontal superposés sur profilés de 5,2 m | S54: =VLOOKUP(Z54,'Liste de prix'!$1:$1048576,2,FALSE) -> KIT COUPLEURS (2 PCES) POUR PROFILES (FIXATION PROFILES JUXTAPOSÉS) | T54: =VLOOKUP(Z54,'Liste de prix'!$1:$1048576,3,FALSE) -> EG307 | U54: =VLOOKUP(Z54,'Liste de prix'!$1:$1048576,4,FALSE) -> 31 | V54: =IF(T2<5,"faux",1) -> faux | W54: =IF(V54<>"faux",V54*U2,0) -> 0 | X54: 0 | Z54: 89807307 | AH54: Montage vertical juxt. ou horizontal superposés sur profilés de 5,2 m | AI54: =VLOOKUP(AP54,'Liste de prix'!$1:$1048576,2,FALSE) -> KIT COUPLEURS (2 PCES) POUR PROFILES (FIXATION PROFILES JUXTAPOSÉS) | AJ54: =VLOOKUP(AP54,'Liste de prix'!$1:$1048576,3,FALSE) -> EG307 | AK54: =VLOOKUP(AP54,'Liste de prix'!$1:$1048576,4,FALSE) -> 31 | AL54: =IF(AJ2<5,"faux",1) -> faux | AM54: =IF(AL54<>"faux",AL54*AK2,0) -> 0 | AN54: 0 | AP54: 89807307
B55: Montage vertical juxt. ou horizontal superposés sur profilés de 2,6 m | C55: =VLOOKUP(J55,'Liste de prix'!$1:$1048576,2,FALSE) -> KIT COUPLEURS (2 PCES) POUR PROFILES (FIXATION PROFILES JUXTAPOSÉS) | D55: =VLOOKUP(J55,'Liste de prix'!$1:$1048576,3,FALSE) -> EG307 | E55: =VLOOKUP(J55,'Liste de prix'!$1:$1048576,4,FALSE) -> 31 | F55: =IF(D2=2,0,IF(D2=3,1,IF(D2=4,1,IF(D2=5,2,IF(D2=6,2,IF(D2=7,3,IF(D2=8,3))))))) -> FALSE | G55: =F55*E2 -> 0 | H55: 0 | J55: 89807307 | R55: Montage vertical juxt. ou horizontal superposés sur profilés de 2,6 m | S55: =VLOOKUP(Z55,'Liste de prix'!$1:$1048576,2,FALSE) -> KIT COUPLEURS (2 PCES) POUR PROFILES (FIXATION PROFILES JUXTAPOSÉS) | T55: =VLOOKUP(Z55,'Liste de prix'!$1:$1048576,3,FALSE) -> EG307 | U55: =VLOOKUP(Z55,'Liste de prix'!$1:$1048576,4,FALSE) -> 31 | V55: =IF(T2=2,0,IF(T2=3,1,IF(T2=4,1,IF(T2=5,2,IF(T2=6,2,IF(T2=7,3,IF(T2=8,3))))))) -> FALSE | W55: =V55*U2 -> 0 | X55: 0 | Z55: 89807307 | AH55: Montage vertical juxt. ou horizontal superposés sur profilés de 2,6 m | AI55: =VLOOKUP(AP55,'Liste de prix'!$1:$1048576,2,FALSE) -> KIT COUPLEURS (2 PCES) POUR PROFILES (FIXATION PROFILES JUXTAPOSÉS) | AJ55: =VLOOKUP(AP55,'Liste de prix'!$1:$1048576,3,FALSE) -> EG307 | AK55: =VLOOKUP(AP55,'Liste de prix'!$1:$1048576,4,FALSE) -> 31 | AL55: =IF(AJ2=2,0,IF(AJ2=3,1,IF(AJ2=4,1,IF(AJ2=5,2,IF(AJ2=6,2,IF(AJ2=7,3,IF(AJ2=8,3))))))) -> FALSE | AM55: =AL55*AK2 -> 0 | AN55: 0 | AP55: 89807307
B56: Montage HORIZONTAL juxtaposés | C56: =VLOOKUP(J56,'Liste de prix'!$1:$1048576,2,FALSE) ->  | D56: =VLOOKUP(J56,'Liste de prix'!$1:$1048576,3,FALSE) ->  | E56: =VLOOKUP(J56,'Liste de prix'!$1:$1048576,4,FALSE) ->  | F56: =IF(D2=3,1,FALSE) -> FALSE | G56: =F56*E2 -> 0 | H56: 0 | J56: 89807356 | R56: Montage HORIZONTAL juxtaposés | S56: =VLOOKUP(Z56,'Liste de prix'!$1:$1048576,2,FALSE) ->  | T56: =VLOOKUP(Z56,'Liste de prix'!$1:$1048576,3,FALSE) ->  | U56: =VLOOKUP(Z56,'Liste de prix'!$1:$1048576,4,FALSE) ->  | V56: =IF(T2=3,1,FALSE) -> FALSE | W56: =V56*U2 -> 0 | X56: 0 | Z56: 89807356 | AH56: Montage HORIZONTAL juxtaposés | AI56: =VLOOKUP(AP56,'Liste de prix'!$1:$1048576,2,FALSE) ->  | AJ56: =VLOOKUP(AP56,'Liste de prix'!$1:$1048576,3,FALSE) ->  | AK56: =VLOOKUP(AP56,'Liste de prix'!$1:$1048576,4,FALSE) ->  | AL56: =IF(AJ2=3,1,FALSE) -> FALSE | AM56: =AL56*AK2 -> 0 | AN56: 0 | AP56: 89807356
A58: 3eme ligne | B58: Montage vertical juxt. ou horizontal superposés sur profilés de 1,3 m | C58: =VLOOKUP(J58,'Liste de prix'!$1:$1048576,2,FALSE) ->  | D58: =VLOOKUP(J58,'Liste de prix'!$1:$1048576,3,FALSE) ->  | E58: =VLOOKUP(J58,'Liste de prix'!$1:$1048576,4,FALSE) ->  | F58: =D2*0.2 -> 0 | G58: =IF(F58<>"faux",F58*E2,0) -> 0 | H58: 0 | J58: 89807365 | Q58: 3eme ligne | R58: Montage vertical juxt. ou horizontal superposés sur profilés de 1,3 m | S58: =VLOOKUP(Z58,'Liste de prix'!$1:$1048576,2,FALSE) ->  | T58: =VLOOKUP(Z58,'Liste de prix'!$1:$1048576,3,FALSE) ->  | U58: =VLOOKUP(Z58,'Liste de prix'!$1:$1048576,4,FALSE) ->  | V58: =T2*0.2 -> 0 | W58: =IF(V58<>"faux",V58*U2,0) -> 0 | X58: 0 | Z58: 89807365 | AG58: 3eme ligne | AH58: Montage vertical juxt. ou horizontal superposés sur profilés de 1,3 m | AI58: =VLOOKUP(AP58,'Liste de prix'!$1:$1048576,2,FALSE) ->  | AJ58: =VLOOKUP(AP58,'Liste de prix'!$1:$1048576,3,FALSE) ->  | AK58: =VLOOKUP(AP58,'Liste de prix'!$1:$1048576,4,FALSE) ->  | AL58: =AJ2*0.2 -> 0 | AM58: =IF(AL58<>"faux",AL58*AK2,0) -> 0 | AN58: 0 | AP58: 89807365
B59: Montage vertical juxt. ou horizontal superposés sur profilés de 5,2 m | C59: =VLOOKUP(J59,'Liste de prix'!$1:$1048576,2,FALSE) ->  | D59: =VLOOKUP(J59,'Liste de prix'!$1:$1048576,3,FALSE) ->  | E59: =VLOOKUP(J59,'Liste de prix'!$1:$1048576,4,FALSE) ->  | F59: =D2*0.2 -> 0 | G59: =F59*E2 -> 0 | H59: 0 | J59: 89807348 | R59: Montage vertical juxt. ou horizontal superposés sur profilés de 5,2 m | S59: =VLOOKUP(Z59,'Liste de prix'!$1:$1048576,2,FALSE) ->  | T59: =VLOOKUP(Z59,'Liste de prix'!$1:$1048576,3,FALSE) ->  | U59: =VLOOKUP(Z59,'Liste de prix'!$1:$1048576,4,FALSE) ->  | V59: =T2*0.2 -> 0 | W59: =V59*U2 -> 0 | X59: 0 | Z59: 89807348 | AH59: Montage vertical juxt. ou horizontal superposés sur profilés de 5,2 m | AI59: =VLOOKUP(AP59,'Liste de prix'!$1:$1048576,2,FALSE) ->  | AJ59: =VLOOKUP(AP59,'Liste de prix'!$1:$1048576,3,FALSE) ->  | AK59: =VLOOKUP(AP59,'Liste de prix'!$1:$1048576,4,FALSE) ->  | AL59: =AJ2*0.2 -> 0 | AM59: =AL59*AK2 -> 0 | AN59: 0 | AP59: 89807348
B60: Montage vertical juxt. ou horizontal superposés sur profilés de 2,6 m | C60: =VLOOKUP(J60,'Liste de prix'!$1:$1048576,2,FALSE) ->  | D60: =VLOOKUP(J60,'Liste de prix'!$1:$1048576,3,FALSE) ->  | E60: =VLOOKUP(J60,'Liste de prix'!$1:$1048576,4,FALSE) ->  | F60: =0.2*D2 -> 0 | G60: =F60*E2 -> 0 | H60: 0 | J60: 89807348 | R60: Montage vertical juxt. ou horizontal superposés sur profilés de 2,6 m | S60: =VLOOKUP(Z60,'Liste de prix'!$1:$1048576,2,FALSE) ->  | T60: =VLOOKUP(Z60,'Liste de prix'!$1:$1048576,3,FALSE) ->  | U60: =VLOOKUP(Z60,'Liste de prix'!$1:$1048576,4,FALSE) ->  | V60: =0.2*T2 -> 0 | W60: =V60*U2 -> 0 | X60: 0 | Z60: 89807348 | AH60: Montage vertical juxt. ou horizontal superposés sur profilés de 2,6 m | AI60: =VLOOKUP(AP60,'Liste de prix'!$1:$1048576,2,FALSE) ->  | AJ60: =VLOOKUP(AP60,'Liste de prix'!$1:$1048576,3,FALSE) ->  | AK60: =VLOOKUP(AP60,'Liste de prix'!$1:$1048576,4,FALSE) ->  | AL60: =0.2*AJ2 -> 0 | AM60: =AL60*AK2 -> 0 | AN60: 0 | AP60: 89807348
B61: Montage HORIZONTAL juxtaposés | C61: =VLOOKUP(J61,'Liste de prix'!$1:$1048576,2,FALSE) -> KIT COUPLEURS (2 PCES) POUR PROFILES (FIXATION PROFILES JUXTAPOSÉS) | D61: =VLOOKUP(J61,'Liste de prix'!$1:$1048576,3,FALSE) -> EG307 | E61: =VLOOKUP(J61,'Liste de prix'!$1:$1048576,4,FALSE) -> 31 | F61: =IF(D2=3,1,IF(D2=4,1,0)) -> 0 | G61: =F61*E2 -> 0 | H61: 0 | J61: 89807307 | R61: Montage HORIZONTAL juxtaposés | S61: =VLOOKUP(Z61,'Liste de prix'!$1:$1048576,2,FALSE) -> KIT COUPLEURS (2 PCES) POUR PROFILES (FIXATION PROFILES JUXTAPOSÉS) | T61: =VLOOKUP(Z61,'Liste de prix'!$1:$1048576,3,FALSE) -> EG307 | U61: =VLOOKUP(Z61,'Liste de prix'!$1:$1048576,4,FALSE) -> 31 | V61: =IF(T2=3,1,IF(T2=4,1,0)) -> 0 | W61: =V61*U2 -> 0 | X61: 0 | Z61: 89807307 | AH61: Montage HORIZONTAL juxtaposés | AI61: =VLOOKUP(AP61,'Liste de prix'!$1:$1048576,2,FALSE) -> KIT COUPLEURS (2 PCES) POUR PROFILES (FIXATION PROFILES JUXTAPOSÉS) | AJ61: =VLOOKUP(AP61,'Liste de prix'!$1:$1048576,3,FALSE) -> EG307 | AK61: =VLOOKUP(AP61,'Liste de prix'!$1:$1048576,4,FALSE) -> 31 | AL61: =IF(AJ2=3,1,IF(AJ2=4,1,0)) -> 0 | AM61: =AL61*AK2 -> 0 | AN61: 0 | AP61: 89807307
A63: 4eme ligne | B63: Montage vertical juxt. ou horizontal superposés sur profilés de 1,3 m | C63: - | D63: - | E63: - | F63: - | G63: 0 | H63: 0 | Q63: 4eme ligne | R63: Montage vertical juxt. ou horizontal superposés sur profilés de 1,3 m | S63: - | T63: - | U63: - | V63: - | W63: - | X63: 0 | AG63: 4eme ligne | AH63: Montage vertical juxt. ou horizontal superposés sur profilés de 1,3 m | AI63: - | AJ63: - | AK63: - | AL63: - | AM63: 0 | AN63: 0
B64: Montage vertical juxt. ou horizontal superposés sur profilés de 5,2 m | C64: =VLOOKUP(J64,'Liste de prix'!$1:$1048576,2,FALSE) ->  | D64: =VLOOKUP(J64,'Liste de prix'!$1:$1048576,3,FALSE) ->  | E64: =VLOOKUP(J64,'Liste de prix'!$1:$1048576,4,FALSE) ->  | F64: =D2*0.2 -> 0 | G64: =F64*E2 -> 0 | H64: 0 | J64: 89807365 | R64: Montage vertical juxt. ou horizontal superposés sur profilés de 5,2 m | S64: =VLOOKUP(Z64,'Liste de prix'!$1:$1048576,2,FALSE) ->  | T64: =VLOOKUP(Z64,'Liste de prix'!$1:$1048576,3,FALSE) ->  | U64: =VLOOKUP(Z64,'Liste de prix'!$1:$1048576,4,FALSE) ->  | V64: =T2*0.2 -> 0 | W64: =V64*U2 -> 0 | X64: 0 | Z64: 89807365 | AH64: Montage vertical juxt. ou horizontal superposés sur profilés de 5,2 m | AI64: =VLOOKUP(AP64,'Liste de prix'!$1:$1048576,2,FALSE) ->  | AJ64: =VLOOKUP(AP64,'Liste de prix'!$1:$1048576,3,FALSE) ->  | AK64: =VLOOKUP(AP64,'Liste de prix'!$1:$1048576,4,FALSE) ->  | AL64: =AJ2*0.2 -> 0 | AM64: =AL64*AK2 -> 0 | AN64: 0 | AP64: 89807365
B65: Montage vertical juxt. ou horizontal superposés sur profilés de 2,6 m | C65: =VLOOKUP(J65,'Liste de prix'!$1:$1048576,2,FALSE) ->  | D65: =VLOOKUP(J65,'Liste de prix'!$1:$1048576,3,FALSE) ->  | E65: =VLOOKUP(J65,'Liste de prix'!$1:$1048576,4,FALSE) ->  | F65: =0.2*D2 -> 0 | G65: =F65*E2 -> 0 | H65: 0 | J65: 89807365 | R65: Montage vertical juxt. ou horizontal superposés sur profilés de 2,6 m | S65: =VLOOKUP(Z65,'Liste de prix'!$1:$1048576,2,FALSE) ->  | T65: =VLOOKUP(Z65,'Liste de prix'!$1:$1048576,3,FALSE) ->  | U65: =VLOOKUP(Z65,'Liste de prix'!$1:$1048576,4,FALSE) ->  | V65: =0.2*T2 -> 0 | W65: =V65*U2 -> 0 | X65: 0 | Z65: 89807365 | AH65: Montage vertical juxt. ou horizontal superposés sur profilés de 2,6 m | AI65: =VLOOKUP(AP65,'Liste de prix'!$1:$1048576,2,FALSE) ->  | AJ65: =VLOOKUP(AP65,'Liste de prix'!$1:$1048576,3,FALSE) ->  | AK65: =VLOOKUP(AP65,'Liste de prix'!$1:$1048576,4,FALSE) ->  | AL65: =0.2*AJ2 -> 0 | AM65: =AL65*AK2 -> 0 | AN65: 0 | AP65: 89807365
B66: Montage HORIZONTAL juxtaposés | C66: =VLOOKUP(J66,'Liste de prix'!$1:$1048576,2,FALSE) ->  | D66: =VLOOKUP(J66,'Liste de prix'!$1:$1048576,3,FALSE) ->  | E66: =VLOOKUP(J66,'Liste de prix'!$1:$1048576,4,FALSE) ->  | F66: =D2*0.2 -> 0 | G66: =F66*E2 -> 0 | H66: 0 | J66: 89807348 | R66: Montage HORIZONTAL juxtaposés | S66: =VLOOKUP(Z66,'Liste de prix'!$1:$1048576,2,FALSE) ->  | T66: =VLOOKUP(Z66,'Liste de prix'!$1:$1048576,3,FALSE) ->  | U66: =VLOOKUP(Z66,'Liste de prix'!$1:$1048576,4,FALSE) ->  | V66: =T2*0.2 -> 0 | W66: =V66*U2 -> 0 | X66: 0 | Z66: 89807348 | AH66: Montage HORIZONTAL juxtaposés | AI66: =VLOOKUP(AP66,'Liste de prix'!$1:$1048576,2,FALSE) ->  | AJ66: =VLOOKUP(AP66,'Liste de prix'!$1:$1048576,3,FALSE) ->  | AK66: =VLOOKUP(AP66,'Liste de prix'!$1:$1048576,4,FALSE) ->  | AL66: =AJ2*0.2 -> 0 | AM66: =AL66*AK2 -> 0 | AN66: 0 | AP66: 89807348
A68: 5eme ligne | B68: Montage vertical juxt. ou horizontal superposés sur profilés de 1,3 m | C68: - | D68: - | E68: - | G68: 0 | H68: 0 | Q68: 5eme ligne | R68: Montage vertical juxt. ou horizontal superposés sur profilés de 1,3 m | S68: - | T68: - | U68: - | W68: 0 | X68: 0 | AG68: 5eme ligne | AH68: Montage vertical juxt. ou horizontal superposés sur profilés de 1,3 m | AI68: - | AJ68: - | AK68: - | AM68: 0 | AN68: 0
B69: Montage vertical juxt. ou horizontal superposés sur profilés de 5,2 m | C69: - | D69: - | E69: - | G69: 0 | H69: 0 | R69: Montage vertical juxt. ou horizontal superposés sur profilés de 5,2 m | S69: - | T69: - | U69: - | W69: 0 | X69: 0 | AH69: Montage vertical juxt. ou horizontal superposés sur profilés de 5,2 m | AI69: - | AJ69: - | AK69: - | AM69: 0 | AN69: 0
B70: Montage vertical juxt. ou horizontal superposés sur profilés de 2,6 m | C70: - | D70: - | E70: - | G70: 0 | H70: 0 | R70: Montage vertical juxt. ou horizontal superposés sur profilés de 2,6 m | S70: - | T70: - | U70: - | W70: 0 | X70: 0 | AH70: Montage vertical juxt. ou horizontal superposés sur profilés de 2,6 m | AI70: - | AJ70: - | AK70: - | AM70: 0 | AN70: 0
B71: Montage HORIZONTAL juxtaposés | C71: =VLOOKUP(J71,'Liste de prix'!$1:$1048576,2,FALSE) ->  | D71: =VLOOKUP(J71,'Liste de prix'!$1:$1048576,3,FALSE) ->  | E71: =VLOOKUP(J71,'Liste de prix'!$1:$1048576,4,FALSE) ->  | F71: =0.2*D2 -> 0 | G71: =F71*E2 -> 0 | H71: 0 | J71: 89807365 | R71: Montage HORIZONTAL juxtaposés | S71: =VLOOKUP(Z71,'Liste de prix'!$1:$1048576,2,FALSE) ->  | T71: =VLOOKUP(Z71,'Liste de prix'!$1:$1048576,3,FALSE) ->  | U71: =VLOOKUP(Z71,'Liste de prix'!$1:$1048576,4,FALSE) ->  | V71: =0.2*T2 -> 0 | W71: =V71*U2 -> 0 | X71: 0 | Z71: 89807365 | AH71: Montage HORIZONTAL juxtaposés | AI71: =VLOOKUP(AP71,'Liste de prix'!$1:$1048576,2,FALSE) ->  | AJ71: =VLOOKUP(AP71,'Liste de prix'!$1:$1048576,3,FALSE) ->  | AK71: =VLOOKUP(AP71,'Liste de prix'!$1:$1048576,4,FALSE) ->  | AL71: =0.2*AJ2 -> 0 | AM71: =AL71*AK2 -> 0 | AN71: 0 | AP71: 89807365
A74: RECAPITULATION | Q74: RECAPITULATION | AG74: RECAPITULATION
A75: choix | B75: ='Pro C '!D41 -> Montage vertical juxt. ou horizontal superposés sur profilés de 5,2 m | Q75: choix | R75: ='Pro C '!D41 -> Montage vertical juxt. ou horizontal superposés sur profilés de 5,2 m | AG75: choix | AH75: ='Pro C '!D41 -> Montage vertical juxt. ou horizontal superposés sur profilés de 5,2 m
E76: nbre colis arrondi | U76: nbre colis arrondi | AK76: nbre colis arrondi
A77: 1er ligne | B77: =VLOOKUP(B75,B48:C51,2,FALSE) ->  | C77: =VLOOKUP(B77,C48:D51,2,FALSE) ->  | D77: =VLOOKUP(C77,D48:E51,2,FALSE) ->  | E77: =VLOOKUP(B75,B48:H51,7,FALSE) -> 0 | Q77: 1er ligne | R77: =VLOOKUP(R75,R48:S51,2,FALSE) ->  | S77: =VLOOKUP(R77,S48:T51,2,FALSE) ->  | T77: =VLOOKUP(S77,T48:U51,2,FALSE) ->  | U77: =VLOOKUP(R75,R48:X51,7,FALSE) -> 0 | AG77: 1er ligne | AH77: =VLOOKUP(AH75,AH48:AI51,2,FALSE) ->  | AI77: =VLOOKUP(AH77,AI48:AJ51,2,FALSE) ->  | AJ77: =VLOOKUP(AI77,AJ48:AK51,2,FALSE) ->  | AK77: =VLOOKUP(AH75,AH48:AN51,7,FALSE) -> 0 | AV77: =AK77+U77+E77 -> 0
A78: 2eme ligne | B78: =VLOOKUP(B75,B53:C56,2,FALSE) -> KIT COUPLEURS (2 PCES) POUR PROFILES (FIXATION PROFILES JUXTAPOSÉS) | C78: =VLOOKUP(B78,C53:D56,2,FALSE) -> EG307 | D78: =VLOOKUP(C78,D53:E56,2,FALSE) -> 31 | E78: =VLOOKUP(B75,B53:H56,7,FALSE) -> 0 | Q78: 2eme ligne | R78: =VLOOKUP(R75,R53:S56,2,FALSE) -> KIT COUPLEURS (2 PCES) POUR PROFILES (FIXATION PROFILES JUXTAPOSÉS) | S78: =VLOOKUP(R78,S53:T56,2,FALSE) -> EG307 | T78: =VLOOKUP(S78,T53:U56,2,FALSE) -> 31 | U78: =VLOOKUP(R75,R53:X56,7,FALSE) -> 0 | AG78: 2eme ligne | AH78: =VLOOKUP(AH75,AH53:AI56,2,FALSE) -> KIT COUPLEURS (2 PCES) POUR PROFILES (FIXATION PROFILES JUXTAPOSÉS) | AI78: =VLOOKUP(AH78,AI53:AJ56,2,FALSE) -> EG307 | AJ78: =VLOOKUP(AI78,AJ53:AK56,2,FALSE) -> 31 | AK78: =VLOOKUP(AH75,AH53:AN56,7,FALSE) -> 0 | AV78: =AK78+U78+E78 -> 0
A79: 3eme | B79: =VLOOKUP(B75,B58:C61,2,FALSE) ->  | C79: =VLOOKUP(B79,C58:D61,2,FALSE) ->  | D79: =VLOOKUP(C79,D58:E61,2,FALSE) ->  | E79: =VLOOKUP(B75,B58:H61,7,FALSE) -> 0 | Q79: 3eme | R79: =VLOOKUP(R75,R58:S61,2,FALSE) ->  | S79: =VLOOKUP(R79,S58:T61,2,FALSE) ->  | T79: =VLOOKUP(S79,T58:U61,2,FALSE) ->  | U79: =VLOOKUP(R75,R58:X61,7,FALSE) -> 0 | AG79: 3eme | AH79: =VLOOKUP(AH75,AH58:AI61,2,FALSE) ->  | AI79: =VLOOKUP(AH79,AI58:AJ61,2,FALSE) ->  | AJ79: =VLOOKUP(AI79,AJ58:AK61,2,FALSE) ->  | AK79: =VLOOKUP(AH75,AH58:AN61,7,FALSE) -> 0 | AV79: =AK79+U79+E79 -> 0
A80: 4eme | B80: =VLOOKUP(B75,B63:C66,2,FALSE) ->  | C80: =VLOOKUP(B80,C63:D66,2,FALSE) ->  | D80: =VLOOKUP(C80,D63:E66,2,FALSE) ->  | E80: =VLOOKUP(B75,B63:H66,7,FALSE) -> 0 | Q80: 4eme | R80: =VLOOKUP(R75,R63:S66,2,FALSE) ->  | S80: =VLOOKUP(R80,S63:T66,2,FALSE) ->  | T80: =VLOOKUP(S80,T63:U66,2,FALSE) ->  | U80: =VLOOKUP(R75,R63:X66,7,FALSE) -> 0 | AG80: 4eme | AH80: =VLOOKUP(AH75,AH63:AI66,2,FALSE) ->  | AI80: =VLOOKUP(AH80,AI63:AJ66,2,FALSE) ->  | AJ80: =VLOOKUP(AI80,AJ63:AK66,2,FALSE) ->  | AK80: =VLOOKUP(AH75,AH63:AN66,7,FALSE) -> 0 | AV80: =AK80+U80+E80 -> 0
A81: 5eme | B81: =VLOOKUP(B75,B68:C71,2,FALSE) -> - | C81: =VLOOKUP(B81,C68:D71,2,FALSE) -> - | D81: =VLOOKUP(C81,D68:E71,2,FALSE) -> - | E81: =VLOOKUP(B75,B68:H71,7,FALSE) -> 0 | Q81: 5eme | R81: =VLOOKUP(R75,R68:S71,2,FALSE) -> - | S81: =VLOOKUP(R81,S68:T71,2,FALSE) -> - | T81: =VLOOKUP(S81,T68:U71,2,FALSE) -> - | U81: =VLOOKUP(R75,R68:X71,7,FALSE) -> 0 | AG81: 5eme | AH81: =VLOOKUP(AH75,AH68:AI71,2,FALSE) -> - | AI81: =VLOOKUP(AH81,AI68:AJ71,2,FALSE) -> - | AJ81: =VLOOKUP(AI81,AJ68:AK71,2,FALSE) -> - | AK81: =VLOOKUP(AH75,AH68:AN71,7,FALSE) -> 0
A84: terrasse | Q84: terrasse | S84: vertical | AG84: terrasse | AI84: vertical
A85: sur toiture | Q85: sur toiture | S85: horizontal | AG85: sur toiture | AI85: horizontal
A87: choix | B87: ='Pro C '!D36 -> sur toiture | Q87: choix | R87: ='Pro C '!D36 -> sur toiture | AG87: choix | AH87: ='Pro C '!D36 -> sur toiture
A88: verti ou hori | B88: ='SUN C250'!E39 -> sur toiture | Q88: verti ou hori | R88: ='SUN C250'!E39 -> sur toiture | AG88: verti ou hori | AH88: ='SUN C250'!E39 -> sur toiture
B94: • Supports inclinables pour TERRASSE (ou au sol) | R94: • Supports inclinables pour TERRASSE (ou au sol) | AH94: • Supports inclinables pour TERRASSE (ou au sol)
B95: à choisir selon la disposition des capteurs en + des profilés | R95: à choisir selon la disposition des capteurs en + des profilés | AH95: à choisir selon la disposition des capteurs en + des profilés
F96: nbre colis final | G96: nbre colis arrondi | H96: Ref | V96: nbre colis final | W96: nbre colis arrondi | X96: Ref | AL96: nbre colis final | AM96: nbre colis arrondi | AN96: Ref
A97: terrasse et vertical | B97: 3 supports avec croix stabilisatrices pour 2 capt. montage vertical | C97: =VLOOKUP(H97,'Liste de prix'!$1:$1048576,3,FALSE) -> EG358 | D97: =VLOOKUP(H97,'Liste de prix'!$1:$1048576,4,FALSE) -> 287 | E97: =IF(D2=0,0,IF(D2<5,1,2)) -> 0 | F97: =E97*E2 -> 0 | G97: =ROUNDUP(F97,0) -> 0 | H97: 89807358 | Q97: terrasse et vertical | R97: 3 supports avec croix stabilisatrices pour 2 capt. montage vertical | S97: =VLOOKUP(X97,'Liste de prix'!$1:$1048576,3,FALSE) -> EG358 | T97: =VLOOKUP(X97,'Liste de prix'!$1:$1048576,4,FALSE) -> 287 | U97: =IF(T2=0,0,IF(T2<5,1,2)) -> 0 | V97: =U97*U2 -> 0 | W97: =ROUNDUP(V97,0) -> 0 | X97: 89807358 | AG97: terrasse et vertical | AH97: 3 supports avec croix stabilisatrices pour 2 capt. montage vertical | AI97: =VLOOKUP(AN97,'Liste de prix'!$1:$1048576,3,FALSE) -> EG358 | AJ97: =VLOOKUP(AN97,'Liste de prix'!$1:$1048576,4,FALSE) -> 287 | AK97: =IF(AJ2=0,0,IF(AJ2<5,1,2)) -> 0 | AL97: =AK97*AK2 -> 0 | AM97: =ROUNDUP(AL97,0) -> 0 | AN97: 89807358
B98: 3 supports (sans croix stabilisatrices) pour 2 capt. montage vertical | C98: =VLOOKUP(H98,'Liste de prix'!$1:$1048576,3,FALSE) -> EG359 | D98: =VLOOKUP(H98,'Liste de prix'!$1:$1048576,4,FALSE) -> 245 | E98: =IF(D2=2,0,IF(D2=3,1,IF(D2=4,1,IF(D2=5,1,IF(D2=6,1,IF(D2=7,1,IF(D2=8,2,0))))))) -> 0 | F98: =E98*E2 -> 0 | G98: =ROUNDUP(F98,0) -> 0 | H98: 89807359 | R98: 3 supports (sans croix stabilisatrices) pour 2 capt. montage vertical | S98: =VLOOKUP(X98,'Liste de prix'!$1:$1048576,3,FALSE) -> EG359 | T98: =VLOOKUP(X98,'Liste de prix'!$1:$1048576,4,FALSE) -> 245 | U98: =IF(T2=2,0,IF(T2=3,1,IF(T2=4,1,IF(T2=5,1,IF(T2=6,1,IF(T2=7,1,IF(T2=8,2,0))))))) -> 0 | V98: =U98*U2 -> 0 | W98: =ROUNDUP(V98,0) -> 0 | X98: 89807359 | AH98: 3 supports (sans croix stabilisatrices) pour 2 capt. montage vertical | AI98: =VLOOKUP(AN98,'Liste de prix'!$1:$1048576,3,FALSE) -> EG359 | AJ98: =VLOOKUP(AN98,'Liste de prix'!$1:$1048576,4,FALSE) -> 245 | AK98: =IF(AJ2=2,0,IF(AJ2=3,1,IF(AJ2=4,1,IF(AJ2=5,1,IF(AJ2=6,1,IF(AJ2=7,1,IF(AJ2=8,2,0))))))) -> 0 | AL98: =AK98*AK2 -> 0 | AM98: =ROUNDUP(AL98,0) -> 0 | AN98: 89807359
A100: terrasse et hori | B100: 2 supports avec croix stabilisatrice pour 1 capt. montage horizontal | C100: =VLOOKUP(H100,'Liste de prix'!$1:$1048576,3,FALSE) -> EG325 | D100: =VLOOKUP(H100,'Liste de prix'!$1:$1048576,4,FALSE) -> 161 | E100: =IF(D2=2,2,IF(D2=3,3,IF(D2=4,4,FALSE))) -> FALSE | F100: =E100*E2 -> 0 | G100: =ROUNDUP(F100,0) -> 0 | H100: 89807325 | Q100: terrasse et hori | R100: 2 supports avec croix stabilisatrice pour 1 capt. montage horizontal | S100: =VLOOKUP(X100,'Liste de prix'!$1:$1048576,3,FALSE) -> EG325 | T100: =VLOOKUP(X100,'Liste de prix'!$1:$1048576,4,FALSE) -> 161 | U100: =IF(T2=2,2,IF(T2=3,3,IF(T2=4,4,FALSE))) -> FALSE | V100: =U100*U2 -> 0 | W100: =ROUNDUP(V100,0) -> 0 | X100: 89807325 | AG100: terrasse et hori | AH100: 2 supports avec croix stabilisatrice pour 1 capt. montage horizontal | AI100: =VLOOKUP(AN100,'Liste de prix'!$1:$1048576,3,FALSE) -> EG325 | AJ100: =VLOOKUP(AN100,'Liste de prix'!$1:$1048576,4,FALSE) -> 161 | AK100: =IF(AJ2=2,2,IF(AJ2=3,3,IF(AJ2=4,4,FALSE))) -> FALSE | AL100: =AK100*AK2 -> 0 | AM100: =ROUNDUP(AL100,0) -> 0 | AN100: 89807325
B101: - | C101: - | D101: 0 | E101: - | F101: 0 | G101: 0 | R101: - | S101: - | T101: 0 | U101: - | V101: 0 | W101: 0 | AH101: - | AI101: - | AJ101: 0 | AL101: 0 | AM101: 0
A104: Récapitulation terrasse | B104: =IF(AND(B87="terrasse",B88="vertical"),B97,B100) -> 2 supports avec croix stabilisatrice pour 1 capt. montage horizontal | C104: =VLOOKUP(B104,B97:C101,2,FALSE) -> EG325 | D104: =VLOOKUP(C104,C97:D101,2,FALSE) -> 161 | E104: =VLOOKUP(B104,B97:G101,6,FALSE) -> 0 | Q104: Récapitulation terrasse | R104: =IF(AND(R87="terrasse",R88="vertical"),R97,R100) -> 2 supports avec croix stabilisatrice pour 1 capt. montage horizontal | S104: =VLOOKUP(R104,R97:S101,2,FALSE) -> EG325 | T104: =VLOOKUP(S104,S97:T101,2,FALSE) -> 161 | U104: =VLOOKUP(R104,R97:W101,6,FALSE) -> 0 | AG104: Récapitulation terrasse | AH104: =IF(AND(AH87="terrasse",AH88="vertical"),AH97,AH100) -> 2 supports avec croix stabilisatrice pour 1 capt. montage horizontal | AI104: =VLOOKUP(AH104,AH97:AI101,2,FALSE) -> EG325 | AJ104: =VLOOKUP(AI104,AI97:AJ101,2,FALSE) -> 161 | AK104: =VLOOKUP(AH104,AH97:AM101,6,FALSE) -> 0 | AV104: =AK104+U104+E104 -> 0
B105: =IF(AND(B87="terrasse",B88="vertical"),B98,B101) -> - | C105: =VLOOKUP(B105,B97:C101,2,FALSE) -> - | D105: =VLOOKUP(C105,C97:D101,2,FALSE) -> 0 | E105: =VLOOKUP(B105,B97:G101,6,FALSE) -> 0 | R105: =IF(AND(R87="terrasse",R88="vertical"),R98,R101) -> - | S105: =VLOOKUP(R105,R97:S101,2,FALSE) -> - | T105: =VLOOKUP(S105,S97:T101,2,FALSE) -> 0 | U105: =VLOOKUP(R105,R97:W101,6,FALSE) -> 0 | AH105: =IF(AND(AH87="terrasse",AH88="vertical"),AH98,AH101) -> - | AI105: =VLOOKUP(AH105,AH97:AI101,2,FALSE) -> - | AJ105: =VLOOKUP(AI105,AI97:AJ101,2,FALSE) -> 0 | AK105: =VLOOKUP(AH105,AH97:AM101,6,FALSE) -> 0 | AV105: =AK105+U105+E105 -> 0
B110: • Ferrures d’ancrage pour montage SUR TOITURE | R110: • Ferrures d’ancrage pour montage SUR TOITURE | AH110: • Ferrures d’ancrage pour montage SUR TOITURE
B111: à choisir selon le type de couverture en + des profilés | R111: à choisir selon le type de couverture en + des profilés | AH111: à choisir selon le type de couverture en + des profilés
B112: 0 | C112: 0 | R112: 0 | S112: 0 | AH112: 0 | AI112: 0
A113: liste validation "surtoiture" | B113: montage indépendant des chevrons en alu pour tuiles mécaniques | C113: 1 | Q113: liste validation "surtoiture" | R113: montage indépendant des chevrons en alu pour tuiles mécaniques | S113: 1 | AG113: liste validation "surtoiture" | AH113: montage indépendant des chevrons en alu pour tuiles mécaniques | AI113: 1
B114: montage sur chevrons en inox pour tuiles mécaniques | C114: 2 | R114: montage sur chevrons en inox pour tuiles mécaniques | S114: 2 | AH114: montage sur chevrons en inox pour tuiles mécaniques | AI114: 2
B115: montage sur chevrons en inox pour tuiles plates | C115: 3 | R115: montage sur chevrons en inox pour tuiles plates | S115: 3 | AH115: montage sur chevrons en inox pour tuiles plates | AI115: 3
B116: montage sur chevrons en inox sur toit éternit | C116: 4 | R116: montage sur chevrons en inox sur toit éternit | S116: 4 | AH116: montage sur chevrons en inox sur toit éternit | AI116: 4
B117: montage sur chevrons en inox sur toit d'ardoises | C117: 5 | R117: montage sur chevrons en inox sur toit d'ardoises | S117: 5 | AH117: montage sur chevrons en inox sur toit d'ardoises | AI117: 5
E121: nbre colis par rangée | F121: nbre colis final | U121: nbre colis par rangée | V121: nbre colis final | AK121: nbre colis par rangée | AL121: nbre colis final
A122: choix | B122: ='Pro C '!D60 -> montage sur chevrons en inox sur toit éternit | C122: =VLOOKUP(B122,B112:C117,2,FALSE) -> 4 | D122: =IF(C122=1,"4 pces EG 311",IF(C122=2,"4 pces EG 313",IF(C122=3,"4 pces EG 315",IF(C122=4,"4 pces EG 317",IF(C122=5,"4 pces EG 319",""))))) -> 4 pces EG 317 | E122: =IF(D2=3,2,IF(D2=6,2,IF(D2=7,1,0))) -> 0 | F122: =E122*E2 -> 0 | Q122: choix | R122: ='Pro C '!D60 -> montage sur chevrons en inox sur toit éternit | S122: =VLOOKUP(R122,R112:S117,2,FALSE) -> 4 | T122: =IF(S122=1,"4 pces EG 311",IF(S122=2,"4 pces EG 313",IF(S122=3,"4 pces EG 315",IF(S122=4,"4 pces EG 317",IF(S122=5,"4 pces EG 319",""))))) -> 4 pces EG 317 | U122: =IF(T2=3,2,IF(T2=6,2,IF(T2=7,1,0))) -> 0 | V122: =U122*U2 -> 0 | AG122: choix | AH122: ='Pro C '!D60 -> montage sur chevrons en inox sur toit éternit | AI122: =VLOOKUP(AH122,AH112:AI117,2,FALSE) -> 4 | AJ122: =IF(AI122=1,"4 pces EG 311",IF(AI122=2,"4 pces EG 313",IF(AI122=3,"4 pces EG 315",IF(AI122=4,"4 pces EG 317",IF(AI122=5,"4 pces EG 319",""))))) -> 4 pces EG 317 | AK122: =IF(AJ2=3,2,IF(AJ2=6,2,IF(AJ2=7,1,0))) -> 0 | AL122: =AK122*AK2 -> 0 | AV122: =F122+V122+AL122 -> 0
D123: =IF(C122=1,"6 pces EG 312",IF(C122=2,"6 pces EG 314",IF(C122=3,"6 pces EG 316",IF(C122=4,"6 pces EG 318",IF(C122=5,"6 pces EG 320",""))))) -> 6 pces EG 318 | E123: =IF(D2=2,1,IF(D2=4,2,IF(D2=5,2,IF(D2=6,1,IF(D2=7,2,IF(D2=8,3,0)))))) -> 0 | F123: =E123*E2 -> 0 | T123: =IF(S122=1,"6 pces EG 312",IF(S122=2,"6 pces EG 314",IF(S122=3,"6 pces EG 316",IF(S122=4,"6 pces EG 318",IF(S122=5,"6 pces EG 320",""))))) -> 6 pces EG 318 | U123: =IF(T2=2,1,IF(T2=4,2,IF(T2=5,2,IF(T2=6,1,IF(T2=7,2,IF(T2=8,3,0)))))) -> 0 | V123: =U123*U2 -> 0 | AJ123: =IF(AI122=1,"6 pces EG 312",IF(AI122=2,"6 pces EG 314",IF(AI122=3,"6 pces EG 316",IF(AI122=4,"6 pces EG 318",IF(AI122=5,"6 pces EG 320",""))))) -> 6 pces EG 318 | AK123: =IF(AJ2=2,1,IF(AJ2=4,2,IF(AJ2=5,2,IF(AJ2=6,1,IF(AJ2=7,2,IF(AJ2=8,3,0)))))) -> 0 | AL123: =AK123*AK2 -> 0 | AV123: =F123+V123+AL123 -> 0
B129: 100008010 | C129: =VLOOKUP(B129,'Liste de prix'!1:1048576,2,FALSE) ->  | D129: =VLOOKUP(B129,'Liste de prix'!1:1048576,3,FALSE) ->  | E129: =VLOOKUP(B129,'Liste de prix'!1:1048576,4,FALSE) ->  | R129: 100008010 | S129: =VLOOKUP(R129,'Liste de prix'!1:1048576,2,FALSE) ->  | T129: =VLOOKUP(R129,'Liste de prix'!1:1048576,3,FALSE) ->  | U129: =VLOOKUP(R129,'Liste de prix'!1:1048576,4,FALSE) ->  | AH129: 100008010 | AI129: =VLOOKUP(AH129,'Liste de prix'!1:1048576,2,FALSE) ->  | AJ129: =VLOOKUP(AH129,'Liste de prix'!1:1048576,3,FALSE) ->  | AK129: =VLOOKUP(AH129,'Liste de prix'!1:1048576,4,FALSE) -> 

Sheet Outils accessoires (hidden)
B1: ="" ->  | C1: 0
A2: … | B2: - | C2: 0 | F2: 0
A3: =VLOOKUP(D3,liste,2,FALSE) -> VASE D'EXPANSION 100 l | B3: =VLOOKUP(D3,liste,3,FALSE) -> EG120 | C3: =VLOOKUP(D3,liste,4,FALSE) -> 402 | D3: 100008733 | F3: 1
A4: =VLOOKUP(D4,liste,2,FALSE) -> VASE D'EXPANSION 200 l | B4: =VLOOKUP(D4,liste,3,FALSE) -> EG122 | C4: =VLOOKUP(D4,liste,4,FALSE) -> 637 | D4: 100008735 | F4: 2
A5: =VLOOKUP(D5,liste,2,FALSE) -> VASE D'EXPANSION 300 l | B5: =VLOOKUP(D5,liste,3,FALSE) -> EG123 | C5: =VLOOKUP(D5,liste,4,FALSE) -> 1142 | D5: 100008736 | F5: 3
A6: =VLOOKUP(D6,liste,2,FALSE) -> VASE D'EXPANSION SOLAIRE 35 L | B6: =VLOOKUP(D6,liste,3,FALSE) -> EG83 | C6: =VLOOKUP(D6,liste,4,FALSE) -> 181 | D6: 89807772 | F6: 4
A7: =VLOOKUP(D7,liste,2,FALSE) -> VASE D'EXPANSION SOLAIRE 50 L | B7: =VLOOKUP(D7,liste,3,FALSE) -> EG84 | C7: =VLOOKUP(D7,liste,4,FALSE) -> 348 | D7: 89807773 | F7: 5
A8: OPTION | F8: 6
A9: … | B9: - | C9: 0 | D9: 0 | F9: 7
A10: =VLOOKUP(D10,liste,2,FALSE) -> ANODE ACI CORREX UP BALLON > 300 LITRES | B10: =VLOOKUP(D10,liste,3,FALSE) -> AM7 | C10: =VLOOKUP(D10,liste,4,FALSE) -> 532 | D10: 89608920 | F10: 8
A11: RESISTANCE BLINDEE 6 KW/400V A VISSER 1''1/2 + THERMOSTAT DE REGLAGE | B11: AJ36 | C11: 628 | D11: 89757750 | F11: 9
A12: KIT ELECTRIQUE 9 KW/400V 1 1/2 ( POUR RSB 1000 A 3000 ) | B12: AJ47 | C12: 650 | D12: 100019313 | F12: 10
A13: RESISTANCE BLINDEE 6 KW/400V A VISSER 1''1/2 + THERMOSTAT DE REGLAGE | B13: ER335 | C13: 728 | D13: 100019314
A14: RESISTANCE BLINDEE 6 KW/400V A VISSER 1''1/2 + THERMOSTAT DE REGLAGE | B14: ER131 | C14: 295 | D14: 100014590
A15: CENTRALE DE MESURE D'ENERGIE CME | B15: ER313 | C15: 1675 | D15: 100017498
A16: DATALOGGER DL2 POUR GRS | B16: ER55 | C16: 460 | D16: 100013514
A17: MODULE REPORT DE PANNE OETROSOL AM1 | B17: ER314 | C17: 180 | D17: 100017499
A18: REGULATION POMPE DE CHARGE SLA 2 | B18: EC320 | C18: 208 | D18: 100007832
A19: THERMOMETRE | B19: AJ32 | C19: 51 | D19: 89757746
A20: VANNE 3 VOIES 3/4" POUR 2 CIRCUITS | B20: EC164 | C20: 237 | D20: 89804803
A21: PREPARATEUR
A22: … | B22: - | C22: 0 | D22: 0
A23: =VLOOKUP(D23,liste,2,FALSE) -> PREPARATEUR SOLAIRE OBS 200 N | B23: =VLOOKUP(D23,liste,3,FALSE) -> ER424 | C23: =VLOOKUP(D23,liste,4,FALSE) -> 902 | D23: 100019529
A24: PREPARATEUR SOLAIRE OBS 300 N | B24: ER425 | C24: 913 | D24: 100019522
A25: PREPARATEUR SOLAIRE OBS 400 N | B25: ER426 | C25: 1957 | D25: 100019526
A26: PREPARATEUR SOLAIRE OBS 500 N | B26: ER341 | C26: 2284 | D26: 100019068 | F26: COLIS | G26: =VLOOKUP('Accessoires et options'!I34,A22:D44,2,FALSE) -> -
D27: 100011343 | F27: PRIX | G27: =VLOOKUP('Accessoires et options'!I34,A22:D44,3,FALSE) -> 0
C28: =VLOOKUP(D28,liste,4,FALSE) ->  | D28: 125549
D29: 125550
D30: 126758 | F30: CHOIX 2 | G30: ='Accessoires et options'!I41 -> …
D31: 126757 | F31: COLIS | G31: =VLOOKUP(G30,A22:D44,2,FALSE) -> -
A32: PREPARATEUR ECS INSTANTANEE FWS 750 | B32: EC546 | C32: 4808 | D32: 100008019 | F32: PRIX | G32: =VLOOKUP(G30,A22:D44,3,FALSE) -> 0
A33: =VLOOKUP(D33,liste,2,FALSE) -> PREPARATEUR SOLAIRE FWS 1500 COMPLET | B33: =VLOOKUP(D33,liste,3,FALSE) -> 0 | C33: =VLOOKUP(D33,liste,4,FALSE) -> 7103 | D33: 100017466
A34: =VLOOKUP(D34,liste,2,FALSE) -> BALLON TAMPON PSB 750 | B34: =VLOOKUP(D34,liste,3,FALSE) -> EC129 | C34: =VLOOKUP(D34,liste,4,FALSE) -> 1645 | D34: 100005010
A35: =VLOOKUP(D35,liste,2,FALSE) ->  | B35: =VLOOKUP(D35,liste,3,FALSE) ->  | C35: =VLOOKUP(D35,liste,4,FALSE) ->  | D35: 126975
A36: =VLOOKUP(D36,liste,2,FALSE) ->  | B36: =VLOOKUP(D36,liste,3,FALSE) ->  | C36: =VLOOKUP(D36,liste,4,FALSE) ->  | D36: 126976
A37: =VLOOKUP(D37,liste,2,FALSE) ->  | B37: =VLOOKUP(D37,liste,3,FALSE) ->  | C37: =VLOOKUP(D37,liste,4,FALSE) ->  | D37: 126977
D38: 126978
D39: 100017469
D40: 100017472
D41: 100017475
A42: =VLOOKUP(D42,liste,2,FALSE) ->  | B42: =VLOOKUP(D42,liste,3,FALSE) ->  | C42: =VLOOKUP(D42,liste,4,FALSE) ->  | D42: 100017476
D43: 100017477
D44: 100017478
A45: REGULATION | E45: CHOIX | F45: ='Accessoires et options'!I18 -> …
A46: … | B46: - | C46: 0 | D46: -
A47: =VLOOKUP(D47,liste,2,FALSE) -> REGULATION SOL COLLECTIF SC5 | B47: =VLOOKUP(D47,liste,3,FALSE) -> ER672 | C47: =VLOOKUP(D47,liste,4,FALSE) -> 609 | D47: 7619972 | E47: COLIS | F47: =VLOOKUP(F45,A46:D52,2,FALSE) -> -
A48: =VLOOKUP(D48,liste,2,FALSE) -> REGULATION OETROSOL-AEL | B48: =VLOOKUP(D48,liste,3,FALSE) -> ER708 | C48: =VLOOKUP(D48,liste,4,FALSE) -> 291 | D48: 7630421 | E48: Prix | F48: =VLOOKUP(F45,A46:D52,3,FALSE) -> 0
A49: =VLOOKUP(D49,liste,2,FALSE) -> REGULATION OETROSOL-PLUS | B49: =VLOOKUP(D49,liste,3,FALSE) -> ER709 | C49: =VLOOKUP(D49,liste,4,FALSE) -> 260 | D49: 7630422 | E49: Ref | F49: =VLOOKUP(F45,A46:D52,4,FALSE) -> -
A50: =VLOOKUP(D50,liste,2,FALSE) -> RÉGULATION "DELTASOL E" POUR STATION TRANSFERT SOLAIRE | B50: =VLOOKUP(D50,liste,3,FALSE) -> ER315 | C50: =VLOOKUP(D50,liste,4,FALSE) -> 717 | D50: 100017500
A51: =VLOOKUP(D51,liste,2,FALSE) -> REGULATION "MCDB" POUR CHARGE/DECHARGE BALLON | B51: =VLOOKUP(D51,liste,3,FALSE) -> EC162 | C51: =VLOOKUP(D51,liste,4,FALSE) -> 270 | D51: 100004650
A53: STATION SOLAIRE
A54: … | B54: - | C54: 0 | D54: -
A55: =VLOOKUP(D55,liste,2,FALSE) -> STATION SOLAIRE SKS 13-45 | B55: =VLOOKUP(D55,liste,3,FALSE) -> ER665 | C55: =VLOOKUP(D55,liste,4,FALSE) -> 676 | D55: 7619964
A56: STATION SOLAIRE SKP 7-8 | B56: ER655 | C56: 447 | D56: 7624853
A57: STATION SOLAIRE STS 14-30 CME | B57: ER667 | C57: 2705 | D57: 7619966 | E57: 0 | F57: CHOIX | G57: ='Accessoires et options'!I25 -> …
A58: STATION SOLAIRE STS 14-50 CME | B58: ER668 | C58: 3121 | D58: 7619967 | E58: 1 | F58: COLIS | G58: =VLOOKUP(G57,A54:D61,2,FALSE) -> -
A59: STATION SOLAIRE STS 14-100 CME | B59: ER669 | C59: 6242 | D59: 7619968 | E59: 1 | F59: PRIX | G59: =VLOOKUP(G57,A54:D61,3,FALSE) -> 0
A60: MODULE TRANSFERT SOLAIRE DRAIN BACK DB-20 | B60: ER301 | C60: 2772 | D60: 100017486 | E60: 1
A61: STATION TRANSFERT DMCDB | B61: ER468 | C61: 1037 | D61: 7604939 | E61: 1
E62: 0
E63: 0
A64: Fluide
A65: … | B65: - | C65: 0
A66: FLUIDE CALOPORTEUR HAUTES PERFORMANCES BIO (-26°C) 20 LITRES | B66: =VLOOKUP(D66,liste,3,FALSE) -> ER316 | C66: =VLOOKUP('Outils accessoires'!D66,'Liste de prix'!$1:$1048576,4,FALSE) -> 134 | D66: 100017611
A67: FLUIDE CALOPORTEUR TYPE L (-21°C) 20 LITRES. | B67: =VLOOKUP(D67,liste,3,FALSE) -> EG101 | C67: =VLOOKUP('Outils accessoires'!D67,'Liste de prix'!$1:$1048576,4,FALSE) -> 78 | D67: 89807794
A68: FLUIDE CALOPORTEUR HAUTES PERFORMANCES TYPE LS (-26°C) 20 LITRES | B68: =VLOOKUP(D68,liste,3,FALSE) -> EG100 | C68: =VLOOKUP('Outils accessoires'!D68,'Liste de prix'!$1:$1048576,4,FALSE) -> 154 | D68: 89807792
A71: Devis capteurs SUN C250
A72: Devis capteurs SUN 3000
A74: Sur toiture
A75: Terrasse (Vertical juxtaposé)
A76: Sur tuiles canal

Sheet Accessoires et options
N1: ='SUN C250'!K1 -> Version 01/2017
H3: Chiffrage des accessoires avec capteurs SUN C250 et/ou SUN 3000
N6: =TODAY() -> 2017-01-31
G10: Référence
N11: =REMISE!F9 -> 0
G15: REGULATION | I15: Désignation | J15: Colis | K15: Prix unitaire HT en € | L15: Qté | M15: Prix total HT en €
I17: Régulation
I18: … | J18: =IF(I18="","",'Outils accessoires'!F47) -> - | K18: ='Outils accessoires'!F48 -> 0 | M18: =K18*L18 -> 0 | N18: =M18*(1-N$11) -> 0
G22: STATION SOLAIRE
I24: Station
I25: … | J25: =IF(I25="","",'Outils accessoires'!G58) -> - | K25: ='Outils accessoires'!G59 -> 0 | M25: =K25*L25 -> 0 | N25: =M25*(1-N$11) -> 0
I26: =IF(J25=" - ","",IF(VLOOKUP(J25,mamadou,4,FALSE)=1,"Régulation intégrée","")) -> 
G31: PREPARATEUR 1
I33: Préparateur | N33: =IF(I34="PREPARATEUR BESC 300 I","Nous consulter","") -> 
I34: … | J34: =IF(I34="","",'Outils accessoires'!G26) -> - | K34: ='Outils accessoires'!G27 -> 0 | M34: =K34*L34 -> 0 | N34: =IF(I34="PREPARATEUR BESC 300 I",0,M34*(1-N$11)) -> 0
G38: PREPARATEUR 2
I40: Préparateur | N40: =IF(I41="PREPARATEUR BESC 300 I","Nous consulter","") -> 
I41: … | J41: =IF(I41="","",'Outils accessoires'!G31) -> - | K41: ='Outils accessoires'!G32 -> 0 | M41: =K41*L41 -> 0 | N41: =IF(I41="PREPARATEUR BESC 300 I",0,M41*(1-N$11)) -> 0
G45: OPTION 1
I47: Option
I48: … | J48: =IF(I48="","",VLOOKUP(I48,'Outils accessoires'!A9:D20,2,FALSE)) -> - | K48: =VLOOKUP(I48,'Outils accessoires'!A9:D20,3,FALSE) -> 0 | M48: =K48*L48 -> 0 | N48: =M48*(1-N$11) -> 0
G52: OPTION 2
I54: Option
I55: … | J55: =IF(I55="","",VLOOKUP(I55,'Outils accessoires'!A9:D20,2,FALSE)) -> - | K55: =VLOOKUP(I55,'Outils accessoires'!A9:D20,3,FALSE) -> 0 | M55: =K55*L55 -> 0 | N55: =M55*(1-N$11) -> 0
G59: FLUIDE CALOPORTEUR (donné à titre indicatif – à calculer en fonction de l'installation)
I61: Type
I62: … | J62: =IF(I62="","",VLOOKUP(I62,'Outils accessoires'!A65:D68,2,FALSE)) -> - | K62: =VLOOKUP(I62,'Outils accessoires'!A65:D68,3,FALSE) -> 0 | M62: =K62*L62 -> 0 | N62: =M62*(1-N$11) -> 0
G66: VASE EXPANSION SOLAIRE (donné à titre indicatif – à calculer en fonction de l'installation)
I68: Vase
I69: … | J69: =IF(I69="","",VLOOKUP(I69,'Outils accessoires'!A2:D7,2,FALSE)) -> - | K69: =VLOOKUP(I69,'Outils accessoires'!A2:D7,3,FALSE) -> 0 | M69: =K69*L69 -> 0 | N69: =M69*(1-N$11) -> 0
G73: AUTRE
I75: Désignation | J75: N° Colis | L75: PU | M75: Qté | N75: Prix total
N76: =IF(M76<>0,O76*(1-N$11),0) -> 0 | O76: =PRODUCT(L76,M76) -> 0
N77: 0 | O77: 0
N78: 0 | O78: 0
N79: 0 | O79: 0
N80: 0 | O80: 0
N81: 0 | O81: 0
N82: 0 | O82: 0
G83: NOTE
R87: Oui
G88: MISE EN SERVICE (Prix NET) | M88: Oui | N88: =IF(M88="Oui",440,0) -> 440 | R88: Non
O89: =PRODUCT(L89,M89) -> 0
H92: Système | J92: Prix total HT en €
H93: Devis capteurs SUN C250 | J93: =IF(H93='Outils accessoires'!A71,'SUN C250'!G64,'Sun 3000'!E66) -> 0
H94: Devis ACCESSOIRES | J94: =N18+N25+N34+N41+N48+N55+N62+N69+N76+N77+N78+N79+N80+N81+N82+N88 -> 440
H95: Devis TOTAL | J95: =J93+J94 -> 440

Sheet feuille PRO c250 (hidden)
A1: Choix: | B1: ='Pro C '!D12 -> vertical | M1: charges de neige et vent importantes | P1: en terrasse (ou au sol) | Q1: Table A
M2: charges de neige et vent standards | P2: =IF(OR('SUN C250'!H24>4,'SUN C250'!H25>4,'SUN C250'!H26>4),"","en intégration de toiture") -> en intégration de toiture | Q2: 0 | R2: 0 | T2: 0
P3: sur toiture | Q3: 2 | R3: 1 | T3: 2
A4: Nombre capteurs/séries | B4: ='SUN C250'!H24 -> 0 | C4: ='SUN C250'!I24 -> 0 | D4: =B4*C4 -> 0 | Q4: 3 | R4: 1 | T4: 3
B5: ='SUN C250'!H25 -> 0 | C5: ='SUN C250'!I25 -> 0 | D5: =B5*C5 -> 0 | Q5: 4 | R5: 1 | T5: 4
B6: ='SUN C250'!H26 -> 0 | C6: ='SUN C250'!I26 -> 0 | D6: =B6*C6 -> 0 | M6: tuile mécanique 22° | P6: =IF(choix=$P$1,M1,IF(choix=$P$2,M6,IF(choix=$P$3,M10))) -> clipper | Q6: 5 | R6: 1 | T6: 5
B7: =SUM(B4:B6) -> 0 | C7: =SUM(C4:C6) -> 0 | D7: =SUM(D4:D6) -> 0 | M7: tuile canal 17° | P7: =IF(choix=$P$1,M2,IF(choix=$P$2,M7,IF(choix=$P$3,""))) ->  | Q7: 6 | R7: 1 | T7: 6
M8: tuile plate 21° | P8: =IF(choix=$P$1,M4,IF(choix=$P$2,"",IF(choix=$P$3," "))) ->  | Q8: 7 | R8: 1 | T8: 7
C9: A | D9: =C4*VLOOKUP(B4,TA,2,FALSE)+C5*VLOOKUP(B5,TA,2,FALSE)+C6*VLOOKUP(B6,TA,2,FALSE) -> 0 | Q9: 8 | R9: 1 | T9: 8
C10: B | D10: =C4*VLOOKUP(B4,TB,2,FALSE)+C5*VLOOKUP(B5,TB,2,FALSE)+C6*VLOOKUP(B6,TB,2,FALSE) -> 0 | M10: clipper | P10: Vertical | Q10: 9 | R10: 1 | T10: 9
C11: C | D11: =C4*VLOOKUP(B4,TC,2,FALSE)+C5*VLOOKUP(B5,TC,2,FALSE)+C6*VLOOKUP(B6,TC,2,FALSE) -> 0 | M11: visser | P11: Horizontal | Q11: 10 | R11: 1 | T11: 10
B12: ferrures | C12: Chevron 4 | D12: =C4*VLOOKUP(B4,chevrons,2,FALSE)+C5*VLOOKUP(B5,chevrons,2,FALSE)+C6*VLOOKUP(B6,chevrons,2,FALSE) -> 0 | E12: ALU 4 | F12: =C4*VLOOKUP(B4,alu,3,FALSE)+C5*VLOOKUP(B5,alu,3,FALSE)+C6*VLOOKUP(B6,alu,3,FALSE) -> 0 | G12: Tire-fond 6 | H12: =C4*VLOOKUP(B4,TF,2,FALSE)+C5*VLOOKUP(B5,TF,2,FALSE)+C6*VLOOKUP(B6,TF,2,FALSE) -> 0
C13: 6 | D13: =C4*VLOOKUP(B4,chevrons,3,FALSE)+C5*VLOOKUP(B5,chevrons,3,FALSE)+C6*VLOOKUP(B6,chevrons,3,FALSE) -> 0 | E13: 2 | F13: =C4*VLOOKUP(B4,alu,2,FALSE)+C5*VLOOKUP(B5,alu,2,FALSE)+C6*VLOOKUP(B6,alu,2,FALSE) -> 0 | G13: 8 | H13: =C4*VLOOKUP(B4,TF,3,FALSE)+C5*VLOOKUP(B5,TF,3,FALSE)+C6*VLOOKUP(B6,TF,3,FALSE) -> 0 | Q13: Table B
A14: Vertical | G14: Horizontal | Q14: 0 | R14: 0
Q15: 2 | R15: 1
Q16: 3 | R16: 2
A17: Réf | B17: Désignation | C17: Colis | D17: Prix | G17: Réf | H17: Désignation | I17: Colis | J17: Prix | Q17: 4 | R17: 3
A18: 100016502 | B18: =VLOOKUP(A18,'Liste de prix'!$1:$1048576,2,FALSE) -> CAPTEUR PLAN MONTAGE VERTICAL PRO C250 V | C18: =VLOOKUP(A18,'Liste de prix'!$1:$1048576,3,FALSE) -> ER240 | D18: =VLOOKUP(A18,'Liste de prix'!$1:$1048576,4,FALSE) -> 797 | G18: 100016503 | H18: =VLOOKUP(G18,'Liste de prix'!$1:$1048576,2,FALSE) -> CAPTEUR PLAN MONTAGE HORIZONTAL PRO C250 H | I18: =VLOOKUP(G18,'Liste de prix'!$1:$1048576,3,FALSE) -> ER241 | J18: =VLOOKUP(G18,'Liste de prix'!$1:$1048576,4,FALSE) -> 820 | Q18: 5 | R18: 4
Q19: 6 | R19: 5
Q20: 7 | R20: 6
A21: Accessoires pour le raccordement hydraulique du capteur pro C250V | G21: Accessoires pour le raccordement hydraulique du capteur pro C250V | Q21: 8 | R21: 7
Q22: 9 | R22: 8
A23: 100016506 | B23: =VLOOKUP(A23,'Liste de prix'!$1:$1048576,2,FALSE) -> KIT DE RACCORDEMENT CHAMP DE CAPTEURS | C23: =VLOOKUP(A23,'Liste de prix'!$1:$1048576,3,FALSE) -> ER245 | D23: =VLOOKUP(A23,'Liste de prix'!$1:$1048576,4,FALSE) -> 120 | E23: =TAA -> 0 | G23: 100016506 | H23: =VLOOKUP(G23,'Liste de prix'!$1:$1048576,2,FALSE) -> KIT DE RACCORDEMENT CHAMP DE CAPTEURS | I23: =VLOOKUP(G23,'Liste de prix'!$1:$1048576,3,FALSE) -> ER245 | J23: =VLOOKUP(G23,'Liste de prix'!$1:$1048576,4,FALSE) -> 120 | Q23: 10 | R23: 9
A24: 100016507 | B24: =VLOOKUP(A24,'Liste de prix'!$1:$1048576,2,FALSE) -> KIT DE LIAISON HYDRAULIQUE ENTRE CAPTEURS | C24: =VLOOKUP(A24,'Liste de prix'!$1:$1048576,3,FALSE) -> ER246 | D24: =VLOOKUP(A24,'Liste de prix'!$1:$1048576,4,FALSE) -> 41 | E24: =TBB -> 0 | G24: 100016507 | H24: =VLOOKUP(G24,'Liste de prix'!$1:$1048576,2,FALSE) -> KIT DE LIAISON HYDRAULIQUE ENTRE CAPTEURS | I24: =VLOOKUP(G24,'Liste de prix'!$1:$1048576,3,FALSE) -> ER246 | J24: =VLOOKUP(G24,'Liste de prix'!$1:$1048576,4,FALSE) -> 41
A25: 100016508 | B25: =VLOOKUP(A25,'Liste de prix'!$1:$1048576,2,FALSE) -> KIT FLEXIBLES CIRCUIT SOLAIRE CHAMP CAPTEURS | C25: =VLOOKUP(A25,'Liste de prix'!$1:$1048576,3,FALSE) -> ER247 | D25: =VLOOKUP(A25,'Liste de prix'!$1:$1048576,4,FALSE) -> 77 | E25: =TAA -> 0 | G25: 100016508 | H25: =VLOOKUP(G25,'Liste de prix'!$1:$1048576,2,FALSE) -> KIT FLEXIBLES CIRCUIT SOLAIRE CHAMP CAPTEURS | I25: =VLOOKUP(G25,'Liste de prix'!$1:$1048576,3,FALSE) -> ER247 | J25: =VLOOKUP(G25,'Liste de prix'!$1:$1048576,4,FALSE) -> 77 | Q25: Table C
Q26: 0 | R26: 0
Q27: 2 | R27: 2
Q28: 3 | R28: 3
A29: Dispositif de montage en terrasse (ou ausol) | G29: Dispositif de montage en terrasse (ou ausol) | Q29: 4 | R29: 4
Q30: 5 | R30: 5
A31: High load | G31: High load | Q31: 6 | R31: 6
Q32: 7 | R32: 7
A33: 100016509 | B33: =VLOOKUP(A33,'Liste de prix'!$1:$1048576,2,FALSE) -> 2 SUPPORTS HL AVEC CROIX MONTAGE VERTICAL 1 C250 SANS PROFILES | C33: =VLOOKUP(A33,'Liste de prix'!$1:$1048576,3,FALSE) -> ER250 | D33: =VLOOKUP(A33,'Liste de prix'!$1:$1048576,4,FALSE) -> 312 | E33: =TAA -> 0 | G33: 100016511 | H33: =VLOOKUP(G33,'Liste de prix'!$1:$1048576,2,FALSE) -> 2 SUPPORTS HL AVEC CROIX MONTAGE HORIZONTAL 1 C250 SANS PROFILES | I33: =VLOOKUP(G33,'Liste de prix'!$1:$1048576,3,FALSE) -> ER252 | J33: =VLOOKUP(G33,'Liste de prix'!$1:$1048576,4,FALSE) -> 255 | Q33: 8 | R33: 8
A34: 100016510 | B34: =VLOOKUP(A34,'Liste de prix'!$1:$1048576,2,FALSE) -> 1 SUPPORT HL VERTICAL POUR EXTENSION 1 C250 | C34: =VLOOKUP(A34,'Liste de prix'!$1:$1048576,3,FALSE) -> ER251 | D34: =VLOOKUP(A34,'Liste de prix'!$1:$1048576,4,FALSE) -> 161 | E34: =TBB -> 0 | G34: 100016512 | H34: =VLOOKUP(G34,'Liste de prix'!$1:$1048576,2,FALSE) -> 1 SUPPORT HL HORIZONTAL POUR EXTENSION 1 C250 | I34: =VLOOKUP(G34,'Liste de prix'!$1:$1048576,3,FALSE) -> ER253 | J34: =VLOOKUP(G34,'Liste de prix'!$1:$1048576,4,FALSE) -> 145 | Q34: 9 | R34: 9
Q35: 10 | R35: 10
A36: Standard | G36: Standard
Q37: ferrures | R37: 4 pces | S37: 6 pces
A38: 7217038 | B38: =VLOOKUP(A38,'Liste de prix'!$1:$1048576,2,FALSE) -> 2 SUPPORTS SL MONTAGE VERTICAL 1 CAPTEUR | C38: =VLOOKUP(A38,'Liste de prix'!$1:$1048576,3,FALSE) -> ER658 | D38: =VLOOKUP(A38,'Liste de prix'!$1:$1048576,4,FALSE) -> 196 | E38: =TAA -> 0 | G38: 7217041 | H38: =VLOOKUP(G38,'Liste de prix'!$1:$1048576,2,FALSE) -> 2 SUPPORTS SL HL MONTAGE HORIZONTAL 1 CAPTEUR | I38: =VLOOKUP(G38,'Liste de prix'!$1:$1048576,3,FALSE) -> ER656 | J38: =VLOOKUP(G38,'Liste de prix'!$1:$1048576,4,FALSE) -> 156 | Q38: 0 | R38: 0 | S38: 0
Q39: 2 | R39: 0 | S39: 1
A40: 7217039 | B40: =VLOOKUP(A40,'Liste de prix'!$1:$1048576,2,FALSE) -> 1 SUPPORT SL VERTICAL POUR EXTENSION 1 CAPTEUR | C40: =VLOOKUP(A40,'Liste de prix'!$1:$1048576,3,FALSE) -> ER659 | D40: =VLOOKUP(A40,'Liste de prix'!$1:$1048576,4,FALSE) -> 91 | E40: =TBB -> 0 | G40: 100017620 | H40: =VLOOKUP(G40,'Liste de prix'!$1:$1048576,2,FALSE) ->  | I40: =VLOOKUP(G40,'Liste de prix'!$1:$1048576,3,FALSE) ->  | J40: =VLOOKUP(G40,'Liste de prix'!$1:$1048576,4,FALSE) ->  | Q40: 3 | R40: 2 | S40: 0
A41: 7217044 | B41: =VLOOKUP(A41,'Liste de prix'!$1:$1048576,2,FALSE) -> KIT PROFILES 45 MTGE VT | C41: =VLOOKUP(A41,'Liste de prix'!$1:$1048576,3,FALSE) -> ER664 | D41: =VLOOKUP(A41,'Liste de prix'!$1:$1048576,4,FALSE) -> 80 | E41: =TCC -> 0 | G41: 7217048 | H41: =VLOOKUP(G41,'Liste de prix'!$1:$1048576,2,FALSE) -> KIT PROFILES 45 2,5M2 HZ | I41: =VLOOKUP(G41,'Liste de prix'!$1:$1048576,3,FALSE) -> ER662 | J41: =VLOOKUP(G41,'Liste de prix'!$1:$1048576,4,FALSE) -> 98 | Q41: 4 | R41: 1 | S41: 1
Q42: 5 | R42: 0 | S42: 2
A43: Dispositif de montage en intégration toiture | G43: Dispositif de montage en intégration toiture | Q43: 6 | R43: 2 | S43: 1
Q44: 7 | R44: 1 | S44: 2
A45: 7212864 | B45: =VLOOKUP(A45,'Liste de prix'!$1:$1048576,2,FALSE) -> KIT DE BASE 22° D'INTEGRATION TUILE MECANIQUE 1 C250 V | C45: =VLOOKUP(A45,'Liste de prix'!$1:$1048576,3,FALSE) -> ER634 | D45: =VLOOKUP(A45,'Liste de prix'!$1:$1048576,4,FALSE) -> 551 | E45: 0 | G45: 7212866 | H45: =VLOOKUP(G45,'Liste de prix'!$1:$1048576,2,FALSE) -> KIT DE BASE 22° D'INTEGRATION TUILE MECANIQUE 1 C250 H | I45: =VLOOKUP(G45,'Liste de prix'!$1:$1048576,3,FALSE) -> ER637 | J45: =VLOOKUP(G45,'Liste de prix'!$1:$1048576,4,FALSE) -> 583 | Q45: 8 | R45: 0 | S45: 3
A46: 7212869 | B46: =VLOOKUP(A46,'Liste de prix'!$1:$1048576,2,FALSE) -> KIT DE BASE 22° D'INTEGRATION TUILE MECANIQUE 2 C250 V | C46: =VLOOKUP(A46,'Liste de prix'!$1:$1048576,3,FALSE) -> ER635 | D46: =VLOOKUP(A46,'Liste de prix'!$1:$1048576,4,FALSE) -> 795 | E46: =IF(AND(B4<>2,B4<>3,B4<>4),0,1)*C4+IF(AND(B5<>2,B5<>3,B5<>4),0,1)*C5+IF(AND(B6<>2,B6<>3,B6<>4),0,1)*C6 -> 0 | G46: 7212870 | H46: =VLOOKUP(G46,'Liste de prix'!$1:$1048576,2,FALSE) -> KIT DE BASE 22° D'INTEGRATION TUILE MECANIQUE 2 C250 H | I46: =VLOOKUP(G46,'Liste de prix'!$1:$1048576,3,FALSE) -> ER638 | J46: =VLOOKUP(G46,'Liste de prix'!$1:$1048576,4,FALSE) -> 954 | Q46: 9 | R46: 2 | S46: 2
A47: 7212867 | B47: =VLOOKUP(A47,'Liste de prix'!$1:$1048576,2,FALSE) -> KIT EXTENSION 22° INTEGRATION TUILE MECANIQUE 1 C 250 V | C47: =VLOOKUP(A47,'Liste de prix'!$1:$1048576,3,FALSE) -> ER636 | D47: =VLOOKUP(A47,'Liste de prix'!$1:$1048576,4,FALSE) -> 329 | E47: =IF(B4=3,1,IF(B4=4,2,0))*C4+IF(B5=3,1,IF(B5=4,2,0))*C5+IF(B6=3,1,IF(B6=4,2,0))*C6 -> 0 | G47: 7212868 | H47: =VLOOKUP(G47,'Liste de prix'!$1:$1048576,2,FALSE) -> KIT EXTENSION 22° INTEGRATION TUILE MECANIQUE C 250 H | I47: =VLOOKUP(G47,'Liste de prix'!$1:$1048576,3,FALSE) -> ER639 | J47: =VLOOKUP(G47,'Liste de prix'!$1:$1048576,4,FALSE) -> 425 | Q47: 10 | R47: 1 | S47: 3
A48: 7212872 | B48: =VLOOKUP(A48,'Liste de prix'!$1:$1048576,2,FALSE) -> KIT DE BASE 17° D'INTEGRATION TUILE CANAL 1 C250 V | C48: =VLOOKUP(A48,'Liste de prix'!$1:$1048576,3,FALSE) -> ER640 | D48: =VLOOKUP(A48,'Liste de prix'!$1:$1048576,4,FALSE) -> 721 | E48: 0 | G48: 7212873 | H48: =VLOOKUP(G48,'Liste de prix'!$1:$1048576,2,FALSE) -> KIT DE BASE 17° D'INTEGRATION TUILE CANAL 1 C250 H | I48: =VLOOKUP(G48,'Liste de prix'!$1:$1048576,3,FALSE) -> ER643 | J48: =VLOOKUP(G48,'Liste de prix'!$1:$1048576,4,FALSE) -> 806
A49: 7503821 | B49: =VLOOKUP(A49,'Liste de prix'!$1:$1048576,2,FALSE) -> KIT DE BASE 17° D'INTEGRATION TUILE CANAL 2 C250 V | C49: =VLOOKUP(A49,'Liste de prix'!$1:$1048576,3,FALSE) -> ER641 | D49: =VLOOKUP(A49,'Liste de prix'!$1:$1048576,4,FALSE) -> 1113 | E49: =IF(AND(B4<>2,B4<>3,B4<>4),0,1)*C4+IF(AND(B5<>2,B5<>3,B5<>4),0,1)*C5+IF(AND(B6<>2,B6<>3,B6<>4),0,1)*C6 -> 0 | G49: 7212880 | H49: =VLOOKUP(G49,'Liste de prix'!$1:$1048576,2,FALSE) -> KIT DE BASE 17° D'INTEGRATION TUILE CANAL 2 C250 H | I49: =VLOOKUP(G49,'Liste de prix'!$1:$1048576,3,FALSE) -> ER644 | J49: =VLOOKUP(G49,'Liste de prix'!$1:$1048576,4,FALSE) -> 1325 | Q49: Ferrures alu pour profilés | R49: 2pces | S49: 4pces
A50: 7212875 | B50: =VLOOKUP(A50,'Liste de prix'!$1:$1048576,2,FALSE) -> KIT EXTENSION 17° INTEGRATION TUILE CANAL C 250 V | C50: =VLOOKUP(A50,'Liste de prix'!$1:$1048576,3,FALSE) -> ER642 | D50: =VLOOKUP(A50,'Liste de prix'!$1:$1048576,4,FALSE) -> 425 | E50: =IF(B4=3,1,IF(B4=4,2,0))*C4+IF(B5=3,1,IF(B5=4,2,0))*C5+IF(B6=3,1,IF(B6=4,2,0))*C6 -> 0 | G50: 7212877 | H50: =VLOOKUP(G50,'Liste de prix'!$1:$1048576,2,FALSE) -> KIT EXTENSION 17° INTEGRATION TUILE CANAL C 250 H | I50: =VLOOKUP(G50,'Liste de prix'!$1:$1048576,3,FALSE) -> ER645 | J50: =VLOOKUP(G50,'Liste de prix'!$1:$1048576,4,FALSE) -> 478 | Q50: 0 | R50: 0 | S50: 0
Q51: 2 | R51: 1 | S51: 1
Q52: 3 | R52: 0 | S52: 2
A53: Dispositif de montage sur toiture (kit profilé et ferrures d'ancrage) | G53: Dispositif de montage sur toiture (kit profilé et ferrures d'ancrage) | Q53: 4 | R53: 1 | S53: 2
Q54: 5 | R54: 0 | S54: 3
A55: 100016513 | B55: =VLOOKUP(A55,'Liste de prix'!$1:$1048576,2,FALSE) -> KIT PROFILES A CLIPER POUR 1 C250 V | C55: =VLOOKUP(A55,'Liste de prix'!$1:$1048576,3,FALSE) -> ER260 | D55: =VLOOKUP(A55,'Liste de prix'!$1:$1048576,4,FALSE) -> 139 | E55: =TCC -> 0 | G55: 100016514 | H55: =VLOOKUP(G55,'Liste de prix'!$1:$1048576,2,FALSE) -> KIT PROFILES A CLIPER POUR 1 C250 H | I55: =VLOOKUP(G55,'Liste de prix'!$1:$1048576,3,FALSE) -> ER261 | J55: =VLOOKUP(G55,'Liste de prix'!$1:$1048576,4,FALSE) -> 173 | Q55: 6 | R55: 1 | S55: 3
A56: 7217044 | B56: =VLOOKUP(A56,'Liste de prix'!$1:$1048576,2,FALSE) -> KIT PROFILES 45 MTGE VT | C56: =VLOOKUP(A56,'Liste de prix'!$1:$1048576,3,FALSE) -> ER664 | D56: =VLOOKUP(A56,'Liste de prix'!$1:$1048576,4,FALSE) -> 80 | E56: =TCC -> 0 | G56: 7217048 | H56: =VLOOKUP(G56,'Liste de prix'!$1:$1048576,2,FALSE) -> KIT PROFILES 45 2,5M2 HZ | I56: =VLOOKUP(G56,'Liste de prix'!$1:$1048576,3,FALSE) -> ER662 | J56: =VLOOKUP(G56,'Liste de prix'!$1:$1048576,4,FALSE) -> 98 | Q56: 7 | R56: 0 | S56: 4
Q57: 8 | R57: 1 | S57: 4
A58: 89807311 | B58: 4 FERRURES D'ANCRAGE ALU POUR MONTAGE SUR TUILES MÉCANIQUES | C58: EG311 | D58: =VLOOKUP(A58,'Liste de prix'!$1:$1048576,4,FALSE) -> 98 | E58: =D12 -> 0 | G58: 89807311 | H58: 4 FERRURES D'ANCRAGE ALU POUR MONTAGE SUR TUILES MÉCANIQUES | I58: EG311 | J58: 85 | Q58: 9 | R58: 0 | S58: 5
A59: 89807312 | B59: 6 FERRURES D'ANCRAGE ALU POUR MONTAGE SUR TUILES MÉCANIQUES | C59: EG312 | D59: =VLOOKUP(A59,'Liste de prix'!$1:$1048576,4,FALSE) -> 141 | E59: =D13 -> 0 | G59: 89807312 | H59: 6 FERRURES D'ANCRAGE ALU POUR MONTAGE SUR TUILES MÉCANIQUES | I59: EG312 | J59: 122 | Q59: 10 | R59: 1 | S59: 5
A60: 89807313 | B60: 4 FERRURES D'ANCRAGE INOX POUR MONTAGE SUR TUILES MÉCANIQUES | C60: EG313 | D60: =VLOOKUP(A60,'Liste de prix'!$1:$1048576,4,FALSE) -> 98 | E60: =D12 -> 0 | G60: 89807313 | H60: 4 FERRURES D'ANCRAGE INOX POUR MONTAGE SUR TUILES MÉCANIQUES | I60: EG313 | J60: 85
A61: 89807314 | B61: 6 FERRURES D'ANCRAGE INOX POUR MONTAGE SUR TUILES MÉCANIQUES | C61: EG314 | D61: =VLOOKUP(A61,'Liste de prix'!$1:$1048576,4,FALSE) -> 141 | E61: =D13 -> 0 | G61: 89807314 | H61: 6 FERRURES D'ANCRAGE INOX POUR MONTAGE SUR TUILES MÉCANIQUES | I61: EG314 | J61: 122 | Q61: Tire fonds | R61: 6 | S61: 8
A62: 89807315 | B62: 4 FERRURES D'ANCRAGE INOX POUR MONTAGE SUR TUILES PLATES | C62: EG315 | D62: =VLOOKUP(A62,'Liste de prix'!$1:$1048576,4,FALSE) -> 98 | E62: =D16 -> 0 | G62: 89807315 | H62: 4 FERRURES D'ANCRAGE INOX POUR MONTAGE SUR TUILES PLATES | I62: EG315 | J62: 85 | Q62: 0 | R62: 0 | S62: 0
A63: 89807316 | B63: 6 FERRURES D'ANCRAGE INOX POUR MONTAGE SUR TUILES PLATES | C63: EG316 | D63: =VLOOKUP(A63,'Liste de prix'!$1:$1048576,4,FALSE) -> 141 | E63: =D13 -> 0 | G63: 89807316 | H63: 6 FERRURES D'ANCRAGE INOX POUR MONTAGE SUR TUILES PLATES | I63: EG316 | J63: 122 | Q63: 2 | R63: 0 | S63: 1
A64: 100015315 | B64: 6 FERRURES D'ANCRAGE INOX POUR MONTAGE SUR TUILES CANAL | C64: ER137 | D64: =VLOOKUP(A64,'Liste de prix'!$1:$1048576,4,FALSE) -> 141 | E64: =D13 -> 0 | H64: 6 FERRURES D'ANCRAGE INOX POUR MONTAGE SUR TUILES CANAL | I64: ER137 | J64: 122 | Q64: 3 | R64: 2 | S64: 0
A65: 89807317 | B65: 4 FERRURES D'ANCRAGE INOX POUR MONTAGE SUR TOIT ETERNIT | C65: EG317 | D65: =VLOOKUP(A65,'Liste de prix'!$1:$1048576,4,FALSE) -> 98 | E65: =D12 -> 0 | G65: 89807317 | H65: 4 FERRURES D'ANCRAGE INOX POUR MONTAGE SUR TOIT ETERNIT | I65: EG317 | J65: 85 | Q65: 4 | R65: 0 | S65: 2
A66: 89807318 | B66: 6 FERRURES D'ANCRAGE INOX POUR MONTAGE SUR TOIT ETERNIT | C66: EG318 | D66: =VLOOKUP(A66,'Liste de prix'!$1:$1048576,4,FALSE) -> 141 | E66: =D13 -> 0 | G66: 89807318 | H66: 6 FERRURES D'ANCRAGE INOX POUR MONTAGE SUR TOIT ETERNIT | I66: EG318 | J66: 122 | Q66: 5 | R66: 1 | S66: 2
A67: 89807319 | B67: 4 FERRURES D'ANCRAGE INOX POUR MONTAGE SUR TOIT D'ARDOISES | C67: EG319 | D67: =VLOOKUP(A67,'Liste de prix'!$1:$1048576,4,FALSE) -> 98 | E67: =D12 -> 0 | G67: 89807319 | H67: 4 FERRURES D'ANCRAGE INOX POUR MONTAGE SUR TOIT D'ARDOISES | I67: EG319 | J67: 85 | Q67: 6 | R67: 4 | S67: 0
A68: 89807320 | B68: 6 FERRURES D'ANCRAGE INOX POUR MONTAGE SUR TOIT D'ARDOISES | C68: EG320 | D68: =VLOOKUP(A68,'Liste de prix'!$1:$1048576,4,FALSE) -> 141 | E68: =D13 -> 0 | G68: 89807320 | H68: 6 FERRURES D'ANCRAGE INOX POUR MONTAGE SUR TOIT D'ARDOISES | I68: EG320 | J68: 122 | Q68: 7 | R68: 2 | S68: 2
A69: 100015314 | B69: 4 FERRURES D'ANCRAGE INOX POUR MONTAGE SUR TUILES CANAL | C69: ER136 | D69: =VLOOKUP(A69,'Liste de prix'!$1:$1048576,4,FALSE) -> 97 | E69: =D12 -> 0 | H69: 4 FERRURES D'ANCRAGE INOX POUR MONTAGE SUR TUILES CANAL | I69: ER136 | J69: 85 | Q69: 8 | R69: 0 | S69: 4
A70: 100016517 | B70: 4 FERRURES D'ANCRAGE ALU A CRANS MTGE SUR CHEVRON | C70: ER264 | D70: =VLOOKUP(A70,'Liste de prix'!$1:$1048576,4,FALSE) -> 131 | E70: =F12 -> 0 | G70: 100016517 | H70: 4 FERRURES D'ANCRAGE ALU A CRANS MTGE SUR CHEVRON | I70: ER264 | J70: 115 | Q70: 9 | R70: 6 | S70: 0
A71: 100016518 | B71: 2 FERRURES D'ANCRAGE ALU A CRANS MTGE SUR CHEVRON | C71: ER265 | D71: =VLOOKUP(A71,'Liste de prix'!$1:$1048576,4,FALSE) -> 79 | E71: =F13 -> 0 | G71: 100016518 | H71: 2 FERRURES D'ANCRAGE ALU A CRANS MTGE SUR CHEVRON | I71: ER265 | J71: 70 | Q71: 10 | R71: 5 | S71: 0
A72: 89807782 | B72: KIT TIRE-FONDS POUR MONTAGE 2 CAPTEURS | C72: EG94 | D72: =VLOOKUP(A72,'Liste de prix'!$1:$1048576,4,FALSE) -> 247 | E72: =H12 -> 0 | G72: 89807782 | H72: KIT TIRE-FONDS POUR MONTAGE 2 CAPTEURS | I72: EG94 | J72: 219
A73: 89807783 | B73: KIT TIRE-FONDS POUR MONTAGE 3 CAPTEURS | C73: EG95 | D73: =VLOOKUP(A73,'Liste de prix'!$1:$1048576,4,FALSE) -> 310 | E73: =H13 -> 0 | G73: 89807783 | H73: KIT TIRE-FONDS POUR MONTAGE 3 CAPTEURS | I73: EG95 | J73: 268
A82: =IF('SUN C250'!E41='feuille PRO c250'!M1,'feuille PRO c250'!A33,IF('SUN C250'!E41='feuille PRO c250'!M2,'feuille PRO c250'!A38,IF('SUN C250'!E41=M6,A46,IF('SUN C250'!E41=M7,A49,IF('SUN C250'!E41='feuille PRO c250'!M10,'feuille PRO c250'!A56))))) -> 7503821 | B82: =VLOOKUP(A82,'Liste de prix'!$1:$1048576,2,FALSE) -> KIT DE BASE 17° D'INTEGRATION TUILE CANAL 2 C250 V | C82: =VLOOKUP(A82,'Liste de prix'!$1:$1048576,3,FALSE) -> ER641 | D82: =VLOOKUP(A82,'Liste de prix'!$1:$1048576,4,FALSE) -> 1113 | E82: =IF('SUN C250'!E41='feuille PRO c250'!M1,'feuille PRO c250'!E33,IF('SUN C250'!E41='feuille PRO c250'!M2,'feuille PRO c250'!E38,IF('SUN C250'!E41='feuille PRO c250'!M6,'feuille PRO c250'!E46,IF('SUN C250'!E41='feuille PRO c250'!M7,'feuille PRO c250'!E49,IF('SUN C250'!E41='feuille PRO c250'!M10,'feuille PRO c250'!E55,IF('SUN C250'!E41='feuille PRO c250'!M11,'feuille PRO c250'!E56)))))) -> 0 | G82: =IF('SUN C250'!E41='feuille PRO c250'!M1,'feuille PRO c250'!G33,IF('SUN C250'!E41='feuille PRO c250'!M2,'feuille PRO c250'!G38,IF('SUN C250'!E41='feuille PRO c250'!M6,'feuille PRO c250'!G46,IF('SUN C250'!E41='feuille PRO c250'!M7,'feuille PRO c250'!G49,IF('SUN C250'!E41='feuille PRO c250'!M10,'feuille PRO c250'!G55,IF('SUN C250'!E41='feuille PRO c250'!M11,'feuille PRO c250'!G56)))))) -> 7212880 | H82: =VLOOKUP('feuille PRO c250'!G82,'Liste de prix'!$1:$1048576,2,FALSE) -> KIT DE BASE 17° D'INTEGRATION TUILE CANAL 2 C250 H | I82: =VLOOKUP('feuille PRO c250'!G82,'Liste de prix'!$1:$1048576,3,FALSE) -> ER644 | J82: =VLOOKUP('feuille PRO c250'!G82,'Liste de prix'!$1:$1048576,4,FALSE) -> 1325 | K82: =E82 -> 0
A83: =IF('SUN C250'!E41='feuille PRO c250'!M1,A34,IF('SUN C250'!E41='feuille PRO c250'!M2,A40,IF('SUN C250'!E41='feuille PRO c250'!M6,A47,IF('SUN C250'!E41='feuille PRO c250'!M7,'feuille PRO c250'!A50,"")))) -> 7212875 | B83: =IF(A83="","",VLOOKUP(A83,'Liste de prix'!$1:$1048576,2,FALSE)) -> KIT EXTENSION 17° INTEGRATION TUILE CANAL C 250 V | C83: =IF(A83="","",VLOOKUP(A83,'Liste de prix'!$1:$1048576,3,FALSE)) -> ER642 | D83: =IF(A83="","",VLOOKUP(A83,'Liste de prix'!$1:$1048576,4,FALSE)) -> 425 | E83: =IF('SUN C250'!E41='feuille PRO c250'!M1,E34,IF('SUN C250'!E41='feuille PRO c250'!M2,E40,IF('SUN C250'!E41='feuille PRO c250'!M6,E47,IF('SUN C250'!E41='feuille PRO c250'!M7,'feuille PRO c250'!E50,"")))) -> 0 | G83: =IF('SUN C250'!E41='feuille PRO c250'!M1,G34,IF('SUN C250'!E41='feuille PRO c250'!M2,G40,IF('SUN C250'!E41='feuille PRO c250'!M6,G47,IF('SUN C250'!E41='feuille PRO c250'!M7,'feuille PRO c250'!G50,"")))) -> 7212877 | H83: =IF(G83="","",VLOOKUP('feuille PRO c250'!G83,'Liste de prix'!$1:$1048576,2,FALSE)) -> KIT EXTENSION 17° INTEGRATION TUILE CANAL C 250 H | I83: =IF(G83="","",VLOOKUP('feuille PRO c250'!G83,'Liste de prix'!$1:$1048576,3,FALSE)) -> ER645 | J83: =IF(G83="","",VLOOKUP('feuille PRO c250'!G83,'Liste de prix'!$1:$1048576,4,FALSE)) -> 478 | K83: =E83 -> 0
A84: =IF('SUN C250'!E41='feuille PRO c250'!M2,A41,"") ->  | B84: =IF('SUN C250'!E41='feuille PRO c250'!M2,B41,"") ->  | C84: =IF('SUN C250'!E41='feuille PRO c250'!M2,C41,"") ->  | D84: =IF('SUN C250'!E41='feuille PRO c250'!M2,D41,"") ->  | E84: =IF('SUN C250'!E41='feuille PRO c250'!M2,E41,"") ->  | G84: =IF('SUN C250'!E41='feuille PRO c250'!M2,G41,"") ->  | H84: =IF('SUN C250'!E41='feuille PRO c250'!M2,H41,"") ->  | I84: =IF('SUN C250'!E41='feuille PRO c250'!M2,I41,"") ->  | J84: =IF('SUN C250'!E41='feuille PRO c250'!M2,J41,"") ->  | K84: =E84 -> 
A87: =VLOOKUP('SUN C250'!E50,'feuille PRO c250'!A92:B99,2,FALSE) -> 89807311 | B87: =VLOOKUP(A87,A58:E73,2,FALSE) -> 4 FERRURES D'ANCRAGE ALU POUR MONTAGE SUR TUILES MÉCANIQUES | C87: =VLOOKUP(A87,A58:E73,3,FALSE) -> EG311 | D87: =VLOOKUP(A87,A58:E73,4,FALSE) -> 98 | E87: =VLOOKUP(A87,A58:E73,5,FALSE) -> 0
A88: =A87+1 -> 89807312 | B88: =VLOOKUP(A88,A58:E73,2,FALSE) -> 6 FERRURES D'ANCRAGE ALU POUR MONTAGE SUR TUILES MÉCANIQUES | C88: =VLOOKUP(A88,A58:E73,3,FALSE) -> EG312 | D88: =VLOOKUP(A88,A58:E73,4,FALSE) -> 141 | E88: =VLOOKUP(A88,A58:E73,5,FALSE) -> 0
A92: Tuiles mécaniques (alu) | B92: 89807311
A93: Tuiles mécaniques (inox) | B93: 89807313
A94: Tuiles plates | B94: 89807315
A95: Tuiles canal | B95: 100015314
A96: Tuiles éternit | B96: 89807317
A97: Tuiles ardoises | B97: 89807319
A99: kit tire-fonds | B99: 89807782

Sheet Liste de prix (hidden)
A1: N°Article | B1: Désignation | C1: Colis | D1: Tarif HT au 01/01/2017 | E1: Eco Participation HT | F1: code eco taxe 2017 | G1: Classe Energétique Chauffage | H1: Classe Ener- gétique ECS | I1: Profil de puisage ECS | J1: Code EAN | K1: Poids | L1: Long mm | M1: Larg mm | N1: Haut mm | O1: Groupe article
A3: LA LEGISLATION IMPOSE UNE ECO-PARTICIPATION AFIN D'ORGANISER SUR LE TERRITOIRE NATIONAL LA COLLECTE ET
A4: LE RECYCLAGE DE CERTAINS PRODUITS ELECTRIQUES ET ELECTRONIQUES D'EQUIPEMENTS DE LA MAISON . CELA SIGNIFIE QUE LE
A5: CONSOMMATEUR POURRA DEMANDER AU PROFESSIONNEL LA REPRISE DE L'ANCIEN MATERIEL CONTRE L'ACHAT D'UN NOUVEL
A6: EQUIPEMENT DE MEME NATURE , SELON LE PRINCIPE DE << UN >> POUR << UN >> .
A7: LES PRODUITS ELIGIBLES SONT REPERTORIES SUR LE SITE OFFICIEL : www.eco-systemes.fr
A8: ET APPARAISSENT DANS NOTRE TARIF AVEC UN MONTANT HT D'ECO-PARTICIPATION
A9: * TOUT MONTANT D'ECO PARTICIPATION EST SUSCEPTIBLE D'EVOLUER EN CAS DE MODIFICATION DU BAREME PAR NOTRE ORGANISME COLLECTEUR
A11: FAMILLE: | B11: POMPE A CHALEUR
B13: VERSIONS POUR CHAUFFAGE ET RAFRAICHISSEMENT
A14: 7610054 | B14: OENOVIAPAC-2 4 MR-3/H | D14: =D30+D37+D42 -> 4068 | G14: A+++ | H14: / | I14: / | J14: 366123859383 | K14: 83.7 | O14: C9
A15: 7610055 | B15: OENOVIAPAC-2 4 MR-3/EM | D15: =D30+D39+D42 -> 4068 | G15: A+++ | H15: / | I15: / | J15: 366123859384 | K15: 83.7 | O15: C9
A16: 7610056 | B16: OENOVIAPAC-2 6 MR-3/H | D16: =D31+D37+D42 -> 4157 | G16: A++ | H16: / | I16: / | J16: 366123859385 | K16: 82.7 | O16: C9
A17: 7610057 | B17: OENOVIAPAC-2 6 MR-3/EM | D17: =D31+D39+D42 -> 4157 | G17: A++ | H17: / | I17: / | J17: 366123859386 | K17: 82.7 | O17: C9
A18: 7610058 | B18: OENOVIAPAC-2 8 MR-3/H | D18: =D32+D37 -> 4850 | G18: A++ | H18: / | I18: / | J18: 366123859387 | K18: 112.2 | O18: C9
A19: 7610059 | B19: OENOVIAPAC-2 8 MR-3/EM | D19: =D32+D39 -> 4850 | G19: A++ | H19: / | I19: / | J19: 366123859388 | K19: 112.2 | O19: C9
A20: 7610060 | B20: OENOVIAPAC-2 11 MR-3/H | D20: =D33+D38 -> 6238 | G20: A++ | H20: / | I20: / | J20: 366123859389 | K20: 168.7 | O20: C9
A21: 7610061 | B21: OENOVIAPAC-2 11 MR-3/EM | D21: =D33+D40 -> 6238 | G21: A++ | H21: / | I21: / | J21: 366123859390 | K21: 168.7 | O21: C9
A22: 7610062 | B22: OENOVIAPAC-2 11 TR-3/H | D22: =D34+D38 -> 6542 | G22: A++ | H22: / | I22: / | J22: 366123859391 | K22: 182.7 | O22: C9
A23: 7610063 | B23: OENOVIAPAC-2 11 TR-3/ET | D23: =D34+D41 -> 6542 | G23: A++ | H23: / | I23: / | J23: 366123859392 | K23: 182.7 | O23: C9
A24: 7610064 | B24: OENOVIAPAC-2 16 MR-3/H | D24: =D35+D38 -> 7331 | G24: A++ | H24: / | I24: / | J24: 366123859393 | K24: 168.7 | O24: C9
A25: 7610065 | B25: OENOVIAPAC-2 16 MR-3/EM | D25: =D35+D40 -> 7331 | G25: A++ | H25: / | I25: / | J25: 366123859394 | K25: 168.7 | O25: C9
A26: 7610066 | B26: OENOVIAPAC-2 16 TR-3/H | D26: =D36+D38 -> 7756 | G26: A++ | H26: / | I26: / | J26: 366123859395 | K26: 182.7 | O26: C9
A27: 7610067 | B27: OENOVIAPAC-2 16 TR-3/ET | D27: =D36+D41 -> 7756 | G27: A++ | H27: / | I27: / | J27: 366123859396 | K27: 182.7 | O27: C9
A29: COMPOSANTS
A30: 7603571 | B30: AWHP 4 MR | C30: EH336 | D30: 1837 | E30: 6.67 | F30: 11050 | G30: / | H30: / | I30: / | J30: 3661238581012 | K30: 48 | L30: 450 | M30: 950 | N30: 690 | O30: C9
A31: 7609925 | B31: AWHP 6 MR-2 | C31: EH380 | D31: 1926 | E31: 6.67 | F31: 11050 | G31: / | H31: / | I31: / | J31: 3661238589513 | K31: 47 | L31: 450 | M31: 950 | N31: 690 | O31: C9
A32: 7609926 | B32: AWHP 8 MR-2 | C32: EH381 | D32: 2677 | E32: 6.67 | F32: 11050 | G32: / | H32: / | I32: / | J32: 3661238589520 | K32: 77 | L32: 450 | M32: 1040 | N32: 1030 | O32: C9
A33: 7609927 | B33: AWHP 11 MR-2 | C33: EH382 | D33: 3529 | E33: 6.67 | F33: 11050 | G33: / | H33: / | I33: / | J33: 3661238589537 | K33: 131 | L33: 450 | M33: 1040 | N33: 1440 | O33: C9
A34: 7609928 | B34: AWHP 11 TR-2 | C34: EH383 | D34: 3833 | E34: 6.67 | F34: 11050 | G34: / | H34: / | I34: / | J34: 3661238589544 | K34: 145 | L34: 450 | M34: 1040 | N34: 1440 | O34: C9
A35: 7609929 | B35: AWHP 16 MR-2 | C35: EH384 | D35: 4622 | E35: 6.67 | F35: 11050 | G35: / | H35: / | I35: / | J35: 3661238589551 | K35: 131 | L35: 450 | M35: 1040 | N35: 1440 | O35: C9
A36: 7609930 | B36: AWHP 16 TR-2 | C36: EH385 | D36: 5047 | E36: 6.67 | F36: 11050 | G36: / | H36: / | I36: / | J36: 3661238589568 | K36: 145 | L36: 450 | M36: 1040 | N36: 1440 | O36: C9
A37: 7609961 | B37: MHX-3/H 4-8 | C37: EH413 | D37: 2173 | G37: / | H37: / | I37: / | J37: 3661238589841 | K37: 35.2 | L37: 465 | M37: 465 | N37: 800 | O37: C9
A38: 7609962 | B38: MHX-3/H 11-16 | C38: EH414 | D38: 2709 | G38: / | H38: / | I38: / | J38: 3661238589858 | K38: 37.7 | L38: 465 | M38: 465 | N38: 800 | O38: C9
A39: 7609963 | B39: MHX-3/EM 4-8 | C39: EH415 | D39: 2173 | G39: / | H39: / | I39: / | J39: 3661238589865 | K39: 35.2 | L39: 465 | M39: 465 | N39: 800 | O39: C9
A40: 7609964 | B40: MHX-3/EM 11-16 | C40: EH416 | D40: 2709 | G40: / | H40: / | I40: / | J40: 3661238589872 | K40: 37.7 | L40: 465 | M40: 465 | N40: 800 | O40: C9
A41: 7609965 | B41: MHX-3/ET 11-16 | C41: EH417 | D41: 2709 | G41: / | H41: / | I41: / | J41: 3661238589889 | K41: 37.7 | L41: 465 | M41: 465 | N41: 800 | O41: C9
A42: 100015480 | B42: RACCORD D'ADAPTATION FRIGO POUR 4 kW ET 6 kW | C42: EH146 | D42: 58 | G42: / | H42: / | I42: / | J42: 3661238381612 | K42: 0.5 | L42: 150 | M42: 80 | N42: 30 | O42: C9
B44: VERSIONS POUR CLIMATISATION
A45: 7610068 | B45: OENOVIAPAC-2 4 MR-3/HI | D45: =D61+D68+D73+D75 -> 5122 | G45: A+++ | H45: / | I45: / | J45: 366123859397 | K45: 87.8 | O45: C9
A46: 7610069 | B46: OENOVIAPAC-2 4 MR-3/EMI | D46: =D61+D70+D73+D74 -> 5028 | G46: A+++ | H46: / | I46: / | J46: 366123859398 | K46: 86.7 | O46: C9
A47: 7610070 | B47: OENOVIAPAC-2 6 MR-3/HI | D47: =D62+D68+D73+D75 -> 5211 | G47: A++ | H47: / | I47: / | J47: 366123859399 | K47: 86.8 | O47: C9
A48: 7610071 | B48: OENOVIAPAC-2 6 MR-3/EMI | D48: =D62+D70+D73+D74 -> 5117 | G48: A++ | H48: / | I48: / | J48: 366123859400 | K48: 85.7 | O48: C9
A49: 7610072 | B49: OENOVIAPAC-2 8 MR-3/HI | D49: =D63+D68+D75 -> 5904 | G49: A++ | H49: / | I49: / | J49: 366123859401 | K49: 116.3 | O49: C9
A50: 7610073 | B50: OENOVIAPAC-2 8 MR-3/EMI | D50: =D63+D70+D74 -> 5810 | G50: A++ | H50: / | I50: / | J50: 366123859402 | K50: 115.2 | O50: C9
A51: 7610074 | B51: OENOVIAPAC-2 11 MR-3/HI | D51: =D64+D69+D75 -> 7487 | G51: A++ | H51: / | I51: / | J51: 366123859403 | K51: 172.8 | O51: C9
A52: 7610075 | B52: OENOVIAPAC-2 11 MR-3/EMI | D52: =D64+D71+D74 -> 7393 | G52: A++ | H52: / | I52: / | J52: 366123859404 | K52: 171.7 | O52: C9
A53: 7610076 | B53: OENOVIAPAC-2 11 TR-3/HI | D53: =D65+D69+D75 -> 7791 | G53: A++ | H53: / | I53: / | J53: 366123859405 | K53: 186.8 | O53: C9
A54: 7610077 | B54: OENOVIAPAC-2 11 TR-3/ETI | D54: =D65+D72+D74 -> 7697 | G54: A++ | H54: / | I54: / | J54: 366123859406 | K54: 185.7 | O54: C9
A55: 7610078 | B55: OENOVIAPAC-2 16 MR-3/HI | D55: =D66+D69+D75 -> 8580 | G55: A++ | H55: / | I55: / | J55: 366123859407 | K55: 172.8 | O55: C9
A56: 7610079 | B56: OENOVIAPAC-2 16 MR-3/EMI | D56: =D66+D71+D74 -> 8486 | G56: A++ | H56: / | I56: / | J56: 366123859408 | K56: 171.7 | O56: C9
A57: 7610080 | B57: OENOVIAPAC-2 16 TR-3/HI | D57: =D67+D69+D75 -> 9005 | G57: A++ | H57: / | I57: / | J57: 366123859409 | K57: 186.8 | O57: C9
A58: 7610081 | B58: OENOVIAPAC-2 16 TR-3/ETI | D58: =D67+D72+D74 -> 8911 | G58: A++ | H58: / | I58: / | J58: 366123859410 | K58: 185.7 | O58: C9
A60: COMPOSANTS
A61: 7603571 | B61: AWHP 4 MR | C61: EH336 | D61: 1837 | E61: 6.67 | F61: 11050 | G61: / | H61: / | I61: / | J61: 3661238581012 | K61: 48 | L61: 450 | M61: 950 | N61: 690 | O61: C9
A62: 7609925 | B62: AWHP 6 MR-2 | C62: EH380 | D62: 1926 | E62: 6.67 | F62: 11050 | G62: / | H62: / | I62: / | J62: 3661238589513 | K62: 47 | L62: 450 | M62: 950 | N62: 690 | O62: C9
A63: 7609926 | B63: AWHP 8 MR-2 | C63: EH381 | D63: 2677 | E63: 6.67 | F63: 11050 | G63: / | H63: / | I63: / | J63: 3661238589520 | K63: 77 | L63: 450 | M63: 1040 | N63: 1030 | O63: C9
A64: 7609927 | B64: AWHP 11 MR-2 | C64: EH382 | D64: 3529 | E64: 6.67 | F64: 11050 | G64: / | H64: / | I64: / | J64: 3661238589537 | K64: 131 | L64: 450 | M64: 1040 | N64: 1440 | O64: C9
A65: 7609928 | B65: AWHP 11 TR-2 | C65: EH383 | D65: 3833 | E65: 6.67 | F65: 11050 | G65: / | H65: / | I65: / | J65: 3661238589544 | K65: 145 | L65: 450 | M65: 1040 | N65: 1440 | O65: C9
A66: 7609929 | B66: AWHP 16 MR-2 | C66: EH384 | D66: 4622 | E66: 6.67 | F66: 11050 | G66: / | H66: / | I66: / | J66: 3661238589551 | K66: 131 | L66: 450 | M66: 1040 | N66: 1440 | O66: C9
A67: 7609930 | B67: AWHP 16 TR-2 | C67: EH385 | D67: 5047 | E67: 6.67 | F67: 11050 | G67: / | H67: / | I67: / | J67: 3661238589568 | K67: 145 | L67: 450 | M67: 1040 | N67: 1440 | O67: C9
A68: 7609966 | B68: MHX-3/HI 4-8 | C68: EH418 | D68: 2958 | G68: / | H68: / | I68: / | J68: 3661238589896 | K68: 35.2 | L68: 465 | M68: 465 | N68: 800 | O68: C9
A69: 7609967 | B69: MHX-3/HI 11-16 | C69: EH419 | D69: 3689 | G69: / | H69: / | I69: / | J69: 3661238589902 | K69: 37.7 | L69: 465 | M69: 465 | N69: 800 | O69: C9
A70: 7609968 | B70: MHX-3/EMI 4-8 | C70: EH420 | D70: 2958 | G70: / | H70: / | I70: / | J70: 3661238589919 | K70: 35.2 | L70: 465 | M70: 465 | N70: 800 | O70: C9
A71: 7609969 | B71: MHX-3/EMI 11-16 | C71: EH421 | D71: 3689 | G71: / | H71: / | I71: / | J71: 3661238589926 | K71: 37.7 | L71: 465 | M71: 465 | N71: 800 | O71: C9
A72: 7609970 | B72: MHX-3/ETI 11-16 | C72: EH422 | D72: 3689 | G72: / | H72: / | I72: / | J72: 3661238589933 | K72: 37.7 | L72: 465 | M72: 465 | N72: 800 | O72: C9
A73: 100015480 | B73: RACCORD D'ADAPTATION FRIGO POUR 4 kW ET 6 kW | C73: EH146 | D73: 58 | G73: / | H73: / | I73: / | J73: 3661238381612 | K73: 0.5 | L73: 150 | M73: 80 | N73: 30 | O73: C9
A74: 100015481 | B74: DOSSERET DE MONTAGE VERSION E | C74: EH147 | D74: 175 | G74: / | H74: / | I74: / | J74: 3661238381629 | K74: 3 | L74: 715 | M74: 420 | N74: 115 | O74: C9
A75: 100015482 | B75: DOSSERET DE MONTAGE VERSION H | C75: EH148 | D75: 269 | G75: / | H75: / | I75: / | J75: 3661238381636 | K75: 4.1 | L75: 715 | M75: 420 | N75: 115 | O75: C9
A77: OPTIONS
A78: 100004417 | B78: FILTRE 400UM + VANNE D'ISOLEMENT PAC ROE 6-10 ET ROE+ | C78: EH61 | D78: 105 | G78: / | H78: / | I78: / | J78: 3661238003415 | K78: 0.85 | L78: 175 | M78: 90 | N78: 130 | O78: C6
A79: 100011222 | B79: SUPPORT MURALE & PLOTS ANTIVIBRATILES POUR ROE-II AWHP 6-8 | C79: EH95 | D79: 162 | G79: / | H79: / | I79: / | J79: 3661238339927 | K79: 5.4 | L79: 820 | M79: 90 | N79: 90 | O79: C6
A80: 100012532 | B80: BAC DE RECUPERATION CONDENSATS POUR SUPPORT MURAL | C80: EH111 | D80: 142 | G80: / | H80: / | I80: / | J80: 3661238361553 | K80: 2 | L80: 960 | M80: 440 | N80: 80 | O80: C6
A81: 100012534 | B81: CORDON CHAUFFANT ELECTRIQUE | C81: EH113 | D81: 150 | G81: / | H81: / | I81: / | J81: 3661238361577 | K81: 0.2 | L81: 200 | M81: 200 | N81: 10 | O81: C6
A82: 100012533 | B82: SUPPORT POSE AU SOL AWHP | C82: EH112 | D82: 45 | G82: / | H82: / | I82: / | J82: 3661238361560 | K82: 1.2 | L82: 450 | M82: 140 | N82: 80 | O82: C6
A83: 100015476 | B83: LIAISON FRIGORIFIQUE PE 1/2" 1/4" - LG 10 m | C83: EH142 | D83: 233 | G83: / | H83: / | I83: / | J83: 3661238381575 | K83: 7.9 | L83: 600 | M83: 650 | N83: 150 | O83: C6
A84: 100012535 | B84: LIAISON FRIGORIFIQUE PE 5/8'' 3/8'' - LG 5m | C84: EH114 | D84: 233 | G84: / | H84: / | I84: / | J84: 3661238361522 | K84: 4.6 | L84: 600 | M84: 600 | N84: 150 | O84: C6
A85: 100012536 | B85: LIAISON FRIGORIFIQUE PE 5/8'' 3/8'' - LG 10m | C85: EH115 | D85: 416 | G85: / | H85: / | I85: / | J85: 3661238361539 | K85: 7.2 | L85: 600 | M85: 600 | N85: 200 | O85: C6
A86: 100012537 | B86: LIAISON FRIGORIFIQUE PE 5/8'' 3/8'' - LG 20m | C86: EH116 | D86: 751 | G86: / | H86: / | I86: / | J86: 3661238361546 | K86: 14.3 | L86: 750 | M86: 750 | N86: 230 | O86: C6
A87: 100008841 | B87: BALLON TAMPON 80L B 80 T | C87: EH85 | D87: 521 | G87: / | H87: / | I87: / | J87: 3661238166325 | K87: 44.5 | L87: 510 | M87: 510 | N87: 920 | O87: C6
A88: 100004415 | B88: BALLON TAMPON 160L B 150 T | C88: EH60 | D88: 781 | G88: / | H88: / | I88: / | J88: 3661238003422 | K88: 63.2 | L88: 825 | M88: 690 | N88: 1120 | O88: C6
A89: 100002276 | B89: VANNE D'INVERSION CHAUFFAGE SANITAIRE MC 35E MC 45 ET 65 | C89: HC135 | D89: 352 | G89: / | H89: / | I89: / | J89: 3661238007734 | K89: 1 | L89: 195 | M89: 155 | N89: 130 | O89: C0
A90: 100003301 | B90: KIT CABLAGE PLANCHER CHAUFFANT DIRECT | C90: HA249 | D90: 39 | E90: 0.02 | F90: 95020 | G90: / | H90: / | I90: / | J90: 3661238005570 | K90: 0.1 | L90: 210 | M90: 140 | N90: 20 | O90: C0
A91: 88017904 | B91: THERMOSTAT AMBIANCE PROGRAMMABLE (FILAIRE) | C91: AD191 | D91: 161 | E91: 0.12 | F91: 95010 | G91: / | H91: / | I91: / | J91: 3661238102415 | K91: 0.25 | L91: 135 | M91: 90 | N91: 55 | O91: C0
A92: 88017010 | B92: THERMOSTAT D'AMBIANCE PROGRAMMABLE (SANS FILS) | C92: AD192 | D92: 286 | E92: 0.12 | F92: 95010 | G92: / | H92: / | I92: / | J92: 3661238102439 | K92: 0.425 | L92: 180 | M92: 150 | N92: 90 | O92: C0
A93: 100015479 | B93: VANNE D'INVERSION CHAUFFAGE-SANITAIRE+SONDE ECS | C93: EH145 | D93: 335 | G93: / | H93: / | I93: / | J93: 3661238381605 | K93: 4.2 | L93: 410 | M93: 210 | N93: 125 | O93: C6
A94: 100015468 | B94: KIT RAC HYDRAULIQUE PAC - BALLON ECS | C94: EH149 | D94: 99 | G94: / | H94: / | I94: / | J94: 3661238413818 | K94: 1.2 | L94: 575 | M94: 505 | N94: 145 | O94: C6
A95: 100015481 | B95: DOSSERET DE MONTAGE VERSION E | C95: EH147 | D95: 175 | G95: / | H95: / | I95: / | J95: 3661238381629 | K95: 6 | L95: 715 | M95: 420 | N95: 115 | O95: C6
A98: 7638440 | B98: OENOVIAPAC-2C 4 MR-4/H V200 | D98: =SUM(D115+D123+D127) -> 5997 | G98: A++ | H98: A | I98: L | J98: 3661238640337 | O98: C9
A99: 7638441 | B99: OENOVIAPAC-2C 4 MR-4/E V200 | D99: =SUM(D115+D125+D127) -> 6111 | G99: A++ | H99: A | I99: L | J99: 3661238640344 | O99: C9
A100: 7649701 | B100: OENOVIAPAC 2C 4.5 MR 4/E V200 | D100: =D116+D125+D127 -> 6158 | G100: A++ | H100: A | I100: L | J100: 3661238659629 | O100: C9
A101: 7638442 | B101: OENOVIAPAC-2C 6 MR-4/H V200 | D101: =SUM(D117+D123+D127) -> 6086 | G101: A++ | H101: A | I101: L | J101: 3661238640351 | O101: C9
A102: 7638443 | B102: OENOVIAPAC-2C 6 MR-4/E V200 | D102: =SUM(D117+D125+D127) -> 6200 | G102: A++ | H102: A | I102: L | J102: 3661238640368 | O102: C9
A103: 7638444 | B103: OENOVIAPAC-2C 8 MR-4/H V200 | D103: =SUM(D118+D123) -> 6779 | G103: A++ | H103: A | I103: L | J103: 3661238640375 | O103: C9
A104: 7638445 | B104: OENOVIAPAC-2C 8 MR-4/E V200 | D104: =SUM(D118+D125) -> 6893 | G104: A++ | H104: A | I104: L | J104: 3661238640382 | O104: C9
A105: 7638446 | B105: OENOVIAPAC-2C 11 MR-4/H V200 | D105: =SUM(D119+D124) -> 8846 | G105: A++ | H105: A | I105: L | J105: 3661238640399 | O105: C9
A106: 7638447 | B106: OENOVIAPAC-2C 11 MR-4/E V200 | D106: =SUM(D119+D126) -> 8971 | G106: A++ | H106: A | I106: L | J106: 3661238640405 | O106: C9
A107: 7638448 | B107: OENOVIAPAC-2C 11 TR-4/H V200 | D107: =SUM(D120+D124) -> 9150 | G107: A++ | H107: A | I107: L | J107: 3661238640412 | O107: C9
A108: 7638449 | B108: OENOVIAPAC-2C 11 TR-4/E V200 | D108: =SUM(D120+D126) -> 9275 | G108: A++ | H108: A | I108: L | J108: 3661238640429 | O108: C9
A109: 7638450 | B109: OENOVIAPAC-2C 16 MR-4/H V200 | D109: =SUM(D121+D124) -> 9939 | G109: A++ | H109: A | I109: L | J109: 3661238640436 | O109: C9
A110: 7638451 | B110: OENOVIAPAC-2C 16 MR-4/E V200 | D110: =SUM(D121+D126) -> 10064 | G110: A++ | H110: A | I110: L | J110: 3661238640443 | O110: C9
A111: 7638452 | B111: OENOVIAPAC-2C 16 TR-4/H V200 | D111: =SUM(D122+D124) -> 10364 | G111: A++ | H111: A | I111: L | J111: 3661238640450 | O111: C9
A112: 7638453 | B112: OENOVIAPAC-2C 16 TR-4/E V200 | D112: =SUM(D122+D126) -> 10489 | G112: A++ | H112: A | I112: L | J112: 3661238640467 | O112: C9
A114: COMPOSANTS
A115: 7603571 | B115: AWHP 4 MR | C115: EH336 | D115: 1837 | E115: 6.67 | F115: 11050 | G115: / | H115: / | I115: / | J115: 3661238581012 | K115: 48 | L115: 450 | M115: 950 | N115: 690 | O115: C9
A116: 7656794 | B116: AWHP 4.5 MR-4 | C116: EH616 | D116: 1884 | E116: 6.67 | F116: 11050 | G116: / | H116: / | I116: / | J116: 3661238665613 | K116: 54 | L116: 1000 | M116: 430 | N116: 1050 | O116: C9
A117: 7609925 | B117: AWHP 6 MR-2 | C117: EH380 | D117: 1926 | E117: 6.67 | F117: 11050 | G117: / | H117: / | I117: / | J117: 3661238589513 | K117: 47 | L117: 450 | M117: 950 | N117: 690 | O117: C9
A118: 7609926 | B118: AWHP 8 MR-2 | C118: EH381 | D118: 2677 | E118: 6.67 | F118: 11050 | G118: / | H118: / | I118: / | J118: 3661238589520 | K118: 77 | L118: 450 | M118: 1040 | N118: 1030 | O118: C9
A119: 7609927 | B119: AWHP 11 MR-2 | C119: EH382 | D119: 3529 | E119: 6.67 | F119: 11050 | G119: / | H119: / | I119: / | J119: 3661238589537 | K119: 131 | L119: 450 | M119: 1040 | N119: 1440 | O119: C9
A120: 7609928 | B120: AWHP 11 TR-2 | C120: EH383 | D120: 3833 | E120: 6.67 | F120: 11050 | G120: / | H120: / | I120: / | J120: 3661238589544 | K120: 145 | L120: 450 | M120: 1040 | N120: 1440 | O120: C9
A121: 7609929 | B121: AWHP 16 MR-2 | C121: EH384 | D121: 4622 | E121: 6.67 | F121: 11050 | G121: / | H121: / | I121: / | J121: 3661238589551 | K121: 131 | L121: 450 | M121: 1040 | N121: 1440 | O121: C9
A122: 7609930 | B122: AWHP 16 TR-2 | C122: EH385 | D122: 5047 | E122: 6.67 | F122: 11050 | G122: / | H122: / | I122: / | J122: 3661238589568 | K122: 145 | L122: 450 | M122: 1040 | N122: 1440 | O122: C9
A123: 7625406 | B123: MHX-4/H 4-8 V200 | C123: EH546 | D123: 4102 | G123: / | H123: / | I123: / | J123: 3661238622968 | K123: 143 | L123: 970 | M123: 675 | N123: 1435 | O123: C9
A124: 7625407 | B124: MHX-4/H 11-16 V200 | C124: EH547 | D124: 5317 | G124: / | H124: / | I124: / | J124: 3661238622975 | K124: 145 | L124: 970 | M124: 675 | N124: 1435 | O124: C9
A125: 7625408 | B125: MHX-4/E 4-8 V200 | C125: EH548 | D125: 4216 | G125: / | H125: / | I125: / | J125: 3661238622982 | K125: 146 | L125: 970 | M125: 675 | N125: 1435 | O125: C9
A126: 7625421 | B126: MHX-4/E 11-16 V200 | C126: EH549 | D126: 5442 | G126: / | H126: / | I126: / | J126: 3661238622999 | K126: 148 | L126: 970 | M126: 675 | N126: 1435 | O126: C9
A127: 100015480 | B127: RACCORD D'ADAPTATION FRIGO POUR 4 kW ET 6 kW | C127: EH146 | D127: 58 | G127: / | H127: / | I127: / | J127: 3661238381612 | K127: 0.5 | L127: 150 | M127: 80 | N127: 30 | O127: C9
A129: OPTIONS
A130: 100004417 | B130: FILTRE 400UM + VANNE D'ISOLEMENT PAC ROE 6-10 ET ROE+ | C130: EH61 | D130: 105 | G130: / | H130: / | I130: / | J130: 3661238003415 | K130: 0.85 | L130: 175 | M130: 90 | N130: 130 | O130: C6
A131: 100011222 | B131: SUPPORT MURALE & PLOTS ANTIVIBRATILES POUR ROE-II AWHP 6-8 | C131: EH95 | D131: 162 | G131: / | H131: / | I131: / | J131: 3661238339927 | K131: 5.4 | L131: 820 | M131: 90 | N131: 90 | O131: C6
A132: 100018409 | B132: SUPPORT MURAL AWHP 11à 27 kW | C132: EH250 | D132: 166 | G132: / | H132: / | I132: / | J132: 3661238543874 | K132: 5 | L132: 820 | M132: 90 | N132: 90 | O132: C6
A133: 100012532 | B133: BAC DE RECUPERATION CONDENSATS POUR SUPPORT MURAL | C133: EH111 | D133: 142 | G133: / | H133: / | I133: / | J133: 3661238361553 | K133: 2 | L133: 960 | M133: 440 | N133: 80 | O133: C6
A134: 100012534 | B134: CORDON CHAUFFANT ELECTRIQUE | C134: EH113 | D134: 150 | G134: / | H134: / | I134: / | J134: 3661238361577 | K134: 0.2 | L134: 200 | M134: 200 | N134: 10 | O134: C6
A135: 100012533 | B135: SUPPORT POSE AU SOL AWHP | C135: EH112 | D135: 45 | G135: / | H135: / | I135: / | J135: 3661238361560 | K135: 1.2 | L135: 450 | M135: 140 | N135: 80 | O135: C6
A136: 100015476 | B136: LIAISON FRIGORIFIQUE PE 1/2" 1/4" - LG 10 m | C136: EH142 | D136: 233 | G136: / | H136: / | I136: / | J136: 3661238381575 | K136: 7.9 | L136: 600 | M136: 650 | N136: 150 | O136: C6
A137: 100012535 | B137: LIAISON FRIGORIFIQUE PE 5/8'' 3/8'' - LG 5m | C137: EH114 | D137: 233 | G137: / | H137: / | I137: / | J137: 3661238361522 | K137: 4.6 | L137: 600 | M137: 600 | N137: 150 | O137: C6
A138: 100012536 | B138: LIAISON FRIGORIFIQUE PE 5/8'' 3/8'' - LG 10m | C138: EH115 | D138: 416 | G138: / | H138: / | I138: / | J138: 3661238361539 | K138: 7.2 | L138: 600 | M138: 600 | N138: 200 | O138: C6
A139: 100012537 | B139: LIAISON FRIGORIFIQUE PE 5/8'' 3/8'' - LG 20m | C139: EH116 | D139: 751 | G139: / | H139: / | I139: / | J139: 3661238361546 | K139: 14.3 | L139: 750 | M139: 750 | N139: 230 | O139: C6
A140: 100015468 | B140: KIT RAC HYDRAULIQUE PAC - BALLON ECS | C140: EH149 | D140: 99 | G140: / | H140: / | I140: / | J140: 3661238413818 | K140: 1.2 | L140: 575 | M140: 505 | N140: 145 | O140: C6
A141: 100008841 | B141: BALLON TAMPON 80L B 80 T | C141: EH85 | D141: 521 | G141: / | H141: / | I141: / | J141: 3661238166325 | K141: 44.5 | L141: 510 | M141: 510 | N141: 920 | O141: C6
A142: 100004415 | B142: BALLON TAMPON 160L B 150 T | C142: EH60 | D142: 781 | G142: / | H142: / | I142: / | J142: 3661238003422 | K142: 63.2 | L142: 825 | M142: 690 | N142: 1120 | O142: C6
A143: 100003301 | B143: KIT CABLAGE PLANCHER CHAUFFANT DIRECT | C143: HA249 | D143: 39 | E143: 0.02 | F143: 95020 | G143: / | H143: / | I143: / | J143: 3661238005570 | K143: 0.1 | L143: 210 | M143: 140 | N143: 20 | O143: C0
A144: 7624902 | B144: KIT CABLAGE PLANCHER CHAUFFANT DIRECT | C144: HA255 | D144: 37 | E144: 0.02 | F144: 95020 | G144: / | H144: / | I144: / | J144: 3661238618176 | K144: 0.1 | L144: 210 | M144: 140 | N144: 20 | O144: C0
A145: 88017904 | B145: THERMOSTAT AMBIANCE PROGRAMMABLE (FILAIRE) | C145: AD191 | D145: 161 | E145: 0.12 | F145: 95010 | G145: / | H145: / | I145: / | J145: 3661238102415 | K145: 0.25 | L145: 135 | M145: 90 | N145: 55 | O145: C0
A146: 88017010 | B146: THERMOSTAT D'AMBIANCE PROGRAMMABLE (SANS FILS) | C146: AD192 | D146: 286 | E146: 0.12 | F146: 95010 | G146: / | H146: / | I146: / | J146: 3661238102439 | K146: 0.425 | L146: 180 | M146: 150 | N146: 90 | O146: C0
A147: 100019114 | B147: KIT DETECTEUR DE CONDENSATION | C147: HK27 | D147: 212 | E147: 0.12 | F147: 95010 | G147: / | H147: / | I147: / | J147: 3661238569119 | K147: 0.7 | L147: 185 | M147: 130 | N147: 105 | O147: C0
A148: 7619010 | B148: KIT VANNE 3 VOIES | C148: EH528 | D148: 576 | E148: 0.12 | F148: 95010 | G148: / | H148: / | I148: / | J148: 3661238618152 | K148: 17.7 | L148: 750 | M148: 300 | N148: 150 | O148: C0
A149: 7622273 | B149: CARTE DE REGULATION 2 CIRCUITS | C149: EH527 | D149: 199 | E149: 0.12 | F149: 95010 | G149: / | H149: / | I149: / | J149: 3661238618145 | K149: 0.3 | L149: 185 | M149: 130 | N149: 105 | O149: C6
A150: 7626737 | B150: KIT ISOLATION MODE FROID | C150: EH567 | D150: 208 | G150: / | H150: / | I150: / | J150: 3661238624115 | K150: 0.64 | L150: 615 | M150: 280 | N150: 80 | O150: C0
A151: 7636899 | B151: KIT SILENCIEUX MODULE EXTERIEUR | C151: EH572 | D151: 60 | E151: 0.02 | F151: 95020 | G151: / | H151: / | I151: / | J151: 3661238644335 | K151: 0.2 | L151: 170 | M151: 210 | N151: 20 | O151: C0
A152: 7622433 | B152: KIT SONDE CONDENSATION 0-10V HZ64 | C152: HZ64 | D152: 383 | E152: 0.02 | F152: 95020 | G152: / | H152: / | I152: / | J152: 3661238614123 | K152: 0.3 | L152: 185 | M152: 130 | N152: 105 | O152: C6
A154: OPTIONS ECS
A155: 7631121 | B155: KIT CONNEXION BASE | C155: EH590 | D155: 458 | J155: 3661238631229 | K155: 10.9 | L155: 1187 | M155: 397 | N155: 181 | O155: C6
A156: 7631133 | B156: KIT CONNEXION SECOND CIRCUIT | C156: EH591 | D156: 132 | J156: 3661238631311 | K156: 2.45 | L156: 600 | M156: 150 | N156: 100 | O156: C6
A157: 7631134 | B157: KIT CONNEXION CHAUDIERE APPOIN | C157: EH592 | D157: 132 | J157: 3661238631328 | K157: 2.1 | L157: 795 | M157: 160 | N157: 160 | O157: C6
A158: 7631764 | B158: KIT CONNEXION RECIRCULATIO | C158: EH593 | D158: 77 | J158: 3661238632349 | K158: 1.55 | L158: 600 | M158: 150 | N158: 100 | O158: C6
A161: 7609994 | B161: OENOVIAPAC-2 CONFORT 4 MR-2/H | D161: =D181+D190+D196 -> 5089 | G161: A++ | H161: / | I161: / | J161: 366123859365 | K161: 110.1 | O161: C6
A162: 7609995 | B162: OENOVIAPAC-2 CONFORT 4 MR-2/EM | D162: =D181+D192+D196 -> 5579 | G162: A++ | H162: / | I162: / | J162: 366123859366 | K162: 116.2 | O162: C6
A163: 7609996 | B163: OENOVIAPAC-2 CONFORT 6 MR-2/H | D163: =D182+D190+D196 -> 5178 | G163: A++ | H163: / | I163: / | J163: 366123859367 | K163: 109.1 | O163: C6
A164: 7609997 | B164: OENOVIAPAC-2 CONFORT 6 MR-2/EM | D164: =D182+D192+D196 -> 5668 | G164: A++ | H164: / | I164: / | J164: 366123859368 | K164: 115.2 | O164: C6
A165: 7609998 | B165: OENOVIAPAC-2 CONFORT 8 MR-2/H | D165: =D183+D190 -> 5871 | G165: A++ | H165: / | I165: / | J165: 366123859369 | K165: 138.6 | O165: C6
A166: 7609999 | B166: OENOVIAPAC-2 CONFORT 8 MR-2/EM | D166: =D183+D192 -> 6361 | G166: A++ | H166: / | I166: / | J166: 366123859370 | K166: 144.7 | O166: C6
A167: 7610000 | B167: OENOVIAPAC-2 CONFORT 11 MR-2/H | D167: =D184+D191 -> 7398 | G167: A++ | H167: / | I167: / | J167: 366123859371 | K167: 195.2 | O167: C6
A168: 7610001 | B168: OENOVIAPAC-2 CONFORT 11 MR-2/EM | D168: =D184+D193 -> 7975 | G168: A++ | H168: / | I168: / | J168: 366123859372 | K168: 205.5 | O168: C6
A169: 7610002 | B169: OENOVIAPAC-2 CONFORT 11 TR-2/H | D169: =D185+D191 -> 7702 | G169: A++ | H169: / | I169: / | J169: 366123859373 | K169: 209.2 | O169: C6
A170: 7610003 | B170: OENOVIAPAC-2 CONFORT 11 TR-2/ET | D170: =D185+D193 -> 8279 | G170: A++ | H170: / | I170: / | J170: 366123859374 | K170: 219.5 | O170: C6
A171: 7610004 | B171: OENOVIAPAC-2 CONFORT 16 MR-2/H | D171: =D186+D191 -> 8491 | G171: A++ | H171: / | I171: / | J171: 366123859375 | K171: 195.2 | O171: C6
A172: 7610005 | B172: OENOVIAPAC-2 CONFORT 16 MR-2/EM | D172: =D186+D193 -> 9068 | G172: A++ | H172: / | I172: / | J172: 366123859376 | K172: 205.5 | O172: C6
A173: 7610006 | B173: OENOVIAPAC-2 CONFORT 16 TR-2/H | D173: =D187+D191 -> 8916 | G173: A++ | H173: / | I173: / | J173: 366123859377 | K173: 209.2 | O173: C6
A174: 7610007 | B174: OENOVIAPAC-2 CONFORT 16 TR-2/ET | D174: =D187+D193 -> 9493 | G174: A++ | H174: / | I174: / | J174: 366123859378 | K174: 219.5 | O174: C6
A175: 7610008 | B175: OENOVIAPAC-2 CONFORT 22 TR-2/H | D175: =D188+D194+D197 -> 11380 | G175: A++ | H175: / | I175: / | J175: 366123859379 | K175: 211.2 | O175: C6
A176: 7610009 | B176: OENOVIAPAC-2 CONFORT 22 TR-2/ET | D176: =D188+D195+D197 -> 12196 | G176: A++ | H176: / | I176: / | J176: 366123859380 | K176: 217.3 | O176: C6
A177: 7610010 | B177: OENOVIAPAC-2 CONFORT 27 TR-2/H | D177: =D189+D194 -> 12613 | G177: A+ | H177: / | I177: / | J177: 366123859381 | K177: 216.2 | O177: C6
A178: 7610011 | B178: OENOVIAPAC-2 CONFORT 27 TR-2/ET | D178: =D189+D195 -> 13429 | G178: A+ | H178: / | I178: / | J178: 366123859382 | K178: 222.3 | O178: C6
A180: COMPOSANTS
A181: 7603571 | B181: AWHP 4 MR | C181: EH336 | D181: 1837 | E181: 6.67 | F181: 11050 | G181: / | H181: / | I181: / | J181: 3661238581012 | K181: 48 | L181: 450 | M181: 950 | N181: 690 | O181: C9
A182: 7609925 | B182: AWHP 6 MR-2 | C182: EH380 | D182: 1926 | E182: 6.67 | F182: 11050 | G182: / | H182: / | I182: / | J182: 3661238589513 | K182: 47 | L182: 450 | M182: 950 | N182: 690 | O182: C9
A183: 7609926 | B183: AWHP 8 MR-2 | C183: EH381 | D183: 2677 | E183: 6.67 | F183: 11050 | G183: / | H183: / | I183: / | J183: 3661238589520 | K183: 77 | L183: 450 | M183: 1040 | N183: 1030 | O183: C9
A184: 7609927 | B184: AWHP 11 MR-2 | C184: EH382 | D184: 3529 | E184: 6.67 | F184: 11050 | G184: / | H184: / | I184: / | J184: 3661238589537 | K184: 131 | L184: 450 | M184: 1040 | N184: 1440 | O184: C9
A185: 7609928 | B185: AWHP 11 TR-2 | C185: EH383 | D185: 3833 | E185: 6.67 | F185: 11050 | G185: / | H185: / | I185: / | J185: 3661238589544 | K185: 145 | L185: 450 | M185: 1040 | N185: 1440 | O185: C9
A186: 7609929 | B186: AWHP 16 MR-2 | C186: EH384 | D186: 4622 | E186: 6.67 | F186: 11050 | G186: / | H186: / | I186: / | J186: 3661238589551 | K186: 131 | L186: 450 | M186: 1040 | N186: 1440 | O186: C9
A187: 7609930 | B187: AWHP 16 TR-2 | C187: EH385 | D187: 5047 | E187: 6.67 | F187: 11050 | G187: / | H187: / | I187: / | J187: 3661238589568 | K187: 145 | L187: 450 | M187: 1040 | N187: 1440 | O187: C9
A188: 7655104 | B188: AWHP 22 TR | C188: EH614 | D188: 5900 | E188: 6.67 | F188: 11050 | G188: / | H188: / | I188: / | J188: 3661238663817 | K188: 143 | L188: 450 | M188: 1100 | N188: 1430 | O188: C9
A189: 7655105 | B189: AWHP 27 TR | C189: EH615 | D189: 7169 | E189: 6.67 | F189: 11050 | G189: / | H189: / | I189: / | J189: 3661238663824 | K189: 148 | L189: 450 | M189: 1100 | N189: 1430 | O189: C9
A190: 7609940 | B190: MHR-IN-2/H 4-8 OE-TRO | C190: EH392 | D190: 3194 | G190: / | H190: / | I190: / | J190: 3661238589636 | K190: 61.6 | L190: 670 | M190: 1135 | N190: 650 | O190: C6
A191: 7609941 | B191: MHR-IN-2/H 11-16 OE-TRO | C191: EH393 | D191: 3869 | G191: / | H191: / | I191: / | J191: 3661238589643 | K191: 64.2 | L191: 670 | M191: 1135 | N191: 650 | O191: C6
A192: 7609942 | B192: MHR-IN-2/E 4-8 OE-TRO | C192: EH394 | D192: 3684 | G192: / | H192: / | I192: / | J192: 3661238589650 | K192: 68.2 | L192: 670 | M192: 1135 | N192: 650 | O192: C6
A193: 7609943 | B193: MHR-IN-2/E 11-16 OE-TRO | C193: EH395 | D193: 4446 | G193: / | H193: / | I193: / | J193: 3661238589667 | K193: 67.7 | L193: 670 | M193: 1135 | N193: 650 | O193: C6
A194: 7609944 | B194: MHR-IN-2/H 22-27 OE-TRO | C194: EH396 | D194: 5444 | G194: / | H194: / | I194: / | J194: 3661238589674 | K194: 74.5 | L194: 670 | M194: 1135 | N194: 650 | O194: C6
A195: 7609945 | B195: MHR-IN-2/E 22-27 OE-TRO | C195: EH397 | D195: 6260 | G195: / | H195: / | I195: / | J195: 3661238589681 | K195: 74.2 | L195: 670 | M195: 1135 | N195: 650 | O195: C6
A196: 100015480 | B196: RACCORD D'ADAPTATION FRIGO POUR 4 kW ET 6 kW | C196: EH146 | D196: 58 | G196: / | H196: / | I196: / | J196: 3661238381612 | K196: 0.5 | L196: 150 | M196: 80 | N196: 30 | O196: C9
A197: 100018428 | B197: RACCORD D'ADAPTATION FRIGO POUR 22 kW | C197: HK26 | D197: 36 | G197: / | H197: / | I197: / | J197: 3661238544635 | K197: 0.1 | L197: 140 | M197: 70 | N197: 25 | O197: C9
A199: OPTIONS
A200: 100011222 | B200: SUPPORT MURALE & PLOTS ANTIVIBRATILES POUR ROE-II AWHP 6-8 | C200: EH95 | D200: 162 | G200: / | H200: / | I200: / | J200: 3661238339927 | K200: 5.4 | L200: 820 | M200: 90 | N200: 90 | O200: C6
A201: 100018409 | B201: SUPPORT MURAL AWHP 11à 27 kW | C201: EH250 | D201: 166 | G201: / | H201: / | I201: / | J201: 3661238543874 | K201: 5 | L201: 820 | M201: 90 | N201: 90 | O201: C6
A202: 100012532 | B202: BAC DE RECUPERATION CONDENSATS POUR SUPPORT MURAL | C202: EH111 | D202: 142 | G202: / | H202: / | I202: / | J202: 3661238361553 | K202: 2 | L202: 960 | M202: 440 | N202: 80 | O202: C6
A203: 100012534 | B203: CORDON CHAUFFANT ELECTRIQUE | C203: EH113 | D203: 150 | G203: / | H203: / | I203: / | J203: 3661238361577 | K203: 0.2 | L203: 200 | M203: 200 | N203: 10 | O203: C6
A204: 100012533 | B204: SUPPORT POSE AU SOL AWHP | C204: EH112 | D204: 45 | G204: / | H204: / | I204: / | J204: 3661238361560 | K204: 1.2 | L204: 450 | M204: 140 | N204: 80 | O204: C6
A205: 100012535 | B205: LIAISON FRIGORIFIQUE PE 5/8'' 3/8'' - LG 5m | C205: EH114 | D205: 233 | G205: / | H205: / | I205: / | J205: 3661238361522 | K205: 4.6 | L205: 600 | M205: 600 | N205: 150 | O205: C6
A206: 100012536 | B206: LIAISON FRIGORIFIQUE PE 5/8'' 3/8'' - LG 10m | C206: EH115 | D206: 416 | G206: / | H206: / | I206: / | J206: 3661238361539 | K206: 7.2 | L206: 600 | M206: 600 | N206: 200 | O206: C6
A207: 100012537 | B207: LIAISON FRIGORIFIQUE PE 5/8'' 3/8'' - LG 20m | C207: EH116 | D207: 751 | G207: / | H207: / | I207: / | J207: 3661238361546 | K207: 14.2 | L207: 750 | M207: 750 | N207: 230 | O207: C6
A208: 100015476 | B208: LIAISON FRIGORIFIQUE PE 1/2" 1/4" - LG 10 m | C208: EH142 | D208: 233 | G208: / | H208: / | I208: / | J208: 3661238381575 | K208: 7.9 | L208: 600 | M208: 650 | N208: 150 | O208: C6
A209: 100018410 | B209: KIT ISOLATION MODE FROID MIT-IN iSYSTEM | C209: HK24 | D209: 271 | G209: / | H209: / | I209: / | J209: 3661238543881 | K209: 0.87 | L209: 360 | M209: 340 | N209: 180 | O209: C6
A210: 100018411 | B210: KIT ISOLATION MODE FROID KIT VANNE 3 VOIES (CIRCUIT B) | C210: HK25 | D210: 153 | G210: / | H210: / | I210: / | J210: 3661238543898 | K210: 0.26 | L210: 310 | M210: 210 | N210: 130 | O210: C6
A211: 100008841 | B211: BALLON TAMPON 80L B 80 T | C211: EH85 | D211: 521 | G211: / | H211: / | I211: / | J211: 3661238166325 | K211: 44.5 | L211: 510 | M211: 510 | N211: 920 | O211: C6
A212: 100003301 | B212: KIT CABLAGE PLANCHER CHAUFFANT DIRECT | C212: HA249 | D212: 39 | E212: 0.02 | F212: 95020 | G212: / | H212: / | I212: / | J212: 3661238005570 | K212: 0.1 | L212: 210 | M212: 140 | N212: 20 | O212: C0
A213: 100017830 | B213: KIT VANNE 3 VOIES (CIRCUIT B) | C213: HK21 | D213: 667 | G213: / | H213: / | I213: / | J213: 3661238544727 | K213: 5.9 | L213: 880 | M213: 270 | N213: 150 | O213: C6
A214: 100017832 | B214: KIT TUBULURES 2 CIRCUITS | C214: HK22 | D214: 142 | G214: / | H214: / | I214: / | J214: 3661238544710 | K214: 1.6 | L214: 880 | M214: 270 | N214: 150 | O214: C6
A215: 100017833 | B215: VANNE D'INVERSION CHAUFFAGE-SANITAIRE | C215: HK23 | D215: 198 | G215: / | H215: / | I215: / | J215: 3661238544734 | K215: 1.4 | L215: 310 | M215: 230 | N215: 130 | O215: C6
A216: 100015468 | B216: KIT RAC HYDRAULIQUE PAC - BALLON ECS | C216: EH149 | D216: 99 | G216: / | H216: / | I216: / | J216: 3661238413818 | K216: 1.2 | L216: 575 | M216: 505 | N216: 145 | O216: C6
... 4818 more rows

Sheet Feuille Power OPC (hidden)
B2: DESIGNATION | C2: COLIS | D2: PPHT unit. | E2: Nbre capteur par rangée | F2: Nbre rangée
H3: listePower7 | I3: listePower10 | J3: listePower15
B4: ►CAPTEURS TUBULAIRES | H4: 0 | I4: 0 | J4: 0
B5: 1 capteur plan POWER 7 | C5: ='Sun 3000'!#REF! ->  | D5: 0 | E5: 0 | F5: 0 | H5: 1 | I5: 1 | J5: 1
B6: 1 capteur plan POWER 10 | C6: ='Sun 3000'!F19 -> ER40 | D6: ='Sun 3000'!G19 -> 1656 | E6: ='Sun 3000'!H19 -> 0 | F6: ='Sun 3000'!I19 -> 0 | H6: 2 | I6: 2 | J6: 2
B7: 1 capteur plan POWER 15 | C7: ='Sun 3000'!F20 -> ER41 | D7: ='Sun 3000'!G20 -> 1974 | E7: ='Sun 3000'!H20 -> 0 | F7: ='Sun 3000'!I20 -> 0 | H7: 3 | I7: 3 | J7: 3
B8: =IF(E8>6,"--Attention plus de 6 capteurs par rangée--","") ->  | H8: 4 | I8: 4 | J8: 4
B9: ►ACCESSOIRES POUR RACCORDEMENT HYDRAULIQUE | H9: 5 | I9: 5 | J9: 5
H10: 6 | I10: 6 | J10: 6
B11: • Raccordement des capteurs en montage vertical juxtaposés ou horizontal superposés | H11: 7 | I11: 7 | J11: 7
B12: juxtaposés ou horizontal superposés | H12: 8 | I12: 8 | J12: 8
B13: Kit de raccordement hydraulique (extémité+bouchon) Tichelmann | C13: EG 394 | E13: nbre colis/rangée | F13: nbre colis final par type capteur | H13: 9 | I13: 9 | J13: 9
B14: Power7 | E14: 1 | F14: 0 | H14: 10 | I14: 10 | J14: 10
B15: Power10 | E15: 1 | F15: =E15*F6 -> 0 | H15: 11 | I15: 11
B16: Power15 | E16: 1 | F16: =E16*F7 -> 0 | H16: 12 | I16: 12
D17: ='Sun 3000'!G27 -> 112 | E17: somme colis EG394 | F17: =F14+F15+F16 -> 0 | H17: 13 | I17: 13
H18: 14 | I18: 14
B19: Kit de liaison entre 2 capteurs | C19: EG 393 | H19: 15
B20: Power7 | E20: =IF(E5=0,0,E5-1) -> 0 | F20: 0 | H20: 16
B21: Power10 | E21: =IF(E6=0,0,E6-1) -> 0 | F21: =E21*F6 -> 0
B22: Power15 | E22: =IF(E7=0,0,E7-1) -> 0 | F22: =E22*F7 -> 0
D23: ='Sun 3000'!G28 -> 150 | E23: somme colis EG393 | F23: =F20+F21+F22 -> 0
B25: Kit raccordement flexibles capteur tubulaire + sonde capteur | C25: EG 355
B26: Power7 | E26: 1 | F26: 0
B27: Power10 | E27: 1 | F27: =E27*F6 -> 0
B28: Power15 | E28: 1 | F28: =E28*F7 -> 0
D29: ='Sun 3000'!G29 -> 197 | E29: somme colis EG355 | F29: =F26+F27+F28 -> 0
B31: Kit fixation 1 capteur tubulaire | C31: EG 392
B32: Power7 | E32: =E5 -> 0 | F32: 0
B33: Power10 | E33: =E6 -> 0 | F33: =E33*F6 -> 0
B34: Power15 | E34: =E7 -> 0 | F34: =E34*F7 -> 0
D35: ='Sun 3000'!G30 -> 78 | E35: somme colis EG392 | F35: =F32+F33+F34 -> 0
B38: ►ELEMENTS DE POSE SUR TOIT OU TERRASSE
B41: A choisir parmi les types de montage suivants :
B42: SUR TOIT OU EN TERRASSE
B43: • Profilés à choisir en fonction du montage capteurs souhaité
E44: nbre colis/rangée | F44: nbre colis final
B45: Montage vertical sur profilés de ER
B46: Kit de montage 1 capteur POWER 7 | C46: ER 30 | D46: ='Sun 3000'!#REF! ->  | E46: =E5 -> 0 | F46: 0 | H46: =G46*D46 -> 
B47: Kit de montage 1 capteur POWER 10 | C47: ER 31 | D47: ='Sun 3000'!G39 -> 158 | E47: =E6 -> 0 | F47: =E47*F6 -> 0 | H47: =D47*G47 -> 0
B48: Kit de montage 1 capteur POWER 15 | C48: ER 32 | D48: ='Sun 3000'!G40 -> 166 | E48: =E7 -> 0 | F48: =E48*F7 -> 0 | H48: =D48*G48 -> 0
B52: • Supports inclinables pour TERRASSE (ou au sol)
B53: à choisir selon la disposition des capteurs en + des profilés
B54: 3 supports avec croix stabilisatrices pour 2 capt. Montage vertical | C54: EG 358 | D54: ='Sun 3000'!G46 -> 287 | E54: nbre colis/rangée | F54: nbre colis final
B55: Power7 | E55: 0 | F55: PAS montage en terrasse
B56: Power10 | E56: 1 | F56: =E56*F6 -> 0
B57: Power15 | E57: 1 | F57: =E57*F7 -> 0
E58: somme colis EG 358 | F58: =F56+F57 -> 0
B60: 3 supports (sans croix stabilisatrices) pour 2 capt. Montage vertical | C60: EG 359 | D60: ='Sun 3000'!G47 -> 245 | E60: nbre colis/rangée | F60: nbre colis final
B61: Power7 | E61: 0 | F61: PAS montage en terrasse
C62: pr un nbre de capteurs compris entre 0 et 7 | D62: nbre capteur compris entre 8 et 14
B63: Power10 | C63: =IF(E6=0,0,IF(E6=1,0,IF(E6=2,0,IF(E6=3,1,IF(E6=4,1,IF(E6=5,1,IF(E6=6,2,IF(E6=7,2,0)))))))) -> 0 | D63: =IF(E6=8,2,IF(E6=9,3,IF(E6=10,3,IF(E6=11,3,IF(E6=12,4,IF(E6=13,4,IF(E6=14,4,0))))))) -> 0 | E63: =IF(D63=0,C63,D63) -> 0 | F63: =E63*F6 -> 0
B64: Power15 | C64: =IF(E7=0,0,IF(E7=1,0,IF(E7=2,0,IF(E7=3,1,IF(E7=4,1,IF(E7=5,1,IF(E7=6,2,IF(E7=7,2,0)))))))) -> 0 | D64: =IF(E7=8,2,IF(E7=9,3,IF(E7=10,3,IF(E7=11,3,IF(E7=12,4,IF(E7=13,4,IF(E7=14,4,0))))))) -> 0 | E64: =IF(D64=0,C64,D64) -> 0 | F64: =E64*F7 -> 0
E65: somme colis EG 359 | F65: =F63+F64 -> 0
B68: • Ferrures d’ancrage pour montage SUR TOITURE
B69: à choisir selon le type de couverture en + des profilés | H69: listechevrons
B70: ='Sun 3000'!D52 -> montage indépendant des chevrons en alu pour tuiles mécaniques | C70: =H78 -> 89807311 | D70: ='Sun 3000'!G52 -> 98 | E70: =E75+E81+E87 -> 0 | H70: montage indépendant des chevrons en alu pour tuiles mécaniques | I70: 1 | J70: 89807311 | K70: 4 pces EG 311 | L70: 89807312 | M70: 6 pces EG 312
C71: =H79 -> 89807312 | D71: ='Sun 3000'!G53 -> 141 | E71: =E76+E82+E88 -> 0 | H71: montage sur chevrons en inox pour tuiles mécaniques | I71: 2 | J71: 89807313 | K71: 4 pces EG 313 | L71: 89807314 | M71: 6 pces EG 314
H72: montage sur chevrons en inox pour tuiles plates | I72: 3 | J72: 89807315 | K72: 4 pces EG315 | L72: 89807316 | M72: 6 pces EG 316
C73: nbre colis par rangée | H73: montage sur chevrons en inox sur toit éternit | I73: 4 | J73: 89807317 | K73: 4 pces EG 317 | L73: 89807318 | M73: 6 pces EG 318
C74: pr un nbre de capteurs compris entre 2 et 9 | D74: nbre capteur compris entre 10 et 16 | E74: nbre colis final | H74: montage sur chevrons en inox sur toit d'ardoises | I74: 5 | J74: 89807319 | K74: 4 pces EG 319 | L74: 89807320 | M74: 6 pces EG 320
B75: Power7 /colis 4pces | D75: =VLOOKUP(E5,C111:E121,2) -> 0 | E75: 0
B76: Power7 /colis 6pces | D76: =VLOOKUP(E5,C111:E121,3) -> 0 | E76: 0 | H76: =VLOOKUP('Sun 3000'!D52,H70:I74,2,FALSE) -> 1
H78: =VLOOKUP(H76,I70:K74,2,FALSE) -> 89807311
C79: nbre colis par rangée | H79: =VLOOKUP(H76,I70:M74,4,FALSE) -> 89807312
C80: pr un nbre de capteurs compris entre 2 et 9 | D80: nbre capteur compris entre 10 et 16 | E80: nbre colis final
B81: Power10 4 pces | D81: =VLOOKUP(E6,C111:E121,2) -> 0 | E81: =(D81)*F6 -> 0
B82: Power10 6 pces | D82: =VLOOKUP(E6,C111:E121,3) -> 0 | E82: =(D82)*F6 -> 0
C85: nbre colis par rangée
C86: pr un nbre de capteurs compris entre 2 et 9 | D86: nbre capteur compris entre 10 et 16 | E86: nbre colis final
B87: Power15 4 pces | D87: =VLOOKUP(E7,C111:E121,2) -> 0 | E87: =(D87)*F7 -> 0
B88: Power15 6 pces | D88: =VLOOKUP(E7,C111:E121,3) -> 0 | E88: =D88*F7 -> 0
B92: • Montage sur tuiles canal
B93: Kit tire-fonds pour montage sur tuiles canal | C93: 6 pces EG 94 | D93: ='Sun 3000'!G57 -> 287 | F93: =E100+E103+E106 -> 0
C94: 8 pces EG 95 | D94: ='Sun 3000'!G58 -> 245 | F94: =E101+E104+E107 -> 0
E99: nbre colis final
B100: Power 7 colis 6 pces EG94 | D100: =VLOOKUP(E5,C111:E121,2) -> 0 | E100: 0
B101: Power7 colis 8 pces EG95 | D101: =VLOOKUP(E5,C111:E121,3) -> 0 | E101: 0
B103: Power10 6 pces EG 94 | D103: =VLOOKUP(E6,C111:E121,2) -> 0 | E103: =D103*F6 -> 0
B104: Power10 EG 95 | D104: =VLOOKUP(E6,C111:E121,3) -> 0 | E104: =D104*F6 -> 0
B106: Power15 4 pces ER 136 | D106: =VLOOKUP(E7,C111:E121,2) -> 0 | E106: =D106*F7 -> 0
B107: Power15 6 pces ER 137 | D107: =VLOOKUP(E7,C111:E121,3) -> 0 | E107: =D107*F7 -> 0
C110: Nombre | D110: kit 4 pces | E110: kit 6 pces
C111: 0 | D111: 0 | E111: 0
C112: 1 | D112: 1 | E112: 0
C113: 2 | D113: 0 | E113: 1
C114: 3 | D114: 2 | E114: 0
C115: 4 | D115: 1 | E115: 1
C116: 5 | D116: 0 | E116: 2
C117: 6 | D117: 2 | E117: 1
C118: 7 | D118: 1 | E118: 2
C119: 8 | D119: 0 | E119: 3
C120: 9 | D120: 2 | E120: 2
C121: 10 | D121: 2 | E121: 3

Sheet Mise à jour (hidden)
A2: Date : | B2: 2017-01-18 | C2: Auteur : | D2: Alexandre Diebold
B4: Modifications :
C5: Actualisation des tarifs à partir de la version de 01/2017
